Workbook

Sheet JD vs Bible Calendar...
X1: Ex 40:2, 17
A3: 55P/Tempel-Tuttle: Length of orbit from one perihelion to the next | B3: =2463014.1589-2450872.5977 -> 12141.5612 | C3: https://www.google.com/search?q=List+of+perihelion+dates+of+55P%2FTemple-Tuttle&client=firefox-b-d&sca_esv=581555769&sxsrf=AM9HkKlbjBPjOTohtOyFXDKK6TuL8yzlfw%3A1699729107019&ei=085PZcBs4v3A8A-e6IbwDw&ved=0ahUKEwiAoo2t0LyCAxXiPhAIHR60Af4Q4dUDCBA&uact=5&oq=List+of+perihelion+dates+of+55P%2FTemple-Tuttle&gs_lp=Egxnd3Mtd2l6LXNlcnAiLUxpc3Qgb2YgcGVyaWhlbGlvbiBkYXRlcyBvZiA1NVAvVGVtcGxlLVR1dHRsZTIFEAAYogQyBRAAGKIEMgUQABiiBDIFEAAYogQyBRAAGKIESLbBAlCneFjquQJwBHgAkAEAmAGeAaABshSqAQQyMy42uAEDyAEA-AEBwgIKECMYsAIYsAMYJ8ICCxAAGIoFGIYDGLADwgIHECMYsAIYJ-IDBBgBIEGIBgGQBgQ&sclient=gws-wiz-serp | R3: https://en.wikipedia.org/wiki/Priestly_divisions
A4: 55P/Tempel-Tuttle: Length of orbit from one perihelion to the next | B4: =B3 -> 12141.5612 | C4: https://theskylive.com/55p-info | F4: 8P/Tuttle perihelion to perihelion orbital period | G4: =4971.0028 -> 4971.0028 | H4: https://theskylive.com/8p-info | R4: https://torahcalendar.com/PDF/24PriestlyCourses.pdf
A5: 55P/Tempel-Tuttle perihelion dates + 4000 yrs to accommodate Excel 1900 limitation) | B5: Text Format of Column A (lines 31+) [Copy>Word>Edit>Find '-'>Replace' '>Excel>Copy/Paste] | C5: Astronomical Calendar Year (From Column B - 4000) | D5: Julian Calendar Month (From Column B) | E5: Julian Calendar Date of Month (From Column B) | F5: 55P/Tempel-Tuttle perihelion dates + 4000 yrs to accommodate Excel 1900 limitation) | G5: Text Format of Column F (lines 31+) [Copy>Word>Edit>Find>Replace>Excel>Copy/Paste] | H5: Astronomical Calendar Year (From Column G - 4000) | I5: Julian Calendar Month (From Column G) | J5: Julian Calendar Date of Month (From Column G) | K5: These 7 columns begin at 699 BCE poleshift (line 5936 below) | R5: 1st Course Per Strict Julian Day Reckoning Only - Corrected for pole shifts by adding one day for each pole shift | S5: 1st Course from 1900 Excel Limit | U5: 1st Course JD## converted into Julian-Gregorian Calendar Dates [Leap Day adjustments+ 4000 yrs+poleshift adjustments to accommodate Excel 1900 limitation]. This column is adjusted to agree perfectly with column K. Adjustment by means of the Julian Day and Civil Day Calculator [at https://core2.gsfc.nasa.gov/time/julian.html] | V5: Initially: "Column U Adjusted for Pole Shift Jerusalem Based Dates". Since subdivided column U vs V as columns A-M vs N-Z. Cf. heading below at cells U304 & D5947! | W5: Text Format of Column V [Copy>Word>Edit>Find>Replace>Excel>Copy/Paste] | X5: Astronomical Calendar Year (From Column W - 4000) | Y5: Julian Calendar Month (From Column W) | Z5: Julian Calendar Date of Month (From Column W) | AA5: Corresponding Dates Based Upon New Moon Observation | AC5: Corresponding Excel File Versions of the Sacred Calendar of the Creator
K11: Erroneous Jewish Day Noon reckoning (I.e. noon of the day that began at the last prior sunset) | L11: Erroneous Biblical Day B4 sunset | M11: Erroneous Biblical Day after sunset | N11: Calendar MN-MN weekday as reckoned at that time. I.e. correcting the Julian Day and Civil Date Calculator, which calculator is strictly attached to the Julian Day reckoning, and which is NOT adjusted for past poleshifts. | O11: Jewish Day Noon reckoning (I.e. noon of the day that began at the last prior sunset) | P11: Biblical Day B4 sunset | Q11: Biblical Day after sunset
A25: 1P/Halley's Comet… See below 55P… | R25: 1st Priestly Courses - Continuous Sabbath-Sabbath Cycle Regardless of Seasons or Other Calendars
A26: 55P/Tempel-Tuttle | F26: 8P/Tuttle | R26: Wikipedia 1st Course Dates | S26: 2026-05-16 | T26: =T27+168 -> 2026-05-16
A27: =2463014.1589-2450872.5977 -> 12141.5612 | B27: =A27 -> 12141.5612 | C27: Orbital period (JD) | F27: =4971.0028 -> 4971.0028 | G27: =F27 -> 4971.0028 | H27: Orbital period (JD) | S27: 2025-11-29 | T27: 2025-11-29
A28: =A32+A27 -> 2031-05-27T13:28:07.680 | B28: =B32+B27 -> 2031-05-27T13:28:07.680 | F28: =F32+F27 -> 2021-09-06T00:04:01.920 | G28: =G32+G27 -> 2021-09-06T00:04:01.920 | S28: 2025-06-25 | T28: 2025-06-14
S29: 2024-12-28 | T29: 2024-12-28
S30: 2024-07-13 | T30: 2024-07-13
S31: 2024-01-27 | T31: 2024-01-27 | AA31: =AA27+1 -> 1
A32: 1998-02-28 | B32: 1998-02-28 | C32: =B32 -> 1998-02-28 | F32: 2008-01-27 | G32: 2008-01-27 | H32: =G32 -> 2008-01-27 | S32: 2023-08-12 | T32: 2023-08-12 | AA32: =AA31+1 -> 2
A33: =A32-A$27 -> 1964-12-01T10:31:52.320 | B33: =B32-B$27 -> 1964-12-01T10:31:52.320 | C33: =B33 -> 1964-12-01T10:31:52.320 | F33: =F32-F$27 -> 1994-06-17T23:55:58.080 | G33: =G32-G$27 -> 1994-06-17T23:55:58.080 | H33: =G33 -> 1994-06-17T23:55:58.080 | S33: 2023-02-25 | T33: =T34+168 -> 2023-02-25 | Z33: =Z32+1 -> 1 | AA33: =AA32+1 -> 3
A34: =A33-A$27 -> 1931-09-04T21:03:44.640 | B34: =B33-B$27 -> 1931-09-04T21:03:44.640 | F34: =F33-F$27 -> 1980-11-06T23:51:56.160 | G34: =G33-G$27 -> 1980-11-06T23:51:56.160 | S34: 2022-09-10 | T34: =S35+168 -> 2022-09-10 | Z34: 2 | AA34: 4
A35: =A34-A$27+(4000*365.242189) -> 5898-06-06T01:44:15.360 | B35: 5898 06 06 | C35: =LEFT(B35,4)-4000 -> 1898 | D35: =MID(B35,6,2) -> 06 | E35: =RIGHT(B35,2) -> 06 | F35: =F34-F$27+(4000*365.242189) -> 5967-03-28T17:56:32.640 | G35: 5967 03 28 | H35: =LEFT(G35,4)-4000 -> 1967 | I35: =MID(G35,6,2) -> 03 | J35: =RIGHT(G35,2) -> 28 | S35: =S34-168 -> 2022-03-26 | W35: 1900-01-08 | X35: 7 | Y35: =Y34+1 -> 1 | Z35: 3 | AA35: 5
A36: =A35-A$27 -> 5865-03-09T12:16:07.680 | B36: 5865 03 09 | C36: 1865 | D36: 03 | E36: 09 | F36: =F35-F$27 -> 5953-08-17T17:52:30.720 | G36: 5953 08 17 | H36: 1953 | I36: 08 | J36: 17 | S36: 2021-10-09 | W36: 1900-01-09 | X36: 1 | Y36: 2 | Z36: 4 | AA36: 6
A37: 5831-12-11T22:48:00 | B37: 5831 12 11 | C37: 1831 | D37: 12 | E37: 11 | F37: 5940-01-07T17:48:28.800 | G37: 5940 01 07 | H37: 1940 | I37: 01 | J37: 07 | S37: 2021-04-24 | W37: =W36+1 -> 1900-01-10 | X37: =X36+1 -> 2 | Y37: 3 | Z37: 5 | AA37: 7
A38: 5798-09-13T09:19:52.320 | B38: 5798 09 13 | C38: 1798 | D38: 09 | E38: 13 | F38: 5926-05-29T17:44:26.880 | G38: 5926 05 29 | H38: 1926 | I38: 05 | J38: 29 | S38: 2020-11-07 | W38: =W37+1 -> 1900-01-11 | X38: =X37+1 -> 3 | Y38: 4 | Z38: 6 | AA38: 1
A39: 5765-06-16T19:51:44.640 | B39: 5765 06 16 | C39: 1765 | D39: 06 | E39: 16 | F39: 5912-10-18T17:40:24.960 | G39: 5912 10 18 | H39: 1912 | I39: 10 | J39: 18 | S39: 2020-05-23 | W39: 1900-01-12 | X39: 4 | Y39: 5 | Z39: 7 | AA39: 2
A40: 5732-03-20T06:23:36.960 | B40: 5732 03 20 | C40: 1732 | D40: 03 | E40: 20 | F40: 5899-03-09T17:36:23.040 | G40: 5899 03 09 | H40: 1899 | I40: 03 | J40: 09 | S40: 2019-12-07 | W40: 1900-01-13 | X40: 5 | Y40: 6 | Z40: 1 | AA40: 3 | AB40: 1
A41: 5698-12-21T16:55:29.280 | B41: 5698 12 21 | C41: 1698 | D41: 12 | E41: 21 | F41: 5885-07-29T17:32:21.120 | G41: 5885 07 29 | H41: 1885 | I41: 07 | J41: 29 | S41: 2019-06-22 | W41: 1900-01-14 | X41: 6 | Y41: 7 | Z41: =Z40+1 -> 2 | AA41: 4 | AB41: =AB40+1 -> 2 | AC41: 1
A42: 5665-09-24T03:27:21.600 | B42: 5665 09 24 | C42: 1665 | D42: 09 | E42: 24 | F42: 5871-12-19T17:28:19.200 | G42: 5871 12 19 | H42: 1871 | I42: 12 | J42: 19 | S42: 2019-01-05 | W42: 1900-01-15 | X42: 7 | Y42: 1 | Z42: =Z41+1 -> 3 | AA42: 5 | AB42: =AB41+1 -> 3 | AC42: =AC41+1 -> 2
A43: 5632-06-27T13:59:13.920 | B43: 5632 06 27 | C43: 1632 | D43: 06 | E43: 27 | F43: 5858-05-10T17:24:17.280 | G43: 5858 05 10 | H43: 1858 | I43: 05 | J43: 10 | S43: 2018-07-21 | W43: 1900-01-16 | X43: sun | Y43: mon | Z43: wed | AA43: fri
A44: 5599-04-01T00:31:06.240 | B44: 5599 04 01 | C44: 1599 | D44: 04 | E44: 01 | F44: 5844-09-29T17:20:15.360 | G44: 5844 09 29 | H44: 1844 | I44: 09 | J44: 29 | S44: 2018-02-03 | W44: =W43+1 -> 1900-01-17
A45: 5566-01-02T11:02:58.560 | B45: 5566 01 02 | C45: 1566 | D45: 01 | E45: 02 | F45: 5831-02-19T17:16:13.440 | G45: 5831 02 19 | H45: 1831 | I45: 02 | J45: 19 | S45: 2017-08-19 | W45: =W44+1 -> 1900-01-18
A46: 5532-10-05T21:34:50.880 | B46: 5532 10 05 | C46: 1532 | D46: 10 | E46: 05 | F46: 5817-07-11T17:12:11.520 | G46: 5817 07 11 | H46: 1817 | I46: 07 | J46: 11 | S46: 2017-03-04 | W46: =W45+1 -> 1900-01-19
A47: 5499-07-09T08:06:43.200 | B47: 5499 07 09 | C47: 1499 | D47: 07 | E47: 09 | F47: 5803-12-01T17:08:09.600 | G47: 5803 12 01 | H47: 1803 | I47: 12 | J47: 01 | S47: 2016-09-17 | W47: =W46+1 -> 1900-01-20
A48: 5466-04-11T18:38:35.520 | B48: 5466 04 11 | C48: 1466 | D48: 04 | E48: 11 | F48: 5790-04-21T17:04:07.680 | G48: 5790 04 21 | H48: 1790 | I48: 04 | J48: 21 | S48: 2016-04-02 | W48: =W47+1 -> 1900-01-21 | X48: fri | Y48: sat | Z48: mon | AA48: wed
A49: 5433-01-13T05:10:27.839 | B49: 5433 01 13 | C49: 1433 | D49: 01 | E49: 13 | F49: 5776-09-10T17:00:05.760 | G49: 5776 09 10 | H49: 1776 | I49: 09 | J49: 10 | S49: 2015-10-17
A50: 5399-10-16T15:42:20.159 | B50: 5399 10 16 | C50: 1399 | D50: 10 | E50: 16 | F50: 5763-01-31T16:56:03.840 | G50: 5763 01 31 | H50: 1763 | I50: 01 | J50: 31 | S50: 2015-05-02 | X50: 2022-10-29 | Y50: =X50-X51 -> 49
A51: 5366-07-20T02:14:12.479 | B51: 5366 07 20 | C51: 1366 | D51: 07 | E51: 20 | F51: 5749-06-22T16:52:01.920 | G51: 5749 06 22 | H51: 1749 | I51: 06 | J51: 22 | S51: 2014-11-15 | X51: 2022-09-10
A52: 5333-04-22T12:46:04.799 | B52: 5333 04 22 | C52: 1333 | D52: 04 | E52: 22 | F52: 5735-11-12T16:48:00 | G52: 5735 11 12 | H52: 1735 | I52: 11 | J52: 12 | S52: 2014-05-31
A53: 5300-01-23T23:17:57.119 | B53: 5300 01 23 | C53: 1300 | D53: 01 | E53: 23 | F53: 5722-04-03T16:43:58.080 | G53: 5722 04 03 | H53: 1722 | I53: 04 | J53: 03 | S53: 2013-12-14
A54: 5266-10-27T09:49:49.439 | B54: 5266 10 27 | C54: 1266 | D54: 10 | E54: 27 | F54: 5708-08-23T16:39:56.160 | G54: 5708 08 23 | H54: 1708 | I54: 08 | J54: 23 | S54: 2013-06-29
A55: 5233-07-30T20:21:41.759 | B55: 5233 07 30 | C55: 1233 | D55: 07 | E55: 30 | F55: 5695-01-12T16:35:54.240 | G55: 5695 01 12 | H55: 1695 | I55: 01 | J55: 12 | S55: 2013-01-12
A56: 5200-05-03T06:53:34.079 | B56: 5200 05 03 | C56: 1200 | D56: 05 | E56: 03 | F56: 5681-06-03T16:31:52.320 | G56: 5681 06 03 | H56: 1681 | I56: 06 | J56: 03 | S56: 2012-07-28 | U56: 2022-09-10 | W56: 2023-02-25 | X56: 2023-08-12 | Y56: 2024-01-27 | Z56: 2024-07-13 | AA56: 2024-12-28
A57: 5167-02-04T17:25:26.399 | B57: 5167 02 04 | C57: 1167 | D57: 02 | E57: 04 | F57: 5667-10-24T16:27:50.400 | G57: 5667 10 24 | H57: 1667 | I57: 10 | J57: 24 | S57: 2012-02-11 | U57: =W56-U56 -> 168 | W57: =X56-W56 -> 1900-06-16 | X57: =Y56-X56 -> 168 | Y57: =Z56-Y56 -> 168 | Z57: =AA56-Z56 -> 168
A58: 5133-11-08T03:57:18.719 | B58: 5133 11 08 | C58: 1133 | D58: 11 | E58: 08 | F58: 5654-03-15T16:23:48.480 | G58: 5654 03 15 | H58: 1654 | I58: 03 | J58: 15 | S58: 2011-08-27
A59: 5100-08-11T14:29:11.039 | B59: 5100 08 11 | C59: 1100 | D59: 08 | E59: 11 | F59: 5640-08-04T16:19:46.560 | G59: 5640 08 04 | H59: 1640 | I59: 08 | J59: 04 | S59: 2011-03-12
A60: 5067-05-15T01:01:03.359 | B60: 5067 05 15 | C60: 1067 | D60: 05 | E60: 15 | F60: 5626-12-25T16:15:44.640 | G60: 5626 12 25 | H60: 1626 | I60: 12 | J60: 25 | S60: 2010-09-25
A61: 5034-02-15T11:32:55.679 | B61: 5034 02 15 | C61: 1034 | D61: 02 | E61: 15 | F61: 5613-05-16T16:11:42.720 | G61: 5613 05 16 | H61: 1613 | I61: 05 | J61: 16 | S61: 2010-04-10
A62: 5000-11-18T22:04:47.999 | B62: 5000 11 18 | C62: 1000 | D62: 11 | E62: 18 | F62: 5599-10-06T16:07:40.800 | G62: 5599 10 06 | H62: 1599 | I62: 10 | J62: 06 | S62: 2009-10-24 | T62: 2024-12-28 | U62: 2024-07-13 | W62: 2024-01-27 | X62: 2023-08-12 | Y62: 2023-02-25 | Z62: 2022-09-10 | AA62: =Z62-168 -> 2022-03-26
A63: 4967-08-22T08:36:40.319 | B63: 4967 08 22 | C63: 967 | D63: 08 | E63: 22 | F63: 5586-02-25T16:03:38.880 | G63: 5586 02 25 | H63: 1586 | I63: 02 | J63: 25 | S63: 2009-05-09 | T63: =T62-168 -> 2024-07-13
A64: 4934-05-25T19:08:32.639 | B64: 4934 05 25 | C64: 934 | D64: 05 | E64: 25 | F64: 5572-07-17T15:59:36.960 | G64: 5572 07 17 | H64: 1572 | I64: 07 | J64: 17 | S64: 2008-11-22
A65: 4901-02-26T05:40:24.959 | B65: 4901 02 26 | C65: 901 | D65: 02 | E65: 26 | F65: 5558-12-07T15:55:35.040 | G65: 5558 12 07 | H65: 1558 | I65: 12 | J65: 07 | S65: 2008-06-07
A66: 4867-11-29T16:12:17.279 | B66: 4867 11 29 | C66: 867 | D66: 11 | E66: 29 | F66: 5545-04-28T15:51:33.120 | G66: 5545 04 28 | H66: 1545 | I66: 04 | J66: 28 | S66: 2007-12-22
A67: 4834-09-02T02:44:09.599 | B67: 4834 09 02 | C67: =LEFT(B67,4)-4000 -> 834 | D67: =MID(B67,6,2) -> 09 | E67: =RIGHT(B67,2) -> 02 | F67: 5531-09-18T15:47:31.200 | G67: 5531 09 18 | H67: =LEFT(G67,4)-4000 -> 1531 | I67: =MID(G67,6,2) -> 09 | J67: =RIGHT(G67,2) -> 18 | S67: =S66-168 -> 2007-07-07
A68: =A67-A$27 -> 4801-06-05T13:16:01.919 | B68: 4801 06 05 | C68: 801 | D68: 06 | E68: 05 | F68: =F67-F$27 -> 5518-02-07T15:43:29.280 | G68: 5518 02 07 | H68: 1518 | I68: 02 | J68: 07 | S68: 2007-01-20
A69: 4768-03-08T23:47:54.239 | B69: 4768 03 08 | C69: 768 | D69: 03 | E69: 08 | F69: 5504-06-29T15:39:27.360 | G69: 5504 06 29 | H69: 1504 | I69: 06 | J69: 29 | S69: 2006-08-05
A70: 4734-12-11T10:19:46.559 | B70: 4734 12 11 | C70: 734 | D70: 12 | E70: 11 | F70: 5490-11-18T15:35:25.440 | G70: 5490 11 18 | H70: 1490 | I70: 11 | J70: 18 | S70: 2006-02-18
A71: 4701-09-13T20:51:38.879 | B71: 4701 09 13 | C71: 701 | D71: 09 | E71: 13 | F71: 5477-04-09T15:31:23.520 | G71: 5477 04 09 | H71: 1477 | I71: 04 | J71: 09 | S71: 2005-09-03
A72: 4668-06-16T07:23:31.199 | B72: 4668 06 16 | C72: 668 | D72: 06 | E72: 16 | F72: 5463-08-30T15:27:21.600 | G72: 5463 08 30 | H72: 1463 | I72: 08 | J72: 30 | S72: 2005-03-19
A73: 4635-03-20T17:55:23.519 | B73: 4635 03 20 | C73: 635 | D73: 03 | E73: 20 | F73: 5450-01-19T15:23:19.680 | G73: 5450 01 19 | H73: 1450 | I73: 01 | J73: 19 | S73: 2004-10-02
A74: 4601-12-22T04:27:15.839 | B74: 4601 12 22 | C74: 601 | D74: 12 | E74: 22 | F74: 5436-06-10T15:19:17.760 | G74: 5436 06 10 | H74: 1436 | I74: 06 | J74: 10 | S74: 2004-04-17
A75: 4568-09-23T14:59:08.159 | B75: 4568 09 23 | C75: 568 | D75: 09 | E75: 23 | F75: 5422-10-31T15:15:15.840 | G75: 5422 10 31 | H75: 1422 | I75: 10 | J75: 31 | S75: 2003-11-01
A76: 4535-06-28T01:31:00.479 | B76: 4535 06 28 | C76: 535 | D76: 06 | E76: 28 | F76: 5409-03-22T15:11:13.920 | G76: 5409 03 22 | H76: 1409 | I76: 03 | J76: 22 | S76: 2003-05-17
A77: 4502-03-31T12:02:52.799 | B77: 4502 03 31 | C77: 502 | D77: 03 | E77: 31 | F77: 5395-08-11T15:07:12 | G77: 5395 08 11 | H77: 1395 | I77: 08 | J77: 11 | S77: 2002-11-30
A78: 4468-12-31T22:34:45.119 | B78: 4468 12 31 | C78: 468 | D78: 12 | E78: 31 | F78: 5381-12-31T15:03:10.080 | G78: 5381 12 31 | H78: 1381 | I78: 12 | J78: 31 | S78: 2002-06-15
A79: 4435-10-05T09:06:37.439 | B79: 4435 10 05 | C79: 435 | D79: 10 | E79: 05 | F79: 5368-05-22T14:59:08.160 | G79: 5368 05 22 | H79: 1368 | I79: 05 | J79: 22 | S79: 2001-12-29
A80: 4402-07-08T19:38:29.759 | B80: 4402 07 08 | C80: 402 | D80: 07 | E80: 08 | F80: 5354-10-12T14:55:06.240 | G80: 5354 10 12 | H80: 1354 | I80: 10 | J80: 12 | S80: 2001-07-14
A81: 4369-04-11T06:10:22.079 | B81: 4369 04 11 | C81: 369 | D81: 04 | E81: 11 | F81: 5341-03-03T14:51:04.320 | G81: 5341 03 03 | H81: 1341 | I81: 03 | J81: 03 | S81: 2001-01-27
A82: 4336-01-13T16:42:14.399 | B82: 4336 01 13 | C82: 336 | D82: 01 | E82: 13 | F82: 5327-07-24T14:47:02.400 | G82: 5327 07 24 | H82: 1327 | I82: 07 | J82: 24 | S82: 2000-08-12
A83: 4302-10-17T03:14:06.718 | B83: 4302 10 17 | C83: 302 | D83: 10 | E83: 17 | F83: 5313-12-13T14:43:00.480 | G83: 5313 12 13 | H83: 1313 | I83: 12 | J83: 13 | S83: 2000-02-26
A84: 4269-07-19T13:45:59.038 | B84: 4269 07 19 | C84: 269 | D84: 07 | E84: 19 | F84: 5300-05-04T14:38:58.560 | G84: 5300 05 04 | H84: 1300 | I84: 05 | J84: 04 | S84: 1999-09-11
A85: 4236-04-22T00:17:51.358 | B85: 4236 04 22 | C85: 236 | D85: 04 | E85: 22 | F85: 5286-09-23T14:34:56.640 | G85: 5286 09 23 | H85: 1286 | I85: 09 | J85: 23 | S85: 1999-03-27
A86: 4203-01-24T10:49:43.678 | B86: 4203 01 24 | C86: 203 | D86: 01 | E86: 24 | F86: 5273-02-12T14:30:54.720 | G86: 5273 02 12 | H86: 1273 | I86: 02 | J86: 12 | S86: 1998-10-10
A87: 4169-10-26T21:21:35.998 | B87: 4169 10 26 | C87: 169 | D87: 10 | E87: 26 | F87: 5259-07-05T14:26:52.800 | G87: 5259 07 05 | H87: 1259 | I87: 07 | J87: 05 | S87: 1998-04-25
A88: 4136-07-30T07:53:28.318 | B88: 4136 07 30 | C88: 136 | D88: 07 | E88: 30 | F88: 5245-11-24T14:22:50.880 | G88: 5245 11 24 | H88: 1245 | I88: 11 | J88: 24 | S88: 1997-11-08
A89: 4103-05-03T18:25:20.638 | B89: 4103 05 03 | C89: 103 | D89: 05 | E89: 03 | F89: 5232-04-15T14:18:48.960 | G89: 5232 04 15 | H89: 1232 | I89: 04 | J89: 15 | S89: 1997-05-24
A90: 4070-02-03T04:57:12.958 | B90: 4070 02 03 | C90: 70 | D90: 02 | E90: 03 | F90: 5218-09-05T14:14:47.040 | G90: 5218 09 05 | H90: 1218 | I90: 09 | J90: 05 | S90: 1996-12-07
A91: 4036-11-06T15:29:05.278 | B91: 4036 11 06 | C91: 36 | D91: 11 | E91: 06 | F91: 5205-01-25T14:10:45.120 | G91: 5205 01 25 | H91: 1205 | I91: 01 | J91: 25 | S91: 1996-06-22
A92: 4003-08-11T02:00:57.598 | B92: 4003 08 11 | C92: 3 | D92: 08 | E92: 11 | F92: 5191-06-17T14:06:43.201 | G92: 5191 06 17 | H92: 1191 | I92: 06 | J92: 17 | S92: 1996-01-06
A93: 3970-05-14T12:32:49.918 | B93: 3970 05 14 | C93: -30 | D93: 05 | E93: 14 | F93: 5177-11-06T14:02:41.281 | G93: 5177 11 06 | H93: 1177 | I93: 11 | J93: 06 | S93: 1995-07-22
A94: 3937-02-14T23:04:42.238 | B94: 3937 02 14 | C94: -63 | D94: 02 | E94: 14 | F94: 5164-03-28T13:58:39.361 | G94: 5164 03 28 | H94: 1164 | I94: 03 | J94: 28 | S94: 1995-02-04
A95: 3903-11-19T09:36:34.558 | B95: 3903 11 19 | C95: -97 | D95: 11 | E95: 19 | F95: 5150-08-18T13:54:37.441 | G95: 5150 08 18 | H95: 1150 | I95: 08 | J95: 18 | S95: 1994-08-20
A96: 3870-08-21T20:08:26.878 | B96: 3870 08 21 | C96: -130 | D96: 08 | E96: 21 | F96: 5137-01-07T13:50:35.521 | G96: 5137 01 07 | H96: 1137 | I96: 01 | J96: 07 | S96: 1994-03-05
A97: 3837-05-25T06:40:19.198 | B97: 3837 05 25 | C97: -163 | D97: 05 | E97: 25 | F97: 5123-05-30T13:46:33.601 | G97: 5123 05 30 | H97: 1123 | I97: 05 | J97: 30 | S97: 1993-09-18
A98: 3804-02-26T17:12:11.518 | B98: 3804 02 26 | C98: -196 | D98: 02 | E98: 26 | F98: 5109-10-19T13:42:31.681 | G98: 5109 10 19 | H98: 1109 | I98: 10 | J98: 19 | S98: 1993-04-03
A99: 3770-11-29T03:44:03.838 | B99: 3770 11 29 | C99: =LEFT(B99,4)-4000 -> -230 | D99: =MID(B99,6,2) -> 11 | E99: =RIGHT(B99,2) -> 29 | F99: 5096-03-09T13:38:29.761 | G99: 5096 03 09 | H99: =LEFT(G99,4)-4000 -> 1096 | I99: =MID(G99,6,2) -> 03 | J99: =RIGHT(G99,2) -> 09 | S99: 1992-10-17
A100: =A99-A$27 -> 3737-09-01T14:15:56.158 | B100: 3737 09 01 | C100: -263 | D100: 09 | E100: 01 | F100: =F99-F$27 -> 5082-07-30T13:34:27.841 | G100: 5082 07 30 | H100: 1082 | I100: 07 | J100: 30 | S100: =S99-168 -> 1992-05-02
A101: 3704-06-05T00:47:48.478 | B101: 3704 06 05 | C101: -296 | D101: 06 | E101: 05 | F101: 5068-12-19T13:30:25.921 | G101: 5068 12 19 | H101: 1068 | I101: 12 | J101: 19 | S101: 1991-11-16
A102: 3671-03-08T11:19:40.798 | B102: 3671 03 08 | C102: -329 | D102: 03 | E102: 08 | F102: 5055-05-11T13:26:24.001 | G102: 5055 05 11 | H102: 1055 | I102: 05 | J102: 11 | S102: 1991-06-01
A103: 3637-12-09T21:51:33.118 | B103: 3637 12 09 | C103: -363 | D103: 12 | E103: 09 | F103: 5041-09-30T13:22:22.081 | G103: 5041 09 30 | H103: 1041 | I103: 09 | J103: 30 | S103: 1990-12-15
A104: 3604-09-12T08:23:25.438 | B104: 3604 09 12 | C104: -396 | D104: 09 | E104: 12 | F104: 5028-02-20T13:18:20.161 | G104: 5028 02 20 | H104: 1028 | I104: 02 | J104: 20 | S104: 1990-06-30
A105: 3571-06-16T18:55:17.758 | B105: 3571 06 16 | C105: -429 | D105: 06 | E105: 16 | F105: 5014-07-12T13:14:18.241 | G105: 5014 07 12 | H105: 1014 | I105: 07 | J105: 12 | S105: 1990-01-13
A106: 3538-03-20T05:27:10.078 | B106: 3538 03 20 | C106: -462 | D106: 03 | E106: 20 | F106: 5000-12-01T13:10:16.321 | G106: 5000 12 01 | H106: 1000 | I106: 12 | J106: 01 | S106: 1989-07-29
A107: 3504-12-21T15:59:02.398 | B107: 3504 12 21 | C107: -496 | D107: 12 | E107: 21 | F107: 4987-04-22T13:06:14.401 | G107: 4987 04 22 | H107: 987 | I107: 04 | J107: 22 | S107: 1989-02-11
A108: 3471-09-24T02:30:54.718 | B108: 3471 09 24 | C108: -529 | D108: 09 | E108: 24 | F108: 4973-09-11T13:02:12.481 | G108: 4973 09 11 | H108: 973 | I108: 09 | J108: 11 | S108: 1988-08-27
A109: 3438-06-27T13:02:47.038 | B109: 3438 06 27 | C109: -562 | D109: 06 | E109: 27 | F109: 4960-02-01T12:58:10.561 | G109: 4960 02 01 | H109: 960 | I109: 02 | J109: 01 | S109: 1988-03-12
A110: 3405-03-30T23:34:39.358 | B110: 3405 03 30 | C110: -595 | D110: 03 | E110: 30 | F110: 4946-06-23T12:54:08.641 | G110: 4946 06 23 | H110: 946 | I110: 06 | J110: 23 | S110: 1987-09-26
A111: 3372-01-01T10:06:31.678 | B111: 3372 01 01 | C111: -628 | D111: 01 | E111: 01 | F111: 4932-11-12T12:50:06.721 | G111: 4932 11 12 | H111: 932 | I111: 11 | J111: 12 | S111: 1987-04-11
A112: 3338-10-04T20:38:23.998 | B112: 3338 10 04 | C112: -662 | D112: 10 | E112: 04 | F112: 4919-04-04T12:46:04.801 | G112: 4919 04 04 | H112: 919 | I112: 04 | J112: 04 | S112: 1986-10-25
A113: 3305-07-08T07:10:16.318 | B113: 3305 07 08 | C113: -695 | D113: 07 | E113: 08 | F113: 4905-08-24T12:42:02.881 | G113: 4905 08 24 | H113: 905 | I113: 08 | J113: 24 | S113: 1986-05-10
A114: 3272-04-09T17:42:08.638 | B114: 3272 04 09 | C114: -728 | D114: 04 | E114: 09 | F114: 4892-01-13T12:38:00.961 | G114: 4892 01 13 | H114: 892 | I114: 01 | J114: 13 | S114: 1985-11-23
A115: 3239-01-12T04:14:00.958 | B115: 3239 01 12 | C115: -761 | D115: 01 | E115: 12 | F115: 4878-06-04T12:33:59.041 | G115: 4878 06 04 | H115: 878 | I115: 06 | J115: 04 | S115: 1985-06-08
A116: 3205-10-15T14:45:53.277 | B116: 3205 10 15 | C116: -795 | D116: 10 | E116: 15 | F116: 4864-10-24T12:29:57.121 | G116: 4864 10 24 | H116: 864 | I116: 10 | J116: 24 | S116: 1984-12-22
A117: 3172-07-19T01:17:45.597 | B117: 3172 07 19 | C117: -828 | D117: 07 | E117: 19 | F117: 4851-03-16T12:25:55.201 | G117: 4851 03 16 | H117: 851 | I117: 03 | J117: 16 | S117: 1984-07-07
A118: 3139-04-22T11:49:37.917 | B118: 3139 04 22 | C118: -861 | D118: 04 | E118: 22 | F118: 4837-08-05T12:21:53.281 | G118: 4837 08 05 | H118: 837 | I118: 08 | J118: 05 | S118: 1984-01-21
A119: 3106-01-23T22:21:30.237 | B119: 3106 01 23 | C119: -894 | D119: 01 | E119: 23 | F119: 4823-12-26T12:17:51.361 | G119: 4823 12 26 | H119: 823 | I119: 12 | J119: 26 | S119: 1983-08-06
A120: 3072-10-26T08:53:22.557 | B120: 3072 10 26 | C120: -928 | D120: 10 | E120: 26 | F120: 4810-05-17T12:13:49.441 | G120: 4810 05 17 | H120: 810 | I120: 05 | J120: 17 | S120: 1983-02-19
A121: 3039-07-30T19:25:14.877 | B121: 3039 07 30 | C121: -961 | D121: 07 | E121: 30 | F121: 4796-10-06T12:09:47.521 | G121: 4796 10 06 | H121: 796 | I121: 10 | J121: 06 | S121: 1982-09-04
A122: 3006-05-03T05:57:07.197 | B122: 3006 05 03 | C122: -994 | D122: 05 | E122: 03 | F122: 4783-02-26T12:05:45.601 | G122: 4783 02 26 | H122: 783 | I122: 02 | J122: 26 | S122: 1982-03-20
A123: 2973-02-02T16:28:59.517 | B123: 2973 02 02 | C123: -1027 | D123: 02 | E123: 02 | F123: 4769-07-18T12:01:43.681 | G123: 4769 07 18 | H123: 769 | I123: 07 | J123: 18 | S123: 1981-10-03
A124: 2939-11-07T03:00:51.837 | B124: 2939 11 07 | C124: -1061 | D124: 11 | E124: 07 | F124: 4755-12-08T11:57:41.761 | G124: 4755 12 08 | H124: 755 | I124: 12 | J124: 08 | S124: 1981-04-18
A125: 2906-08-10T13:32:44.157 | B125: 2906 08 10 | C125: -1094 | D125: 08 | E125: 10 | F125: 4742-04-29T11:53:39.841 | G125: 4742 04 29 | H125: 742 | I125: 04 | J125: 29 | S125: 1980-11-01
A126: 2873-05-13T00:04:36.477 | B126: 2873 05 13 | C126: -1127 | D126: 05 | E126: 13 | F126: 4728-09-18T11:49:37.921 | G126: 4728 09 18 | H126: 728 | I126: 09 | J126: 18 | S126: 1980-05-17
A127: 2840-02-14T10:36:28.797 | B127: 2840 02 14 | C127: -1160 | D127: 02 | E127: 14 | F127: 4715-02-08T11:45:36.001 | G127: 4715 02 08 | H127: 715 | I127: 02 | J127: 08 | S127: 1979-12-01
A128: 2806-11-17T21:08:21.117 | B128: 2806 11 17 | C128: -1194 | D128: 11 | E128: 17 | F128: 4701-06-30T11:41:34.081 | G128: 4701 06 30 | H128: 701 | I128: 06 | J128: 30 | S128: 1979-06-16
A129: 2773-08-21T07:40:13.437 | B129: 2773 08 21 | C129: -1227 | D129: 08 | E129: 21 | F129: 4687-11-19T11:37:32.161 | G129: 4687 11 19 | H129: 687 | I129: 11 | J129: 19 | S129: 1978-12-30
A130: 2740-05-24T18:12:05.757 | B130: 2740 05 24 | C130: -1260 | D130: 05 | E130: 24 | F130: 4674-04-10T11:33:30.241 | G130: 4674 04 10 | H130: 674 | I130: 04 | J130: 10 | S130: 1978-07-15
A131: 2707-02-26T04:43:58.077 | B131: 2707 02 26 | C131: =LEFT(B131,4)-4000 -> -1293 | D131: =MID(B131,6,2) -> 02 | E131: =RIGHT(B131,2) -> 26 | F131: 4660-08-30T11:29:28.321 | G131: 4660 08 30 | H131: =LEFT(G131,4)-4000 -> 660 | I131: =MID(G131,6,2) -> 08 | J131: =RIGHT(G131,2) -> 30 | S131: 1978-01-28
A132: =A131-A$27 -> 2673-11-28T15:15:50.397 | B132: 2673 11 28 | C132: -1327 | D132: 11 | E132: 28 | F132: =F131-F$27 -> 4647-01-20T11:25:26.401 | G132: 4647 01 20 | H132: 647 | I132: 01 | J132: 20 | S132: 1977-08-13
A133: 2640-09-01T01:47:42.717 | B133: 2640 09 01 | C133: -1360 | D133: 09 | E133: 01 | F133: 4633-06-11T11:21:24.481 | G133: 4633 06 11 | H133: 633 | I133: 06 | J133: 11 | S133: 1977-02-26
A134: 2607-06-05T12:19:35.037 | B134: 2607 06 05 | C134: -1393 | D134: 06 | E134: 05 | F134: 4619-11-01T11:17:22.561 | G134: 4619 11 01 | H134: 619 | I134: 11 | J134: 01 | S134: 1976-09-11
A135: 2574-03-07T22:51:27.357 | B135: 2574 03 07 | C135: -1426 | D135: 03 | E135: 07 | F135: 4606-03-23T11:13:20.641 | G135: 4606 03 23 | H135: 606 | I135: 03 | J135: 23 | S135: 1976-03-27
A136: 2540-12-09T09:23:19.677 | B136: 2540 12 09 | C136: -1460 | D136: 12 | E136: 09 | F136: 4592-08-11T11:09:18.721 | G136: 4592 08 11 | H136: 592 | I136: 08 | J136: 11 | S136: 1975-10-11
A137: 2507-09-12T19:55:11.997 | B137: 2507 09 12 | C137: -1493 | D137: 09 | E137: 12 | F137: 4579-01-01T11:05:16.801 | G137: 4579 01 01 | H137: 579 | I137: 01 | J137: 01 | S137: 1975-04-26
A138: 2474-06-15T06:27:04.317 | B138: 2474 06 15 | C138: -1526 | D138: 06 | E138: 15 | F138: 4565-05-23T11:01:14.881 | G138: 4565 05 23 | H138: 565 | I138: 05 | J138: 23 | S138: 1974-11-09
A139: 2441-03-18T16:58:56.637 | B139: 2441 03 18 | C139: -1559 | D139: 03 | E139: 18 | F139: 4551-10-13T10:57:12.961 | G139: 4551 10 13 | H139: 551 | I139: 10 | J139: 13 | S139: 1974-05-25
A140: 2407-12-21T03:30:48.957 | B140: 2407 12 21 | C140: -1593 | D140: 12 | E140: 21 | F140: 4538-03-04T10:53:11.041 | G140: 4538 03 04 | H140: 538 | I140: 03 | J140: 04 | S140: 1973-12-08
A141: 2374-09-23T14:02:41.277 | B141: 2374 09 23 | C141: -1626 | D141: 09 | E141: 23 | F141: 4524-07-24T10:49:09.121 | G141: 4524 07 24 | H141: 524 | I141: 07 | J141: 24 | S141: 1973-06-23
A142: 2341-06-27T00:34:33.597 | B142: 2341 06 27 | C142: -1659 | D142: 06 | E142: 27 | F142: 4510-12-14T10:45:07.201 | G142: 4510 12 14 | H142: 510 | I142: 12 | J142: 14 | S142: 1973-01-06
A143: 2308-03-30T11:06:25.917 | B143: 2308 03 30 | C143: -1692 | D143: 03 | E143: 30 | F143: 4497-05-04T10:41:05.281 | G143: 4497 05 04 | H143: 497 | I143: 05 | J143: 04 | S143: 1972-07-22
A144: 2274-12-31T21:38:18.237 | B144: 2274 12 31 | C144: -1726 | D144: 12 | E144: 31 | F144: 4483-09-24T10:37:03.361 | G144: 4483 09 24 | H144: 483 | I144: 09 | J144: 24 | S144: 1972-02-05
A145: 2241-10-04T08:10:10.557 | B145: 2241 10 04 | C145: -1759 | D145: 10 | E145: 04 | F145: 4470-02-13T10:33:01.441 | G145: 4470 02 13 | H145: 470 | I145: 02 | J145: 13 | S145: 1971-08-21
A146: 2208-07-07T18:42:02.877 | B146: 2208 07 07 | C146: -1792 | D146: 07 | E146: 07 | F146: 4456-07-05T10:28:59.521 | G146: 4456 07 05 | H146: 456 | I146: 07 | J146: 05 | S146: 1971-03-06
A147: 2175-04-10T05:13:55.197 | B147: 2175 04 10 | C147: -1825 | D147: 04 | E147: 10 | F147: 4442-11-25T10:24:57.601 | G147: 4442 11 25 | H147: 442 | I147: 11 | J147: 25 | S147: 1970-09-19
A148: 2142-01-11T15:45:47.517 | B148: 2142 01 11 | C148: -1858 | D148: 01 | E148: 11 | F148: 4429-04-16T10:20:55.681 | G148: 4429 04 16 | H148: 429 | I148: 04 | J148: 16 | S148: 1970-04-04
A149: 2108-10-15T02:17:39.837 | B149: 2108 10 15 | C149: -1892 | D149: 10 | E149: 15 | F149: 4415-09-06T10:16:53.761 | G149: 4415 09 06 | H149: 415 | I149: 09 | J149: 06 | S149: 1969-10-18
A150: 2075-07-18T12:49:32.156 | B150: 2075 07 18 | C150: -1925 | D150: 07 | E150: 18 | F150: 4402-01-26T10:12:51.841 | G150: 4402 01 26 | H150: 402 | I150: 01 | J150: 26 | S150: 1969-05-03
A151: 2042-04-20T23:21:24.476 | B151: 2042 04 20 | C151: -1958 | D151: 04 | E151: 20 | F151: 4388-06-17T10:08:49.921 | G151: 4388 06 17 | H151: 388 | I151: 06 | J151: 17 | S151: 1968-11-16
A152: 2009-01-22T09:53:16.796 | B152: 2009 01 22 | C152: -1991 | D152: 01 | E152: 22 | F152: 4374-11-07T10:04:48.001 | G152: 4374 11 07 | H152: 374 | I152: 11 | J152: 07 | S152: 1968-06-01
A153: 1975-10-26T20:25:09.116 | B153: 1975 10 26 | C153: -2025 | D153: 10 | E153: 26 | F153: 4361-03-29T10:00:46.081 | G153: 4361 03 29 | H153: 361 | I153: 03 | J153: 29 | S153: 1967-12-16 | U153: 1P/Halley's Comet… | V153: https://science.nasa.gov/solar-system/comets/1p-halley/
F154: 4347-08-19T09:56:44.161 | G154: 4347 08 19 | H154: 347 | I154: 08 | J154: 19 | S154: 1967-07-01 | U154: 1P/Halley's Comet… | V154: https://en.wikipedia.org/wiki/Halley%27s_Comet
F155: 4334-01-08T09:52:42.241 | G155: 4334 01 08 | H155: 334 | I155: 01 | J155: 08 | S155: 1967-01-14 | U155: 1P/Halley's Comet… | V155: https://www.google.com/search?client=firefox-b-d&q=historical+sightings+of+1P%2FHalley%27s+Comet
F156: 4320-05-30T09:48:40.321 | G156: 4320 05 30 | H156: 320 | I156: 05 | J156: 30 | S156: 1966-07-30 | U156: 1P/Halley's Comet…
A157: 1P/Halley's Comet… ==> ==> ==> | F157: 4306-10-20T09:44:38.401 | G157: 4306 10 20 | H157: 306 | I157: 10 | J157: 20 | S157: 1966-02-12 | U157: Reference | V157: Actual Observations | X157: Orbital Period
F158: 4293-03-10T09:40:36.481 | G158: 4293 03 10 | H158: 293 | I158: 03 | J158: 10 | S158: 1965-08-28 | V158: 1986-02-08 | W158: 1986
F159: 4279-07-31T09:36:34.561 | G159: 4279 07 31 | H159: 279 | I159: 07 | J159: 31 | S159: 1965-03-13 | W159: 1910 | X159: =W158-W159 -> 76
F160: 4265-12-20T09:32:32.641 | G160: 4265 12 20 | H160: 265 | I160: 12 | J160: 20 | S160: 1964-09-26 | W160: 1835 | X160: =W159-W160 -> 75
F161: 4252-05-11T09:28:30.721 | G161: 4252 05 11 | H161: 252 | I161: 05 | J161: 11 | S161: 1964-04-11 | W161: 1759 | X161: 76
F162: 4238-10-01T09:24:28.801 | G162: 4238 10 01 | H162: 238 | I162: 10 | J162: 01 | S162: 1963-10-26 | W162: 1531 | X162: 228
F163: 4225-02-20T09:20:26.881 | G163: 4225 02 20 | H163: =LEFT(G163,4)-4000 -> 225 | I163: =MID(G163,6,2) -> 02 | J163: =RIGHT(G163,2) -> 20 | S163: 1963-05-11 | W163: 1456 | X163: 75
F164: =F163-F$27 -> 4211-07-13T09:16:24.961 | G164: 4211 07 13 | H164: 211 | I164: 07 | J164: 13 | S164: =S163-168 -> 1962-11-24 | W164: 1378 | X164: 78
F165: 4197-12-01T09:12:23.041 | G165: 4197 12 01 | H165: 197 | I165: 12 | J165: 01 | S165: 1962-06-09 | U165: https://www.sciencemuseum.org.uk/objects-and-stories/halleys-comet-collisions-history | W165: 1301 | X165: 77
F166: 4184-04-22T09:08:21.121 | G166: 4184 04 22 | H166: 184 | I166: 04 | J166: 22 | S166: 1961-12-23 | U166: https://www.sciencemuseum.org.uk/objects-and-stories/halleys-comet-collisions-history | W166: 1222 | X166: 79
F167: 4170-09-12T09:04:19.201 | G167: 4170 09 12 | H167: 170 | I167: 09 | J167: 12 | S167: 1961-07-08 | W167: 1145 | X167: 77
F168: 4157-02-01T09:00:17.281 | G168: 4157 02 01 | H168: 157 | I168: 02 | J168: 01 | S168: 1961-01-21 | U168: https://www.sciencemuseum.org.uk/objects-and-stories/halleys-comet-collisions-history | W168: 1066 | X168: 79
F169: 4143-06-24T08:56:15.361 | G169: 4143 06 24 | H169: 143 | I169: 06 | J169: 24 | S169: 1960-08-06 | V169: 0837 04 10 | W169: 837 | X169: 229
U171: https://www.sciencemuseum.org.uk/objects-and-stories/halleys-comet-collisions-history | W171: 684-693
W172: 530 | X172: =W167-W172 -> 615
W173: 451 | X173: 79
F174: =F169-F$27 -> 4129-11-13T08:52:13.441 | G174: 4129 11 13 | H174: =LEFT(G174,4)-4000 -> 129 | I174: =MID(G174,6,2) -> 11 | J174: =RIGHT(G174,2) -> 13 | S174: =S169-168 -> 1960-02-20 | W174: -11 | X174: 462
F175: =F174-F$27 -> 4116-04-04T08:48:11.521 | G175: 4116 04 04 | H175: 116 | I175: 04 | J175: 04 | S175: 1959-09-05 | U175: https://www.sciencemuseum.org.uk/objects-and-stories/halleys-comet-collisions-history | W175: -86 | X175: 75
F176: 4102-08-25T08:44:09.601 | G176: 4102 08 25 | H176: 102 | I176: 08 | J176: 25 | S176: 1959-03-21 | W176: -163 | X176: 77
F177: 4089-01-13T08:40:07.681 | G177: 4089 01 13 | H177: 89 | I177: 01 | J177: 13 | S177: 1958-10-04 | U177: https://www.sciencemuseum.org.uk/objects-and-stories/halleys-comet-collisions-history | V177: 5th month of the 7th year | W177: -239 | X177: 76
F178: 4075-06-05T08:36:05.761 | G178: 4075 06 05 | H178: 75 | I178: 06 | J178: 05 | S178: 1958-04-19 | U178: https://www.sciencemuseum.org.uk/objects-and-stories/halleys-comet-collisions-history | W178: -465 | X178: 226
F179: 4061-10-25T08:32:03.841 | G179: 4061 10 25 | H179: 61 | I179: 10 | J179: 25 | S179: 1957-11-02
F180: 4048-03-16T08:28:01.921 | G180: 4048 03 16 | H180: 48 | I180: 03 | J180: 16 | S180: 1957-05-18 | U180: 1P/Halley's Comet… | V180: 27726.15 | W180: https://theskylive.com/halley-info
F181: 4034-08-06T08:24:00.001 | G181: 4034 08 06 | H181: 34 | I181: 08 | J181: 06 | S181: 1956-12-01 | U181: 1P/Halley's Comet…
F182: 4020-12-26T08:19:58.081 | G182: 4020 12 26 | H182: 20 | I182: 12 | J182: 26 | S182: 1956-06-16 | U182: 27726.15 | V182: 27726.15 | W182: Orbital period (JD)
F183: 4007-05-18T08:15:56.161 | G183: 4007 05 18 | H183: 7 | I183: 05 | J183: 18 | S183: 1955-12-31 | U183: =U184+U182 -> 2062-01-06T03:36:00 | V183: =V184+V182 -> 2062-01-06T03:36:00 | W183: =V183 -> 2062-01-06T03:36:00
F184: 3993-10-07T08:11:54.241 | G184: 3993 10 07 | H184: -7 | I184: 10 | J184: 07 | S184: 1955-07-16 | U184: 1986-02-08 | V184: 1986-02-08 | W184: =V184 -> 1986-02-08
F185: 3980-02-27T08:07:52.321 | G185: 3980 02 27 | H185: -20 | I185: 02 | J185: 27 | S185: 1955-01-29 | U185: =U184-U$182 -> 1910-03-12T20:24:00 | V185: 1910 03 12 | W185: =V185 -> 1910 03 12
F186: 3966-07-19T08:03:50.401 | G186: 3966 07 19 | H186: -34 | I186: 07 | J186: 19 | S186: =S185-168 -> 1954-08-14 | U186: =U185-U$182+(4000*365.242189) -> 5834-04-12T10:56:38.400 | V186: 5834 04 12 | W186: =W160 -> 1835 | X186: =IF(W186<>"",Y186-W186,"") -> -1 | Y186: =LEFT(V186,4)-4000 -> 1834 | Z186: =MID(V186,6,2) -> 04 | AA186: =RIGHT(V186,2) -> 12
F187: 3952-12-08T07:59:48.481 | G187: 3952 12 08 | H187: -48 | I187: 12 | J187: 08 | S187: 1954-02-27 | U187: =U186-U$182 -> 5758-05-14T07:20:38.400 | V187: 5758 05 14 | W187: =W161 -> 1759 | X187: =IF(W187<>"",Y187-W187,"") -> -1 | Y187: 1758 | Z187: 05 | AA187: 14
F188: 3939-04-30T07:55:46.561 | G188: 3939 04 30 | H188: -61 | I188: 04 | J188: 30 | S188: 1953-09-12 | U188: 5682-06-15T03:44:38.400 | V188: 5682 06 15 | Y188: 1682 | Z188: 06 | AA188: 15
F189: 3925-09-19T07:51:44.641 | G189: 3925 09 19 | H189: -75 | I189: 09 | J189: 19 | S189: 1953-03-28 | U189: 5606-07-18T00:08:38.400 | V189: 5606 07 18 | Y189: 1606 | Z189: 07 | AA189: 18
F190: 3912-02-09T07:47:42.721 | G190: 3912 02 09 | H190: -88 | I190: 02 | J190: 09 | S190: 1952-10-11 | U190: 5530-08-19T20:32:38.400 | V190: 5530 08 19 | W190: =W162 -> 1531 | X190: -1 | Y190: 1530 | Z190: 08 | AA190: 19
F191: 3898-06-30T07:43:40.801 | G191: 3898 06 30 | H191: -102 | I191: 06 | J191: 30 | S191: 1952-04-26 | U191: 5454-09-20T16:56:38.400 | V191: 5454 09 20 | W191: 1456 | X191: -2 | Y191: 1454 | Z191: 09 | AA191: 20
F192: 3884-11-19T07:39:38.881 | G192: 3884 11 19 | H192: -116 | I192: 11 | J192: 19 | S192: 1951-11-10 | U192: 5378-10-22T13:20:38.400 | V192: 5378 10 22 | W192: 1378 | X192: 0 | Y192: 1378 | Z192: 10 | AA192: 22
F193: 3871-04-11T07:35:36.961 | G193: 3871 04 11 | H193: -129 | I193: 04 | J193: 11 | S193: 1951-05-26 | U193: 5302-11-24T09:44:38.400 | V193: 5302 11 24 | W193: 1301 | X193: 1 | Y193: 1302 | Z193: 11 | AA193: 24
F194: 3857-08-31T07:31:35.041 | G194: 3857 08 31 | H194: -143 | I194: 08 | J194: 31 | S194: 1950-12-09 | U194: 5226-12-26T06:08:38.400 | V194: 5226 12 26 | W194: 1222 | X194: 4 | Y194: 1226 | Z194: 12 | AA194: 26
F195: 3844-01-21T07:27:33.121 | G195: 3844 01 21 | H195: -156 | I195: 01 | J195: 21 | S195: 1950-06-24 | U195: 5151-01-28T02:32:38.400 | V195: 5151 01 28 | W195: 1145 | X195: 6 | Y195: 1151 | Z195: 01 | AA195: 28
F196: 3830-06-12T07:23:31.201 | G196: 3830 06 12 | H196: -170 | I196: 06 | J196: 12 | S196: 1950-01-07 | U196: 5075-02-28T22:56:38.400 | V196: 5075 02 28 | W196: 1066 | X196: 9 | Y196: 1075 | Z196: 02 | AA196: 28
F197: 3816-11-01T07:19:29.281 | G197: 3816 11 01 | H197: -184 | I197: 11 | J197: 01 | S197: 1949-07-23 | U197: 4999-04-01T19:20:38.400 | V197: 4999 04 01 | Y197: 999 | Z197: 04 | AA197: 01
F198: 3803-03-24T07:15:27.361 | G198: 3803 03 24 | H198: -197 | I198: 03 | J198: 24 | S198: 1949-02-05 | U198: 4923-05-04T15:44:38.400 | V198: 4923 05 04 | Y198: 923 | Z198: 05 | AA198: 04
F199: 3789-08-12T07:11:25.441 | G199: 3789 08 12 | H199: -211 | I199: 08 | J199: 12 | S199: 1948-08-21 | U199: 4847-06-05T12:08:38.400 | V199: 4847 06 05 | W199: =W169 -> 837 | X199: 10 | Y199: 847 | Z199: 06 | AA199: 05
F200: 3776-01-02T07:07:23.521 | G200: 3776 01 02 | H200: -224 | I200: 01 | J200: 02 | S200: 1948-03-06 | U200: 4771-07-08T08:32:38.400 | V200: 4771 07 08 | Y200: 771 | Z200: 07 | AA200: 08
F201: 3762-05-24T07:03:21.601 | G201: 3762 05 24 | H201: -238 | I201: 05 | J201: 24 | S201: 1947-09-20 | U201: 4695-08-09T04:56:38.400 | V201: 4695 08 09 | Y201: 695 | Z201: 08 | AA201: 09
F202: 3748-10-13T06:59:19.681 | G202: 3748 10 13 | H202: -252 | I202: 10 | J202: 13 | S202: 1947-04-05 | U202: 4619-09-11T01:20:38.400 | V202: 4619 09 11 | Y202: 619 | Z202: 09 | AA202: 11
F203: 3735-03-05T06:55:17.761 | G203: 3735 03 05 | H203: -265 | I203: 03 | J203: 05 | S203: 1946-10-19 | U203: 4543-10-12T21:44:38.400 | V203: 4543 10 12 | W203: =W172 -> 530 | X203: 13 | Y203: 543 | Z203: 10 | AA203: 12
F204: 3721-07-25T06:51:15.841 | G204: 3721 07 25 | H204: -279 | I204: 07 | J204: 25 | S204: 1946-05-04 | U204: 4467-11-13T18:08:38.400 | V204: 4467 11 13 | W204: =W173 -> 451 | X204: 16 | Y204: 467 | Z204: 11 | AA204: 13
F205: 3707-12-15T06:47:13.921 | G205: 3707 12 15 | H205: -293 | I205: 12 | J205: 15 | S205: 1945-11-17 | U205: 4391-12-16T14:32:38.400 | V205: 4391 12 16 | Y205: 391 | Z205: 12 | AA205: 16
F206: 3694-05-05T06:43:12.001 | G206: 3694 05 05 | H206: =LEFT(G206,4)-4000 -> -306 | I206: =MID(G206,6,2) -> 05 | J206: =RIGHT(G206,2) -> 05 | S206: 1945-06-02 | U206: 4316-01-18T10:56:38.400 | V206: 4316 01 18 | Y206: 316 | Z206: 01 | AA206: 18
F207: =F206-F$27 -> 3680-09-24T06:39:10.081 | G207: 3680 09 24 | H207: -320 | I207: 09 | J207: 24 | S207: 1944-12-16 | U207: 4240-02-19T07:20:38.400 | V207: 4240 02 19 | Y207: 240 | Z207: 02 | AA207: 19
F208: 3667-02-14T06:35:08.161 | G208: 3667 02 14 | H208: -333 | I208: 02 | J208: 14 | S208: 1944-07-01 | U208: 4164-03-22T03:44:38.400 | V208: 4164 03 22 | Y208: 164 | Z208: 03 | AA208: 22
F209: 3653-07-06T06:31:06.241 | G209: 3653 07 06 | H209: -347 | I209: 07 | J209: 06 | S209: 1944-01-15 | U209: 4088-04-23T00:08:38.400 | V209: 4088 04 23 | Y209: 88 | Z209: 04 | AA209: 23
F210: 3639-11-26T06:27:04.321 | G210: 3639 11 26 | H210: -361 | I210: 11 | J210: 26 | S210: 1943-07-31 | U210: 4012-05-25T20:32:38.400 | V210: 4012 05 25 | W210: =W174 -> -11 | X210: 23 | Y210: 12 | Z210: 05 | AA210: 25
F211: 3626-04-17T06:23:02.401 | G211: 3626 04 17 | H211: -374 | I211: 04 | J211: 17 | S211: 1943-02-13 | U211: 3936-06-27T16:56:38.400 | V211: 3936 06 27 | W211: =W175 -> -86 | X211: 22 | Y211: -64 | Z211: 06 | AA211: 27
F212: 3612-09-06T06:19:00.481 | G212: 3612 09 06 | H212: -388 | I212: 09 | J212: 06 | S212: 1942-08-29 | U212: 3860-07-29T13:20:38.400 | V212: 3860 07 29 | W212: =W176 -> -163 | X212: 23 | Y212: -140 | Z212: 07 | AA212: 29
F213: 3599-01-27T06:14:58.561 | G213: 3599 01 27 | H213: -401 | I213: 01 | J213: 27 | S213: 1942-03-14 | U213: 3784-08-30T09:44:38.400 | V213: 3784 08 30 | W213: =W177 -> -239 | X213: 23 | Y213: -216 | Z213: 08 | AA213: 30
F214: 3585-06-18T06:10:56.641 | G214: 3585 06 18 | H214: -415 | I214: 06 | J214: 18 | S214: 1941-09-27 | U214: 3708-10-02T06:08:38.400 | V214: 3708 10 02 | Y214: -292 | Z214: 10 | AA214: 02
F215: 3571-11-08T06:06:54.721 | G215: 3571 11 08 | H215: -429 | I215: 11 | J215: 08 | S215: 1941-04-12 | U215: 3632-11-03T02:32:38.400 | V215: 3632 11 03 | Y215: -368 | Z215: 11 | AA215: 03
F216: 3558-03-30T06:02:52.801 | G216: 3558 03 30 | H216: -442 | I216: 03 | J216: 30 | S216: 1940-10-26 | U216: 3556-12-05T22:56:38.400 | V216: 3556 12 05 | W216: =W178 -> -465 | X216: 21 | Y216: -444 | Z216: 12 | AA216: 05
F217: 3544-08-19T05:58:50.881 | G217: 3544 08 19 | H217: -456 | I217: 08 | J217: 19 | S217: 1940-05-11 | U217: 3481-01-06T19:20:38.400 | V217: 3481 01 06 | Y217: -519 | Z217: 01 | AA217: 06
F218: 3531-01-09T05:54:48.961 | G218: 3531 01 09 | H218: -469 | I218: 01 | J218: 09 | S218: 1939-11-25 | U218: 3405-02-08T15:44:38.400 | V218: 3405 02 08 | Y218: =LEFT(V218,4)-4000 -> -595 | Z218: =MID(V218,6,2) -> 02 | AA218: =RIGHT(V218,2) -> 08
F219: 3517-05-31T05:50:47.041 | G219: 3517 05 31 | H219: -483 | I219: 05 | J219: 31 | S219: 1939-06-10 | U219: =U218-U$182 -> 3329-03-12T12:08:38.400 | V219: 3329 03 12 | Y219: -671 | Z219: 03 | AA219: 12
F220: 3503-10-21T05:46:45.121 | G220: 3503 10 21 | H220: -497 | I220: 10 | J220: 21 | S220: 1938-12-24 | U220: 3253-04-13T08:32:38.400 | V220: 3253 04 13 | Y220: -747 | Z220: 04 | AA220: 13
... 2030 more rows

Sheet Jeroboam's Feast
A1: s
C2: Five tables showing alternative scenarios for dating King Jeroboam's Spurious Feast vs Priestly Courses:
C4: =C3+1 -> 1 | D4: 978 BCE Dates Pertaining to King Jeroboam's Spurious Feast
A5: The more likely scenario: | C5: =C4+1 -> 2 | D5: 979 BCE Dates Pertaining to King Jeroboam's Spurious Feast
C6: 3 | D6: 979 BCE Dates Pertaining to King Jeroboam's Spurious Feast - Astr. New Moon
C7: 4 | D7: 980 BCE Dates Pertaining to King Jeroboam's Spurious Feast
C8: 5 | D8: 980 BCE Dates Pertaining to King Jeroboam's Spurious Feast - Astr. New Moon
C10: 1 | D10: Legend: | F10: 978 BCE Dates Pertaining to King Jeroboam's Spurious Feast | R10: Legend:
E11: 7th Day Sabbath | S11: 7th Day Sabbath
E12: Annual Sabbath | S12: Annual Sabbath
E13: Annual Feast | S13: Annual Feast
E14: Jeroboam's Feast | F14: Biblical reckoning (i.e. from the gateway sign at the beginni6ng of each Day or date): The Hebrew Day beginning at sunset on that same Roman calendar day | L14: Jewish reckoning (as referenced in the Wikipedia table of Priestlly Divisions): The Hebrew Day following the sunset of the prior Roman day | S14: Jeroboam's Feast
D15: Sat Sep 22, 978 BCE | E15: Priestly Course #1 correlation | R15: Sat Sep 22, 978 BCE | S15: Priestly Course #1 correlation
D16: Red text | E16: Set manually based on Starry Night Pro 8 New Moon, and on the Julian Day and Civil Date Calculator | R16: Red text | S16: Set manually based on Starry Night Pro 8 New Moon, and on the Julian Day and Civil Date Calculator
F17: JD & SN8 date | G17: JD & SN8 Weekday MN-MN | H17: Pre-Hezekiah's Long Day MN-MN & after sunset | I17: Pre-Hezekiah MN-MN Weekday after sunset | J17: Date in Month #7 after sunset | K17: Biblical Weekday after sunset | L17: JD & SN8 date | M17: JD & SN8 Weekday MN-MN | N17: Pre-Hezekiah's Long Day MN-MN & B4 sunset | O17: Pre-Hezekiah MN-MN Weekday B4 sunset | P17: Date in Month #7 B4 sunset | Q17: Jewish Weekday B4 sunset
D23: 7th Day Sabbath, New Moon eve, & 1st Priestly Course of Jehoiarib beginning | F23: 2024-09-20 | G23: Thu | H23: =F23+1 -> 2024-09-21 | I23: =IF(G23="Sun","Mon",IF(G23="Mon","Tue",IF(G23="Tue","Wed",IF(G23="Wed","Thu",IF(G23="Thu","Fri",IF(G23="Fri","Sat",IF(G23="Sat","Sun"))))))) -> Fri | J23: 1 | K23: =IF(I23="Sun","2",IF(I23="Mon","3",IF(I23="Tue","4",IF(I23="Wed","5",IF(I23="Thu","6",IF(I23="Fri","7",IF(I23="Sat","1"))))))) -> 7 | L23: =F23+1 -> 2024-09-21 | M23: =IF(G23="Sun","Mon",IF(G23="Mon","Tue",IF(G23="Tue","Wed",IF(G23="Wed","Thu",IF(G23="Thu","Fri",IF(G23="Fri","Sat",IF(G23="Sat","Sun"))))))) -> Fri | N23: =H23+1 -> 2024-09-22 | O23: =IF(I23="Sun","Mon",IF(I23="Mon","Tue",IF(I23="Tue","Wed",IF(I23="Wed","Thu",IF(I23="Thu","Fri",IF(I23="Fri","Sat",IF(I23="Sat","Sun"))))))) -> Sat | P23: =J23 -> 1 | Q23: =IF(O23="Sun","1",IF(O23="Mon","2",IF(O23="Tue","3",IF(O23="Wed","4",IF(O23="Thu","5",IF(O23="Fri","6",IF(O23="Sat","7"))))))) -> 7 | R23: 7th Day Sabbath, New Moon day, & 1st Priestly Course of Jehoiarib beginning
F24: =F23+1 -> 2024-09-21 | G24: =IF(G23="Sun","Mon",IF(G23="Mon","Tue",IF(G23="Tue","Wed",IF(G23="Wed","Thu",IF(G23="Thu","Fri",IF(G23="Fri","Sat",IF(G23="Sat","Sun"))))))) -> Fri | H24: =H23+1 -> 2024-09-22 | I24: =IF(I23="Sun","Mon",IF(I23="Mon","Tue",IF(I23="Tue","Wed",IF(I23="Wed","Thu",IF(I23="Thu","Fri",IF(I23="Fri","Sat",IF(I23="Sat","Sun"))))))) -> Sat | J24: =J23+1 -> 2 | K24: 1 | L24: =L23+1 -> 2024-09-22 | M24: =IF(M23="Sun","Mon",IF(M23="Mon","Tue",IF(M23="Tue","Wed",IF(M23="Wed","Thu",IF(M23="Thu","Fri",IF(M23="Fri","Sat",IF(M23="Sat","Sun"))))))) -> Sat | N24: =N23+1 -> 2024-09-23 | O24: =IF(O23="Sun","Mon",IF(O23="Mon","Tue",IF(O23="Tue","Wed",IF(O23="Wed","Thu",IF(O23="Thu","Fri",IF(O23="Fri","Sat",IF(O23="Sat","Sun"))))))) -> Sun | P24: 2 | Q24: 1
F25: 2024-09-22 | G25: Sat | H25: 2024-09-23 | I25: Sun | J25: 3 | K25: 2 | L25: 2024-09-23 | M25: Sun | N25: 2024-09-24 | O25: Mon | P25: 3 | Q25: 2
F26: 2024-09-23 | G26: Sun | H26: 2024-09-24 | I26: Mon | J26: 4 | K26: 3 | L26: 2024-09-24 | M26: Mon | N26: 2024-09-25 | O26: Tue | P26: 4 | Q26: 3
F27: 2024-09-24 | G27: Mon | H27: 2024-09-25 | I27: Tue | J27: 5 | K27: 4 | L27: 2024-09-25 | M27: Tue | N27: 2024-09-26 | O27: Wed | P27: 5 | Q27: 4
F28: 2024-09-25 | G28: Tue | H28: 2024-09-26 | I28: Wed | J28: 6 | K28: 5 | L28: 2024-09-26 | M28: Wed | N28: 2024-09-27 | O28: Thu | P28: 6 | Q28: 5
F29: 2024-09-26 | G29: Wed | H29: 2024-09-27 | I29: Thu | J29: 7 | K29: 6 | L29: 2024-09-27 | M29: Thu | N29: 2024-09-28 | O29: Fri | P29: 7 | Q29: 6
D30: 7th Day Sabbath | F30: 2024-09-27 | G30: Thu | H30: 2024-09-28 | I30: Fri | J30: 8 | K30: 7 | L30: 2024-09-28 | M30: Fri | N30: 2024-09-29 | O30: Sat | P30: 8 | Q30: 7 | R30: 7th Day Sabbath
F31: 2024-09-28 | G31: Fri | H31: 2024-09-29 | I31: Sat | J31: 9 | K31: 1 | L31: 2024-09-29 | M31: Sat | N31: 2024-09-30 | O31: Sun | P31: 9 | Q31: 1
F32: 2024-09-29 | G32: Sat | H32: 2024-09-30 | I32: Sun | J32: 10 | K32: 2 | L32: 2024-09-30 | M32: Sun | N32: 2024-10-01 | O32: Mon | P32: 10 | Q32: 2
F33: 2024-09-30 | G33: Sun | H33: 2024-10-01 | I33: Mon | J33: 11 | K33: 3 | L33: 2024-10-01 | M33: Mon | N33: 2024-10-02 | O33: Tue | P33: 11 | Q33: 3
F34: 2024-10-01 | G34: Mon | H34: 2024-10-02 | I34: Tue | J34: 12 | K34: 4 | L34: 2024-10-02 | M34: Tue | N34: 2024-10-03 | O34: Wed | P34: 12 | Q34: 4
F35: 2024-10-02 | G35: Tue | H35: 2024-10-03 | I35: Wed | J35: 13 | K35: 5 | L35: 2024-10-03 | M35: Wed | N35: 2024-10-04 | O35: Thu | P35: 13 | Q35: 5
F36: 2024-10-03 | G36: Wed | H36: 2024-10-04 | I36: Thu | J36: 14 | K36: 6 | L36: 2024-10-04 | M36: Thu | N36: 2024-10-05 | O36: Fri | P36: 14 | Q36: 6
D37: Jeroboam's Feast aka The Lord's Day, & the beginning of the 3rd Priestly Course of Harim of Fassuta | F37: 2024-10-04 | G37: Thu | H37: 2024-10-05 | I37: Fri | J37: 15 | K37: 7 | L37: 2024-10-05 | M37: Fri | N37: 2024-10-06 | O37: Sat | P37: 15 | Q37: 7 | R37: Jeroboam's Feast aka The Lord's Day, & the beginning of the 3rd Priestly Course of Harim of Fassuta
F38: 2024-10-05 | G38: Fri | H38: 2024-10-06 | I38: Sat | J38: 16 | K38: 1 | L38: 2024-10-06 | M38: Sat | N38: 2024-10-07 | O38: Sun | P38: 16 | Q38: 1
F39: 2024-10-06 | G39: Sat | H39: 2024-10-07 | I39: Sun | J39: 17 | K39: 2 | L39: 2024-10-07 | M39: Sun | N39: 2024-10-08 | O39: Mon | P39: 17 | Q39: 2
F40: 2024-10-07 | G40: Sun | H40: 2024-10-08 | I40: Mon | J40: 18 | K40: 3 | L40: 2024-10-08 | M40: Mon | N40: 2024-10-09 | O40: Tue | P40: 18 | Q40: 3
F41: 2024-10-08 | G41: Mon | H41: 2024-10-09 | I41: Tue | J41: 19 | K41: 4 | L41: 2024-10-09 | M41: Tue | N41: 2024-10-10 | O41: Wed | P41: 19 | Q41: 4
F42: 2024-10-09 | G42: Tue | H42: 2024-10-10 | I42: Wed | J42: 20 | K42: 5 | L42: 2024-10-10 | M42: Wed | N42: 2024-10-11 | O42: Thu | P42: 20 | Q42: 5
F43: 2024-10-10 | G43: Wed | H43: 2024-10-11 | I43: Thu | J43: 21 | K43: 6 | L43: 2024-10-11 | M43: Thu | N43: 2024-10-12 | O43: Fri | P43: 21 | Q43: 6
D44: 7th Day Sabbath | F44: 2024-10-11 | G44: Thu | H44: 2024-10-12 | I44: Fri | J44: 22 | K44: 7 | L44: 2024-10-12 | M44: Fri | N44: 2024-10-13 | O44: Sat | P44: 22 | Q44: 7 | R44: 7th Day Sabbath
F45: 2024-10-12 | G45: Fri | H45: 2024-10-13 | I45: Sat | J45: 23 | K45: 1 | L45: 2024-10-13 | M45: Sat | N45: 2024-10-14 | O45: Sun | P45: 23 | Q45: 1
F46: 2024-10-13 | G46: Sat | H46: 2024-10-14 | I46: Sun | J46: 24 | K46: 2 | L46: 2024-10-14 | M46: Sun | N46: 2024-10-15 | O46: Mon | P46: 24 | Q46: 2
F47: 2024-10-14 | G47: Sun | H47: 2024-10-15 | I47: Mon | J47: 25 | K47: 3 | L47: 2024-10-15 | M47: Mon | N47: 2024-10-16 | O47: Tue | P47: 25 | Q47: 3
F48: 2024-10-15 | G48: Mon | H48: 2024-10-16 | I48: Tue | J48: 26 | K48: 4 | L48: 2024-10-16 | M48: Tue | N48: 2024-10-17 | O48: Wed | P48: 26 | Q48: 4
F49: 2024-10-16 | G49: Tue | H49: 2024-10-17 | I49: Wed | J49: 27 | K49: 5 | L49: 2024-10-17 | M49: Wed | N49: 2024-10-18 | O49: Thu | P49: 27 | Q49: 5
F50: 2024-10-17 | G50: Wed | H50: 2024-10-18 | I50: Thu | J50: 28 | K50: 6 | L50: 2024-10-18 | M50: Thu | N50: 2024-10-19 | O50: Fri | P50: 28 | Q50: 6
D51: 7th Day Sabbath | F51: 2024-10-18 | G51: Thu | H51: 2024-10-19 | I51: Fri | J51: 29 | K51: 7 | L51: 2024-10-19 | M51: Fri | N51: 2024-10-20 | O51: Sat | P51: 29 | Q51: 7 | R51: 7th Day Sabbath
F52: 2024-10-19 | G52: Fri | H52: 2024-10-20 | I52: Sat | J52: 30 | K52: 1 | L52: 2024-10-20 | M52: Sat | N52: 2024-10-21 | O52: Sun | P52: 30 | Q52: 1
C60: 2 | D60: Legend: | F60: 979 BCE Dates Pertaining to King Jeroboam's Spurious Feast | R60: Legend:
E61: 7th Day Sabbath | S61: 7th Day Sabbath
E62: Annual Sabbath | S62: Annual Sabbath
E63: Annual Feast | S63: Annual Feast
E64: Jeroboam's Feast | F64: Biblical reckoning (i.e. from the gateway sign at the beginni6ng of each Day or date): The Hebrew Day beginning at sunset on that same Roman calendar day | L64: Jewish reckoning (as referenced in the Wikipedia table of Priestlly Divisions): The Hebrew Day following the sunset of the prior Roman day | S64: Jeroboam's Feast
D65: Sat Oct 21, 979 BCE | E65: Priestly Course #1 correlation | R65: Sat Oct 21, 979 BCE | S65: Priestly Course #1 correlation
D66: Red text | E66: Set manually based on Starry Night Pro 8 New Moon, and on the Julian Day and Civil Date Calculator | R66: Red text | S66: Set manually based on Starry Night Pro 8 New Moon, and on the Julian Day and Civil Date Calculator
F67: JD & SN8 date | G67: JD & SN8 Weekday MN-MN | H67: Pre-Hezekiah's Long Day MN-MN & after sunset | I67: Pre-Hezekiah MN-MN Weekday after sunset | J67: Date in Month #7 after sunset | K67: Biblical Weekday after sunset | L67: JD & SN8 date | M67: JD & SN8 Weekday MN-MN | N67: Pre-Hezekiah's Long Day MN-MN & B4 sunset | O67: Pre-Hezekiah MN-MN Weekday B4 sunset | P67: Date in Month #7 B4 sunset | Q67: Jewish Weekday B4 sunset
D73: New Moon observation likely | F73: 2024-10-01 | G73: Sun | H73: =F73+1 -> 2024-10-02 | I73: =IF(G73="Sun","Mon",IF(G73="Mon","Tue",IF(G73="Tue","Wed",IF(G73="Wed","Thu",IF(G73="Thu","Fri",IF(G73="Fri","Sat",IF(G73="Sat","Sun"))))))) -> Mon | J73: 1 | K73: =IF(I73="Sun","2",IF(I73="Mon","3",IF(I73="Tue","4",IF(I73="Wed","5",IF(I73="Thu","6",IF(I73="Fri","7",IF(I73="Sat","1"))))))) -> 3 | L73: =F73+1 -> 2024-10-02 | M73: =IF(G73="Sun","Mon",IF(G73="Mon","Tue",IF(G73="Tue","Wed",IF(G73="Wed","Thu",IF(G73="Thu","Fri",IF(G73="Fri","Sat",IF(G73="Sat","Sun"))))))) -> Mon | N73: =H73+1 -> 2024-10-03 | O73: =IF(I73="Sun","Mon",IF(I73="Mon","Tue",IF(I73="Tue","Wed",IF(I73="Wed","Thu",IF(I73="Thu","Fri",IF(I73="Fri","Sat",IF(I73="Sat","Sun"))))))) -> Tue | P73: =J73 -> 1 | Q73: =IF(O73="Sun","1",IF(O73="Mon","2",IF(O73="Tue","3",IF(O73="Wed","4",IF(O73="Thu","5",IF(O73="Fri","6",IF(O73="Sat","7"))))))) -> 3 | R73: New Moon observation likely
F74: =F73+1 -> 2024-10-02 | G74: =IF(G73="Sun","Mon",IF(G73="Mon","Tue",IF(G73="Tue","Wed",IF(G73="Wed","Thu",IF(G73="Thu","Fri",IF(G73="Fri","Sat",IF(G73="Sat","Sun"))))))) -> Mon | H74: =H73+1 -> 2024-10-03 | I74: =IF(I73="Sun","Mon",IF(I73="Mon","Tue",IF(I73="Tue","Wed",IF(I73="Wed","Thu",IF(I73="Thu","Fri",IF(I73="Fri","Sat",IF(I73="Sat","Sun"))))))) -> Tue | J74: =J73+1 -> 2 | K74: 4 | L74: =L73+1 -> 2024-10-03 | M74: =IF(M73="Sun","Mon",IF(M73="Mon","Tue",IF(M73="Tue","Wed",IF(M73="Wed","Thu",IF(M73="Thu","Fri",IF(M73="Fri","Sat",IF(M73="Sat","Sun"))))))) -> Tue | N74: =N73+1 -> 2024-10-04 | O74: =IF(O73="Sun","Mon",IF(O73="Mon","Tue",IF(O73="Tue","Wed",IF(O73="Wed","Thu",IF(O73="Thu","Fri",IF(O73="Fri","Sat",IF(O73="Sat","Sun"))))))) -> Wed | P74: 2 | Q74: 4
F75: 2024-10-03 | G75: Tue | H75: 2024-10-04 | I75: Wed | J75: 3 | K75: 5 | L75: 2024-10-04 | M75: Wed | N75: 2024-10-05 | O75: Thu | P75: 3 | Q75: 5
F76: 2024-10-04 | G76: Wed | H76: 2024-10-05 | I76: Thu | J76: 4 | K76: 6 | L76: 2024-10-05 | M76: Thu | N76: 2024-10-06 | O76: Fri | P76: 4 | Q76: 6
D77: 7th Day Sabbath | F77: 2024-10-05 | G77: Thu | H77: 2024-10-06 | I77: Fri | J77: 5 | K77: 7 | L77: 2024-10-06 | M77: Fri | N77: 2024-10-07 | O77: Sat | P77: 5 | Q77: 7 | R77: 7th Day Sabbath
F78: 2024-10-06 | G78: Fri | H78: 2024-10-07 | I78: Sat | J78: 6 | K78: 1 | L78: 2024-10-07 | M78: Sat | N78: 2024-10-08 | O78: Sun | P78: 6 | Q78: 1
F79: 2024-10-07 | G79: Sat | H79: 2024-10-08 | I79: Sun | J79: 7 | K79: 2 | L79: 2024-10-08 | M79: Sun | N79: 2024-10-09 | O79: Mon | P79: 7 | Q79: 2
F80: 2024-10-08 | G80: Sun | H80: 2024-10-09 | I80: Mon | J80: 8 | K80: 3 | L80: 2024-10-09 | M80: Mon | N80: 2024-10-10 | O80: Tue | P80: 8 | Q80: 3
F81: 2024-10-09 | G81: Mon | H81: 2024-10-10 | I81: Tue | J81: 9 | K81: 4 | L81: 2024-10-10 | M81: Tue | N81: 2024-10-11 | O81: Wed | P81: 9 | Q81: 4
F82: 2024-10-10 | G82: Tue | H82: 2024-10-11 | I82: Wed | J82: 10 | K82: 5 | L82: 2024-10-11 | M82: Wed | N82: 2024-10-12 | O82: Thu | P82: 10 | Q82: 5
F83: 2024-10-11 | G83: Wed | H83: 2024-10-12 | I83: Thu | J83: 11 | K83: 6 | L83: 2024-10-12 | M83: Thu | N83: 2024-10-13 | O83: Fri | P83: 11 | Q83: 6
D84: 7th Day Sabbath & 24th Priestly Course of Maaziah beginning | F84: 2024-10-12 | G84: Thu | H84: 2024-10-13 | I84: Fri | J84: 12 | K84: 7 | L84: 2024-10-13 | M84: Fri | N84: 2024-10-14 | O84: Sat | P84: 12 | Q84: 7 | R84: 7th Day Sabbath & 24th Priestly Course of Maaziah beginning
F85: 2024-10-13 | G85: Fri | H85: 2024-10-14 | I85: Sat | J85: 13 | K85: 1 | L85: 2024-10-14 | M85: Sat | N85: 2024-10-15 | O85: Sun | P85: 13 | Q85: 1
F86: 2024-10-14 | G86: Sat | H86: 2024-10-15 | I86: Sun | J86: 14 | K86: 2 | L86: 2024-10-15 | M86: Sun | N86: 2024-10-16 | O86: Mon | P86: 14 | Q86: 2
D87: Jeroboam's Feast | F87: 2024-10-15 | G87: Sun | H87: 2024-10-16 | I87: Mon | J87: 15 | K87: 3 | L87: 2024-10-16 | M87: Mon | N87: 2024-10-17 | O87: Tue | P87: 15 | Q87: 3 | R87: Jeroboam's Feast
F88: 2024-10-16 | G88: Mon | H88: 2024-10-17 | I88: Tue | J88: 16 | K88: 4 | L88: 2024-10-17 | M88: Tue | N88: 2024-10-18 | O88: Wed | P88: 16 | Q88: 4
F89: 2024-10-17 | G89: Tue | H89: 2024-10-18 | I89: Wed | J89: 17 | K89: 5 | L89: 2024-10-18 | M89: Wed | N89: 2024-10-19 | O89: Thu | P89: 17 | Q89: 5
F90: 2024-10-18 | G90: Wed | H90: 2024-10-19 | I90: Thu | J90: 18 | K90: 6 | L90: 2024-10-19 | M90: Thu | N90: 2024-10-20 | O90: Fri | P90: 18 | Q90: 6
D91: 7th Day Sabbath & 1st Priestly Course of Jehoiarib beginning | F91: 2024-10-19 | G91: Thu | H91: 2024-10-20 | I91: Fri | J91: 19 | K91: 7 | L91: 2024-10-20 | M91: Fri | N91: 2024-10-21 | O91: Sat | P91: 19 | Q91: 7 | R91: 7th Day Sabbath & 1st Priestly Course of Jehoiarib beginning
F92: 2024-10-20 | G92: Fri | H92: 2024-10-21 | I92: Sat | J92: 20 | K92: 1 | L92: 2024-10-21 | M92: Sat | N92: 2024-10-22 | O92: Sun | P92: 20 | Q92: 1
F93: 2024-10-21 | G93: Sat | H93: 2024-10-22 | I93: Sun | J93: 21 | K93: 2 | L93: 2024-10-22 | M93: Sun | N93: 2024-10-23 | O93: Mon | P93: 21 | Q93: 2
F94: 2024-10-22 | G94: Sun | H94: 2024-10-23 | I94: Mon | J94: 22 | K94: 3 | L94: 2024-10-23 | M94: Mon | N94: 2024-10-24 | O94: Tue | P94: 22 | Q94: 3
F95: 2024-10-23 | G95: Mon | H95: 2024-10-24 | I95: Tue | J95: 23 | K95: 4 | L95: 2024-10-24 | M95: Tue | N95: 2024-10-25 | O95: Wed | P95: 23 | Q95: 4
F96: 2024-10-24 | G96: Tue | H96: 2024-10-25 | I96: Wed | J96: 24 | K96: 5 | L96: 2024-10-25 | M96: Wed | N96: 2024-10-26 | O96: Thu | P96: 24 | Q96: 5
F97: 2024-10-25 | G97: Wed | H97: 2024-10-26 | I97: Thu | J97: 25 | K97: 6 | L97: 2024-10-26 | M97: Thu | N97: 2024-10-27 | O97: Fri | P97: 25 | Q97: 6
D98: 7th Day Sabbath | F98: 2024-10-26 | G98: Thu | H98: 2024-10-27 | I98: Fri | J98: 26 | K98: 7 | L98: 2024-10-27 | M98: Fri | N98: 2024-10-28 | O98: Sat | P98: 26 | Q98: 7 | R98: 7th Day Sabbath
F99: 2024-10-27 | G99: Fri | H99: 2024-10-28 | I99: Sat | J99: 27 | K99: 1 | L99: 2024-10-28 | M99: Sat | N99: 2024-10-29 | O99: Sun | P99: 27 | Q99: 1
F100: 2024-10-28 | G100: Sat | H100: 2024-10-29 | I100: Sun | J100: 28 | K100: 2 | L100: 2024-10-29 | M100: Sun | N100: 2024-10-30 | O100: Mon | P100: 28 | Q100: 2
F101: 2024-10-29 | G101: Sun | H101: 2024-10-30 | I101: Mon | J101: 29 | K101: 3 | L101: 2024-10-30 | M101: Mon | N101: 2024-10-31 | O101: Tue | P101: 29 | Q101: 3
F102: 2024-10-30 | G102: Mon | H102: 2024-10-31 | I102: Tue | J102: 30 | K102: 4 | L102: 2024-10-31 | M102: Tue | N102: 2024-11-01 | O102: Wed | P102: 30 | Q102: 4
C110: 3 | D110: Legend: | F110: 979 BCE Dates Pertaining to King Jeroboam's Spurious Feast - Astr. New Moon | R110: Legend:
E111: 7th Day Sabbath | S111: 7th Day Sabbath
E112: Annual Sabbath | S112: Annual Sabbath
E113: Annual Feast | S113: Annual Feast
E114: Jeroboam's Feast | F114: Biblical reckoning (i.e. from the gateway sign at the beginni6ng of each Day or date): The Hebrew Day beginning at sunset on that same Roman calendar day | L114: Jewish reckoning (as referenced in the Wikipedia table of Priestlly Divisions): The Hebrew Day following the sunset of the prior Roman day | S114: Jeroboam's Feast
D115: Sat Oct 21, 979 BCE | E115: Priestly Course #1 correlation | R115: Sat Oct 21, 979 BCE | S115: Priestly Course #1 correlation
D116: Red text | E116: Set manually based on Starry Night Pro 8 New Moon, and on the Julian Day and Civil Date Calculator | R116: Red text | S116: Set manually based on Starry Night Pro 8 New Moon, and on the Julian Day and Civil Date Calculator
F117: JD & SN8 date | G117: JD & SN8 Weekday MN-MN | H117: Pre-Hezekiah's Long Day MN-MN & after sunset | I117: Pre-Hezekiah MN-MN Weekday after sunset | J117: Date in Month #7 after sunset | K117: Biblical Weekday after sunset | L117: JD & SN8 date | M117: JD & SN8 Weekday MN-MN | N117: Pre-Hezekiah's Long Day MN-MN & B4 sunset | O117: Pre-Hezekiah MN-MN Weekday B4 sunset | P117: Date in Month #7 B4 sunset | Q117: Jewish Weekday B4 sunset
D123: Astronomical New Moon | F123: 2024-09-30 | G123: Sat | H123: =F123+1 -> 2024-10-01 | I123: =IF(G123="Sun","Mon",IF(G123="Mon","Tue",IF(G123="Tue","Wed",IF(G123="Wed","Thu",IF(G123="Thu","Fri",IF(G123="Fri","Sat",IF(G123="Sat","Sun"))))))) -> Sun | J123: 1 | K123: =IF(I123="Sun","2",IF(I123="Mon","3",IF(I123="Tue","4",IF(I123="Wed","5",IF(I123="Thu","6",IF(I123="Fri","7",IF(I123="Sat","1"))))))) -> 2 | L123: =F123+1 -> 2024-10-01 | M123: =IF(G123="Sun","Mon",IF(G123="Mon","Tue",IF(G123="Tue","Wed",IF(G123="Wed","Thu",IF(G123="Thu","Fri",IF(G123="Fri","Sat",IF(G123="Sat","Sun"))))))) -> Sun | N123: =H123+1 -> 2024-10-02 | O123: =IF(I123="Sun","Mon",IF(I123="Mon","Tue",IF(I123="Tue","Wed",IF(I123="Wed","Thu",IF(I123="Thu","Fri",IF(I123="Fri","Sat",IF(I123="Sat","Sun"))))))) -> Mon | P123: =J123 -> 1 | Q123: =IF(O123="Sun","1",IF(O123="Mon","2",IF(O123="Tue","3",IF(O123="Wed","4",IF(O123="Thu","5",IF(O123="Fri","6",IF(O123="Sat","7"))))))) -> 2 | R123: Astronomical New Moon
F124: =F123+1 -> 2024-10-01 | G124: =IF(G123="Sun","Mon",IF(G123="Mon","Tue",IF(G123="Tue","Wed",IF(G123="Wed","Thu",IF(G123="Thu","Fri",IF(G123="Fri","Sat",IF(G123="Sat","Sun"))))))) -> Sun | H124: =H123+1 -> 2024-10-02 | I124: =IF(I123="Sun","Mon",IF(I123="Mon","Tue",IF(I123="Tue","Wed",IF(I123="Wed","Thu",IF(I123="Thu","Fri",IF(I123="Fri","Sat",IF(I123="Sat","Sun"))))))) -> Mon | J124: =J123+1 -> 2 | K124: 3 | L124: =L123+1 -> 2024-10-02 | M124: =IF(M123="Sun","Mon",IF(M123="Mon","Tue",IF(M123="Tue","Wed",IF(M123="Wed","Thu",IF(M123="Thu","Fri",IF(M123="Fri","Sat",IF(M123="Sat","Sun"))))))) -> Mon | N124: =N123+1 -> 2024-10-03 | O124: =IF(O123="Sun","Mon",IF(O123="Mon","Tue",IF(O123="Tue","Wed",IF(O123="Wed","Thu",IF(O123="Thu","Fri",IF(O123="Fri","Sat",IF(O123="Sat","Sun"))))))) -> Tue | P124: 2 | Q124: 3
F125: 2024-10-02 | G125: Mon | H125: 2024-10-03 | I125: Tue | J125: 3 | K125: 4 | L125: 2024-10-03 | M125: Tue | N125: 2024-10-04 | O125: Wed | P125: 3 | Q125: 4
F126: 2024-10-03 | G126: Tue | H126: 2024-10-04 | I126: Wed | J126: 4 | K126: 5 | L126: 2024-10-04 | M126: Wed | N126: 2024-10-05 | O126: Thu | P126: 4 | Q126: 5
F127: 2024-10-04 | G127: Wed | H127: 2024-10-05 | I127: Thu | J127: 5 | K127: 6 | L127: 2024-10-05 | M127: Thu | N127: 2024-10-06 | O127: Fri | P127: 5 | Q127: 6
D128: 7th Day Sabbath | F128: 2024-10-05 | G128: Thu | H128: 2024-10-06 | I128: Fri | J128: 6 | K128: 7 | L128: 2024-10-06 | M128: Fri | N128: 2024-10-07 | O128: Sat | P128: 6 | Q128: 7 | R128: 7th Day Sabbath
F129: 2024-10-06 | G129: Fri | H129: 2024-10-07 | I129: Sat | J129: 7 | K129: 1 | L129: 2024-10-07 | M129: Sat | N129: 2024-10-08 | O129: Sun | P129: 7 | Q129: 1
F130: 2024-10-07 | G130: Sat | H130: 2024-10-08 | I130: Sun | J130: 8 | K130: 2 | L130: 2024-10-08 | M130: Sun | N130: 2024-10-09 | O130: Mon | P130: 8 | Q130: 2
F131: 2024-10-08 | G131: Sun | H131: 2024-10-09 | I131: Mon | J131: 9 | K131: 3 | L131: 2024-10-09 | M131: Mon | N131: 2024-10-10 | O131: Tue | P131: 9 | Q131: 3
F132: 2024-10-09 | G132: Mon | H132: 2024-10-10 | I132: Tue | J132: 10 | K132: 4 | L132: 2024-10-10 | M132: Tue | N132: 2024-10-11 | O132: Wed | P132: 10 | Q132: 4
F133: 2024-10-10 | G133: Tue | H133: 2024-10-11 | I133: Wed | J133: 11 | K133: 5 | L133: 2024-10-11 | M133: Wed | N133: 2024-10-12 | O133: Thu | P133: 11 | Q133: 5
F134: 2024-10-11 | G134: Wed | H134: 2024-10-12 | I134: Thu | J134: 12 | K134: 6 | L134: 2024-10-12 | M134: Thu | N134: 2024-10-13 | O134: Fri | P134: 12 | Q134: 6
D135: 7th Day Sabbath & 24th Priestly Course of Maaziah beginning | F135: 2024-10-12 | G135: Thu | H135: 2024-10-13 | I135: Fri | J135: 13 | K135: 7 | L135: 2024-10-13 | M135: Fri | N135: 2024-10-14 | O135: Sat | P135: 13 | Q135: 7 | R135: 7th Day Sabbath & 24th Priestly Course of Maaziah beginning
F136: 2024-10-13 | G136: Fri | H136: 2024-10-14 | I136: Sat | J136: 14 | K136: 1 | L136: 2024-10-14 | M136: Sat | N136: 2024-10-15 | O136: Sun | P136: 14 | Q136: 1
D137: Jeroboam's Feast | F137: 2024-10-14 | G137: Sat | H137: 2024-10-15 | I137: Sun | J137: 15 | K137: 2 | L137: 2024-10-15 | M137: Sun | N137: 2024-10-16 | O137: Mon | P137: 15 | Q137: 2 | R137: Jeroboam's Feast
F138: 2024-10-15 | G138: Sun | H138: 2024-10-16 | I138: Mon | J138: 16 | K138: 3 | L138: 2024-10-16 | M138: Mon | N138: 2024-10-17 | O138: Tue | P138: 16 | Q138: 3
F139: 2024-10-16 | G139: Mon | H139: 2024-10-17 | I139: Tue | J139: 17 | K139: 4 | L139: 2024-10-17 | M139: Tue | N139: 2024-10-18 | O139: Wed | P139: 17 | Q139: 4
F140: 2024-10-17 | G140: Tue | H140: 2024-10-18 | I140: Wed | J140: 18 | K140: 5 | L140: 2024-10-18 | M140: Wed | N140: 2024-10-19 | O140: Thu | P140: 18 | Q140: 5
F141: 2024-10-18 | G141: Wed | H141: 2024-10-19 | I141: Thu | J141: 19 | K141: 6 | L141: 2024-10-19 | M141: Thu | N141: 2024-10-20 | O141: Fri | P141: 19 | Q141: 6
D142: 7th Day Sabbath & 1st Priestly Course of Jehoiarib beginning | F142: 2024-10-19 | G142: Thu | H142: 2024-10-20 | I142: Fri | J142: 20 | K142: 7 | L142: 2024-10-20 | M142: Fri | N142: 2024-10-21 | O142: Sat | P142: 20 | Q142: 7 | R142: 7th Day Sabbath & 1st Priestly Course of Jehoiarib beginning
F143: 2024-10-20 | G143: Fri | H143: 2024-10-21 | I143: Sat | J143: 21 | K143: 1 | L143: 2024-10-21 | M143: Sat | N143: 2024-10-22 | O143: Sun | P143: 21 | Q143: 1
F144: 2024-10-21 | G144: Sat | H144: 2024-10-22 | I144: Sun | J144: 22 | K144: 2 | L144: 2024-10-22 | M144: Sun | N144: 2024-10-23 | O144: Mon | P144: 22 | Q144: 2
F145: 2024-10-22 | G145: Sun | H145: 2024-10-23 | I145: Mon | J145: 23 | K145: 3 | L145: 2024-10-23 | M145: Mon | N145: 2024-10-24 | O145: Tue | P145: 23 | Q145: 3
F146: 2024-10-23 | G146: Mon | H146: 2024-10-24 | I146: Tue | J146: 24 | K146: 4 | L146: 2024-10-24 | M146: Tue | N146: 2024-10-25 | O146: Wed | P146: 24 | Q146: 4
F147: 2024-10-24 | G147: Tue | H147: 2024-10-25 | I147: Wed | J147: 25 | K147: 5 | L147: 2024-10-25 | M147: Wed | N147: 2024-10-26 | O147: Thu | P147: 25 | Q147: 5
F148: 2024-10-25 | G148: Wed | H148: 2024-10-26 | I148: Thu | J148: 26 | K148: 6 | L148: 2024-10-26 | M148: Thu | N148: 2024-10-27 | O148: Fri | P148: 26 | Q148: 6
D149: 7th Day Sabbath | F149: 2024-10-26 | G149: Thu | H149: 2024-10-27 | I149: Fri | J149: 27 | K149: 7 | L149: 2024-10-27 | M149: Fri | N149: 2024-10-28 | O149: Sat | P149: 27 | Q149: 7 | R149: 7th Day Sabbath
F150: 2024-10-27 | G150: Fri | H150: 2024-10-28 | I150: Sat | J150: 28 | K150: 1 | L150: 2024-10-28 | M150: Sat | N150: 2024-10-29 | O150: Sun | P150: 28 | Q150: 1
F151: 2024-10-28 | G151: Sat | H151: 2024-10-29 | I151: Sun | J151: 29 | K151: 2 | L151: 2024-10-29 | M151: Sun | N151: 2024-10-30 | O151: Mon | P151: 29 | Q151: 2
F152: 2024-10-29 | G152: Sun | H152: 2024-10-30 | I152: Mon | J152: 30 | K152: 3 | L152: 2024-10-30 | M152: Mon | N152: 2024-10-31 | O152: Tue | P152: 30 | Q152: 3
C160: 4 | D160: Legend: | F160: 980 BCE Dates Pertaining to King Jeroboam's Spurious Feast | R160: Legend:
E161: 7th Day Sabbath | S161: 7th Day Sabbath
E162: Annual Sabbath | S162: Annual Sabbath
E163: Annual Feast | S163: Annual Feast
E164: Jeroboam's Feast | F164: Biblical reckoning (i.e. from the gateway sign at the beginni6ng of each Day or date): The Hebrew Day beginning at sunset on that same Roman calendar day | L164: Jewish reckoning (as referenced in the Wikipedia table of Priestlly Divisions): The Hebrew Day following the sunset of the prior Roman day | S164: Jeroboam's Feast
D165: Sat Nov 19, 980 BCE | E165: Priestly Course #1 correlation | R165: Sat Nov 19, 980 BCE | S165: Priestly Course #1 correlation
D166: Red text | E166: Set manually based on Starry Night Pro 8 New Moon, and on the Julian Day and Civil Date Calculator | R166: Red text | S166: Set manually based on Starry Night Pro 8 New Moon, and on the Julian Day and Civil Date Calculator
F167: JD & SN8 date | G167: JD & SN8 Weekday MN-MN | H167: Pre-Hezekiah's Long Day MN-MN & after sunset | I167: Pre-Hezekiah MN-MN Weekday after sunset | J167: Date in Month #7 after sunset | K167: Biblical Weekday after sunset | L167: JD & SN8 date | M167: JD & SN8 Weekday MN-MN | N167: Pre-Hezekiah's Long Day MN-MN & B4 sunset | O167: Pre-Hezekiah MN-MN Weekday B4 sunset | P167: Date in Month #7 B4 sunset | Q167: Jewish Weekday B4 sunset
D173: New Moon observation likely | F173: 2024-11-10 | G173: Thu | H173: =F173+1 -> 2024-11-11 | I173: =IF(G173="Sun","Mon",IF(G173="Mon","Tue",IF(G173="Tue","Wed",IF(G173="Wed","Thu",IF(G173="Thu","Fri",IF(G173="Fri","Sat",IF(G173="Sat","Sun"))))))) -> Fri | J173: 1 | K173: =IF(I173="Sun","2",IF(I173="Mon","3",IF(I173="Tue","4",IF(I173="Wed","5",IF(I173="Thu","6",IF(I173="Fri","7",IF(I173="Sat","1"))))))) -> 7 | L173: =F173+1 -> 2024-11-11 | M173: =IF(G173="Sun","Mon",IF(G173="Mon","Tue",IF(G173="Tue","Wed",IF(G173="Wed","Thu",IF(G173="Thu","Fri",IF(G173="Fri","Sat",IF(G173="Sat","Sun"))))))) -> Fri | N173: =H173+1 -> 2024-11-12 | O173: =IF(I173="Sun","Mon",IF(I173="Mon","Tue",IF(I173="Tue","Wed",IF(I173="Wed","Thu",IF(I173="Thu","Fri",IF(I173="Fri","Sat",IF(I173="Sat","Sun"))))))) -> Sat | P173: =J173 -> 1 | Q173: =IF(O173="Sun","1",IF(O173="Mon","2",IF(O173="Tue","3",IF(O173="Wed","4",IF(O173="Thu","5",IF(O173="Fri","6",IF(O173="Sat","7"))))))) -> 7 | R173: New Moon observation likely
F174: =F173+1 -> 2024-11-11 | G174: =IF(G173="Sun","Mon",IF(G173="Mon","Tue",IF(G173="Tue","Wed",IF(G173="Wed","Thu",IF(G173="Thu","Fri",IF(G173="Fri","Sat",IF(G173="Sat","Sun"))))))) -> Fri | H174: =H173+1 -> 2024-11-12 | I174: =IF(I173="Sun","Mon",IF(I173="Mon","Tue",IF(I173="Tue","Wed",IF(I173="Wed","Thu",IF(I173="Thu","Fri",IF(I173="Fri","Sat",IF(I173="Sat","Sun"))))))) -> Sat | J174: =J173+1 -> 2 | K174: 1 | L174: =L173+1 -> 2024-11-12 | M174: =IF(M173="Sun","Mon",IF(M173="Mon","Tue",IF(M173="Tue","Wed",IF(M173="Wed","Thu",IF(M173="Thu","Fri",IF(M173="Fri","Sat",IF(M173="Sat","Sun"))))))) -> Sat | N174: =N173+1 -> 2024-11-13 | O174: =IF(O173="Sun","Mon",IF(O173="Mon","Tue",IF(O173="Tue","Wed",IF(O173="Wed","Thu",IF(O173="Thu","Fri",IF(O173="Fri","Sat",IF(O173="Sat","Sun"))))))) -> Sun | P174: 2 | Q174: 1
F175: 2024-11-12 | G175: Sat | H175: 2024-11-13 | I175: Sun | J175: 3 | K175: 2 | L175: 2024-11-13 | M175: Sun | N175: 2024-11-14 | O175: Mon | P175: 3 | Q175: 2
F176: 2024-11-13 | G176: Sun | H176: 2024-11-14 | I176: Mon | J176: 4 | K176: 3 | L176: 2024-11-14 | M176: Mon | N176: 2024-11-15 | O176: Tue | P176: 4 | Q176: 3
F177: 2024-11-14 | G177: Mon | H177: 2024-11-15 | I177: Tue | J177: 5 | K177: 4 | L177: 2024-11-15 | M177: Tue | N177: 2024-11-16 | O177: Wed | P177: 5 | Q177: 4
F178: 2024-11-15 | G178: Tue | H178: 2024-11-16 | I178: Wed | J178: 6 | K178: 5 | L178: 2024-11-16 | M178: Wed | N178: 2024-11-17 | O178: Thu | P178: 6 | Q178: 5
F179: 2024-11-16 | G179: Wed | H179: 2024-11-17 | I179: Thu | J179: 7 | K179: 6 | L179: 2024-11-17 | M179: Thu | N179: 2024-11-18 | O179: Fri | P179: 7 | Q179: 6
D180: 7th Day Sabbath & 1st Priestly Course of Jehoiarib beginning | F180: 2024-11-17 | G180: Thu | H180: 2024-11-18 | I180: Fri | J180: 8 | K180: 7 | L180: 2024-11-18 | M180: Fri | N180: 2024-11-19 | O180: Sat | P180: 8 | Q180: 7 | R180: 7th Day Sabbath & 1st Priestly Course of Jehoiarib beginning
F181: 2024-11-18 | G181: Fri | H181: 2024-11-19 | I181: Sat | J181: 9 | K181: 1 | L181: 2024-11-19 | M181: Sat | N181: 2024-11-20 | O181: Sun | P181: 9 | Q181: 1
F182: 2024-11-19 | G182: Sat | H182: 2024-11-20 | I182: Sun | J182: 10 | K182: 2 | L182: 2024-11-20 | M182: Sun | N182: 2024-11-21 | O182: Mon | P182: 10 | Q182: 2
F183: 2024-11-20 | G183: Sun | H183: 2024-11-21 | I183: Mon | J183: 11 | K183: 3 | L183: 2024-11-21 | M183: Mon | N183: 2024-11-22 | O183: Tue | P183: 11 | Q183: 3
F184: 2024-11-21 | G184: Mon | H184: 2024-11-22 | I184: Tue | J184: 12 | K184: 4 | L184: 2024-11-22 | M184: Tue | N184: 2024-11-23 | O184: Wed | P184: 12 | Q184: 4
F185: 2024-11-22 | G185: Tue | H185: 2024-11-23 | I185: Wed | J185: 13 | K185: 5 | L185: 2024-11-23 | M185: Wed | N185: 2024-11-24 | O185: Thu | P185: 13 | Q185: 5
F186: 2024-11-23 | G186: Wed | H186: 2024-11-24 | I186: Thu | J186: 14 | K186: 6 | L186: 2024-11-24 | M186: Thu | N186: 2024-11-25 | O186: Fri | P186: 14 | Q186: 6
D187: Jeroboam's Feast | F187: 2024-11-24 | G187: Thu | H187: 2024-11-25 | I187: Fri | J187: 15 | K187: 7 | L187: 2024-11-25 | M187: Fri | N187: 2024-11-26 | O187: Sat | P187: 15 | Q187: 7 | R187: Jeroboam's Feast
F188: 2024-11-25 | G188: Fri | H188: 2024-11-26 | I188: Sat | J188: 16 | K188: 1 | L188: 2024-11-26 | M188: Sat | N188: 2024-11-27 | O188: Sun | P188: 16 | Q188: 1
F189: 2024-11-26 | G189: Sat | H189: 2024-11-27 | I189: Sun | J189: 17 | K189: 2 | L189: 2024-11-27 | M189: Sun | N189: 2024-11-28 | O189: Mon | P189: 17 | Q189: 2
F190: 2024-11-27 | G190: Sun | H190: 2024-11-28 | I190: Mon | J190: 18 | K190: 3 | L190: 2024-11-28 | M190: Mon | N190: 2024-11-29 | O190: Tue | P190: 18 | Q190: 3
F191: 2024-11-28 | G191: Mon | H191: 2024-11-29 | I191: Tue | J191: 19 | K191: 4 | L191: 2024-11-29 | M191: Tue | N191: 2024-11-30 | O191: Wed | P191: 19 | Q191: 4
F192: 2024-11-29 | G192: Tue | H192: 2024-11-30 | I192: Wed | J192: 20 | K192: 5 | L192: 2024-11-30 | M192: Wed | N192: 2024-12-01 | O192: Thu | P192: 20 | Q192: 5
F193: 2024-11-30 | G193: Wed | H193: 2024-12-01 | I193: Thu | J193: 21 | K193: 6 | L193: 2024-12-01 | M193: Thu | N193: 2024-12-02 | O193: Fri | P193: 21 | Q193: 6
D194: 7th Day Sabbath | F194: 2024-12-01 | G194: Thu | H194: 2024-12-02 | I194: Fri | J194: 22 | K194: 7 | L194: 2024-12-02 | M194: Fri | N194: 2024-12-03 | O194: Sat | P194: 22 | Q194: 7 | R194: 7th Day Sabbath
F195: 2024-12-02 | G195: Fri | H195: 2024-12-03 | I195: Sat | J195: 23 | K195: 1 | L195: 2024-12-03 | M195: Sat | N195: 2024-12-04 | O195: Sun | P195: 23 | Q195: 1
F196: 2024-12-03 | G196: Sat | H196: 2024-12-04 | I196: Sun | J196: 24 | K196: 2 | L196: 2024-12-04 | M196: Sun | N196: 2024-12-05 | O196: Mon | P196: 24 | Q196: 2
F197: 2024-12-04 | G197: Sun | H197: 2024-12-05 | I197: Mon | J197: 25 | K197: 3 | L197: 2024-12-05 | M197: Mon | N197: 2024-12-06 | O197: Tue | P197: 25 | Q197: 3
F198: 2024-12-05 | G198: Mon | H198: 2024-12-06 | I198: Tue | J198: 26 | K198: 4 | L198: 2024-12-06 | M198: Tue | N198: 2024-12-07 | O198: Wed | P198: 26 | Q198: 4
F199: 2024-12-06 | G199: Tue | H199: 2024-12-07 | I199: Wed | J199: 27 | K199: 5 | L199: 2024-12-07 | M199: Wed | N199: 2024-12-08 | O199: Thu | P199: 27 | Q199: 5
F200: 2024-12-07 | G200: Wed | H200: 2024-12-08 | I200: Thu | J200: 28 | K200: 6 | L200: 2024-12-08 | M200: Thu | N200: 2024-12-09 | O200: Fri | P200: 28 | Q200: 6
D201: 7th Day Sabbath | F201: 2024-12-08 | G201: Thu | H201: 2024-12-09 | I201: Fri | J201: 29 | K201: 7 | L201: 2024-12-09 | M201: Fri | N201: 2024-12-10 | O201: Sat | P201: 29 | Q201: 7 | R201: 7th Day Sabbath
F202: 2024-12-09 | G202: Fri | H202: 2024-12-10 | I202: Sat | J202: 30 | K202: 1 | L202: 2024-12-10 | M202: Sat | N202: 2024-12-11 | O202: Sun | P202: 30 | Q202: 1
C210: 5 | D210: Legend: | F210: 980 BCE Dates Pertaining to King Jeroboam's Spurious Feast - Astr. New Moon | R210: Legend:
E211: 7th Day Sabbath | S211: 7th Day Sabbath
E212: Annual Sabbath | S212: Annual Sabbath
E213: Annual Feast | S213: Annual Feast
E214: Jeroboam's Feast | F214: Biblical reckoning (i.e. from the gateway sign at the beginni6ng of each Day or date): The Hebrew Day beginning at sunset on that same Roman calendar day | L214: Jewish reckoning (as referenced in the Wikipedia table of Priestlly Divisions): The Hebrew Day following the sunset of the prior Roman day | S214: Jeroboam's Feast
D215: Sat Nov 19, 980 BCE | E215: Priestly Course #1 correlation | R215: Sat Nov 19, 980 BCE | S215: Priestly Course #1 correlation
D216: Red text | E216: Set manually based on Starry Night Pro 8 New Moon, and on the Julian Day and Civil Date Calculator | R216: Red text | S216: Set manually based on Starry Night Pro 8 New Moon, and on the Julian Day and Civil Date Calculator
F217: JD & SN8 date | G217: JD & SN8 Weekday MN-MN | H217: Pre-Hezekiah's Long Day MN-MN & after sunset | I217: Pre-Hezekiah MN-MN Weekday after sunset | J217: Date in Month #7 after sunset | K217: Biblical Weekday after sunset | L217: JD & SN8 date | M217: JD & SN8 Weekday MN-MN | N217: Pre-Hezekiah's Long Day MN-MN & B4 sunset | O217: Pre-Hezekiah MN-MN Weekday B4 sunset | P217: Date in Month #7 B4 sunset | Q217: Jewish Weekday B4 sunset
D223: Astronomical New Moon | F223: 2024-11-09 | G223: Wed | H223: =F223+1 -> 2024-11-10 | I223: =IF(G223="Sun","Mon",IF(G223="Mon","Tue",IF(G223="Tue","Wed",IF(G223="Wed","Thu",IF(G223="Thu","Fri",IF(G223="Fri","Sat",IF(G223="Sat","Sun"))))))) -> Thu | J223: 1 | K223: =IF(I223="Sun","2",IF(I223="Mon","3",IF(I223="Tue","4",IF(I223="Wed","5",IF(I223="Thu","6",IF(I223="Fri","7",IF(I223="Sat","1"))))))) -> 6 | L223: =F223+1 -> 2024-11-10 | M223: =IF(G223="Sun","Mon",IF(G223="Mon","Tue",IF(G223="Tue","Wed",IF(G223="Wed","Thu",IF(G223="Thu","Fri",IF(G223="Fri","Sat",IF(G223="Sat","Sun"))))))) -> Thu | N223: =H223+1 -> 2024-11-11 | O223: =IF(I223="Sun","Mon",IF(I223="Mon","Tue",IF(I223="Tue","Wed",IF(I223="Wed","Thu",IF(I223="Thu","Fri",IF(I223="Fri","Sat",IF(I223="Sat","Sun"))))))) -> Fri | P223: =J223 -> 1 | Q223: =IF(O223="Sun","1",IF(O223="Mon","2",IF(O223="Tue","3",IF(O223="Wed","4",IF(O223="Thu","5",IF(O223="Fri","6",IF(O223="Sat","7"))))))) -> 6 | R223: Astronomical New Moon
D224: 7th Day Sabbath | F224: =F223+1 -> 2024-11-10 | G224: =IF(G223="Sun","Mon",IF(G223="Mon","Tue",IF(G223="Tue","Wed",IF(G223="Wed","Thu",IF(G223="Thu","Fri",IF(G223="Fri","Sat",IF(G223="Sat","Sun"))))))) -> Thu | H224: =H223+1 -> 2024-11-11 | I224: =IF(I223="Sun","Mon",IF(I223="Mon","Tue",IF(I223="Tue","Wed",IF(I223="Wed","Thu",IF(I223="Thu","Fri",IF(I223="Fri","Sat",IF(I223="Sat","Sun"))))))) -> Fri | J224: =J223+1 -> 2 | K224: 7 | L224: =L223+1 -> 2024-11-11 | M224: =IF(M223="Sun","Mon",IF(M223="Mon","Tue",IF(M223="Tue","Wed",IF(M223="Wed","Thu",IF(M223="Thu","Fri",IF(M223="Fri","Sat",IF(M223="Sat","Sun"))))))) -> Fri | N224: =N223+1 -> 2024-11-12 | O224: =IF(O223="Sun","Mon",IF(O223="Mon","Tue",IF(O223="Tue","Wed",IF(O223="Wed","Thu",IF(O223="Thu","Fri",IF(O223="Fri","Sat",IF(O223="Sat","Sun"))))))) -> Sat | P224: 2 | Q224: 7 | R224: 7th Day Sabbath
F225: 2024-11-11 | G225: Fri | H225: 2024-11-12 | I225: Sat | J225: 3 | K225: 1 | L225: 2024-11-12 | M225: Sat | N225: 2024-11-13 | O225: Sun | P225: 3 | Q225: 1
F226: 2024-11-12 | G226: Sat | H226: 2024-11-13 | I226: Sun | J226: 4 | K226: 2 | L226: 2024-11-13 | M226: Sun | N226: 2024-11-14 | O226: Mon | P226: 4 | Q226: 2
F227: 2024-11-13 | G227: Sun | H227: 2024-11-14 | I227: Mon | J227: 5 | K227: 3 | L227: 2024-11-14 | M227: Mon | N227: 2024-11-15 | O227: Tue | P227: 5 | Q227: 3
F228: 2024-11-14 | G228: Mon | H228: 2024-11-15 | I228: Tue | J228: 6 | K228: 4 | L228: 2024-11-15 | M228: Tue | N228: 2024-11-16 | O228: Wed | P228: 6 | Q228: 4
F229: 2024-11-15 | G229: Tue | H229: 2024-11-16 | I229: Wed | J229: 7 | K229: 5 | L229: 2024-11-16 | M229: Wed | N229: 2024-11-17 | O229: Thu | P229: 7 | Q229: 5
F230: 2024-11-16 | G230: Wed | H230: 2024-11-17 | I230: Thu | J230: 8 | K230: 6 | L230: 2024-11-17 | M230: Thu | N230: 2024-11-18 | O230: Fri | P230: 8 | Q230: 6
D231: 7th Day Sabbath & 1st Priestly Course of Jehoiarib beginning | F231: 2024-11-17 | G231: Thu | H231: 2024-11-18 | I231: Fri | J231: 9 | K231: 7 | L231: 2024-11-18 | M231: Fri | N231: 2024-11-19 | O231: Sat | P231: 9 | Q231: 7 | R231: 7th Day Sabbath & 1st Priestly Course of Jehoiarib beginning
F232: 2024-11-18 | G232: Fri | H232: 2024-11-19 | I232: Sat | J232: 10 | K232: 1 | L232: 2024-11-19 | M232: Sat | N232: 2024-11-20 | O232: Sun | P232: 10 | Q232: 1
F233: 2024-11-19 | G233: Sat | H233: 2024-11-20 | I233: Sun | J233: 11 | K233: 2 | L233: 2024-11-20 | M233: Sun | N233: 2024-11-21 | O233: Mon | P233: 11 | Q233: 2
F234: 2024-11-20 | G234: Sun | H234: 2024-11-21 | I234: Mon | J234: 12 | K234: 3 | L234: 2024-11-21 | M234: Mon | N234: 2024-11-22 | O234: Tue | P234: 12 | Q234: 3
F235: 2024-11-21 | G235: Mon | H235: 2024-11-22 | I235: Tue | J235: 13 | K235: 4 | L235: 2024-11-22 | M235: Tue | N235: 2024-11-23 | O235: Wed | P235: 13 | Q235: 4
F236: 2024-11-22 | G236: Tue | H236: 2024-11-23 | I236: Wed | J236: 14 | K236: 5 | L236: 2024-11-23 | M236: Wed | N236: 2024-11-24 | O236: Thu | P236: 14 | Q236: 5
D237: Jeroboam's Feast | F237: 2024-11-23 | G237: Wed | H237: 2024-11-24 | I237: Thu | J237: 15 | K237: 6 | L237: 2024-11-24 | M237: Thu | N237: 2024-11-25 | O237: Fri | P237: 15 | Q237: 6 | R237: Jeroboam's Feast
D238: 7th Day Sabbath | F238: 2024-11-24 | G238: Thu | H238: 2024-11-25 | I238: Fri | J238: 16 | K238: 7 | L238: 2024-11-25 | M238: Fri | N238: 2024-11-26 | O238: Sat | P238: 16 | Q238: 7 | R238: 7th Day Sabbath
F239: 2024-11-25 | G239: Fri | H239: 2024-11-26 | I239: Sat | J239: 17 | K239: 1 | L239: 2024-11-26 | M239: Sat | N239: 2024-11-27 | O239: Sun | P239: 17 | Q239: 1
F240: 2024-11-26 | G240: Sat | H240: 2024-11-27 | I240: Sun | J240: 18 | K240: 2 | L240: 2024-11-27 | M240: Sun | N240: 2024-11-28 | O240: Mon | P240: 18 | Q240: 2
F241: 2024-11-27 | G241: Sun | H241: 2024-11-28 | I241: Mon | J241: 19 | K241: 3 | L241: 2024-11-28 | M241: Mon | N241: 2024-11-29 | O241: Tue | P241: 19 | Q241: 3
F242: 2024-11-28 | G242: Mon | H242: 2024-11-29 | I242: Tue | J242: 20 | K242: 4 | L242: 2024-11-29 | M242: Tue | N242: 2024-11-30 | O242: Wed | P242: 20 | Q242: 4
F243: 2024-11-29 | G243: Tue | H243: 2024-11-30 | I243: Wed | J243: 21 | K243: 5 | L243: 2024-11-30 | M243: Wed | N243: 2024-12-01 | O243: Thu | P243: 21 | Q243: 5
F244: 2024-11-30 | G244: Wed | H244: 2024-12-01 | I244: Thu | J244: 22 | K244: 6 | L244: 2024-12-01 | M244: Thu | N244: 2024-12-02 | O244: Fri | P244: 22 | Q244: 6
D245: 7th Day Sabbath | F245: 2024-12-01 | G245: Thu | H245: 2024-12-02 | I245: Fri | J245: 23 | K245: 7 | L245: 2024-12-02 | M245: Fri | N245: 2024-12-03 | O245: Sat | P245: 23 | Q245: 7 | R245: 7th Day Sabbath
F246: 2024-12-02 | G246: Fri | H246: 2024-12-03 | I246: Sat | J246: 24 | K246: 1 | L246: 2024-12-03 | M246: Sat | N246: 2024-12-04 | O246: Sun | P246: 24 | Q246: 1
F247: 2024-12-03 | G247: Sat | H247: 2024-12-04 | I247: Sun | J247: 25 | K247: 2 | L247: 2024-12-04 | M247: Sun | N247: 2024-12-05 | O247: Mon | P247: 25 | Q247: 2
F248: 2024-12-04 | G248: Sun | H248: 2024-12-05 | I248: Mon | J248: 26 | K248: 3 | L248: 2024-12-05 | M248: Mon | N248: 2024-12-06 | O248: Tue | P248: 26 | Q248: 3
F249: 2024-12-05 | G249: Mon | H249: 2024-12-06 | I249: Tue | J249: 27 | K249: 4 | L249: 2024-12-06 | M249: Tue | N249: 2024-12-07 | O249: Wed | P249: 27 | Q249: 4
F250: 2024-12-06 | G250: Tue | H250: 2024-12-07 | I250: Wed | J250: 28 | K250: 5 | L250: 2024-12-07 | M250: Wed | N250: 2024-12-08 | O250: Thu | P250: 28 | Q250: 5
F251: 2024-12-07 | G251: Wed | H251: 2024-12-08 | I251: Thu | J251: 29 | K251: 6 | L251: 2024-12-08 | M251: Thu | N251: 2024-12-09 | O251: Fri | P251: 29 | Q251: 6
D252: 7th Day Sabbath | F252: 2024-12-08 | G252: Thu | H252: 2024-12-09 | I252: Fri | J252: 30 | K252: 7 | L252: 2024-12-09 | M252: Fri | N252: 2024-12-10 | O252: Sat | P252: 30 | Q252: 7 | R252: 7th Day Sabbath

Sheet Solomon's Temple Dedication
D10: Legend: | F10: 1009 BCE Dates Pertaining to the Dedication of Solomon's Temple | R10: Legend:
E11: 7th Day Sabbath | S11: 7th Day Sabbath
E12: Annual Sabbath | S12: Annual Sabbath
E13: Annual Feast | S13: Annual Feast
E14: Solomon's Feast | F14: Biblical reckoning (i.e. from the gateway sign at the beginni6ng of each Day or date): The Hebrew Day beginning at sunset on that same Roman calendar day | L14: Jewish reckoning (as referenced in the Wikipedia table of Priestlly Divisions): The Hebrew Day following the sunset of the prior Roman day | S14: Solomon's Feast
D15: Sat Nov 27, 1009 BCE | E15: Priestly Course #1 correlation | R15: Sat Nov 27, 1009 BCE | S15: Priestly Course #1 correlation
D16: Red text | E16: Set manually based on Starry Night Pro 8 New Moon, and on the Julian Day and Civil Date Calculator | R16: Red text | S16: Set manually based on Starry Night Pro 8 New Moon, and on the Julian Day and Civil Date Calculator
F17: JD & SN8 date | G17: JD & SN8 Weekday MN-MN | H17: Pre-Hezekiah's Long Day MN-MN & after sunset | I17: Pre-Hezekiah MN-MN Weekday after sunset | J17: Date in Month #7 after sunset | K17: Biblical Weekday after sunset | L17: JD & SN8 date | M17: JD & SN8 Weekday MN-MN | N17: Pre-Hezekiah's Long Day MN-MN & B4 sunset | O17: Pre-Hezekiah MN-MN Weekday B4 sunset | P17: Date in Month #7 B4 sunset | Q17: Jewish Weekday B4 sunset
D23: Day of Trumpets | F23: 2024-10-31 | G23: Sun | H23: =F23+1 -> 2024-11-01 | I23: =IF(G23="Sun","Mon",IF(G23="Mon","Tue",IF(G23="Tue","Wed",IF(G23="Wed","Thu",IF(G23="Thu","Fri",IF(G23="Fri","Sat",IF(G23="Sat","Sun"))))))) -> Mon | J23: 1 | K23: =IF(I23="Sun","2",IF(I23="Mon","3",IF(I23="Tue","4",IF(I23="Wed","5",IF(I23="Thu","6",IF(I23="Fri","7",IF(I23="Sat","1"))))))) -> 3 | L23: =F23+1 -> 2024-11-01 | M23: =IF(G23="Sun","Mon",IF(G23="Mon","Tue",IF(G23="Tue","Wed",IF(G23="Wed","Thu",IF(G23="Thu","Fri",IF(G23="Fri","Sat",IF(G23="Sat","Sun"))))))) -> Mon | N23: =H23+1 -> 2024-11-02 | O23: =IF(I23="Sun","Mon",IF(I23="Mon","Tue",IF(I23="Tue","Wed",IF(I23="Wed","Thu",IF(I23="Thu","Fri",IF(I23="Fri","Sat",IF(I23="Sat","Sun"))))))) -> Tue | P23: =J23 -> 1 | Q23: =IF(O23="Sun","1",IF(O23="Mon","2",IF(O23="Tue","3",IF(O23="Wed","4",IF(O23="Thu","5",IF(O23="Fri","6",IF(O23="Sat","7"))))))) -> 3 | R23: Day of Trumpets
F24: =F23+1 -> 2024-11-01 | G24: =IF(G23="Sun","Mon",IF(G23="Mon","Tue",IF(G23="Tue","Wed",IF(G23="Wed","Thu",IF(G23="Thu","Fri",IF(G23="Fri","Sat",IF(G23="Sat","Sun"))))))) -> Mon | H24: =H23+1 -> 2024-11-02 | I24: =IF(I23="Sun","Mon",IF(I23="Mon","Tue",IF(I23="Tue","Wed",IF(I23="Wed","Thu",IF(I23="Thu","Fri",IF(I23="Fri","Sat",IF(I23="Sat","Sun"))))))) -> Tue | J24: =J23+1 -> 2 | K24: 4 | L24: =L23+1 -> 2024-11-02 | M24: =IF(M23="Sun","Mon",IF(M23="Mon","Tue",IF(M23="Tue","Wed",IF(M23="Wed","Thu",IF(M23="Thu","Fri",IF(M23="Fri","Sat",IF(M23="Sat","Sun"))))))) -> Tue | N24: =N23+1 -> 2024-11-03 | O24: =IF(O23="Sun","Mon",IF(O23="Mon","Tue",IF(O23="Tue","Wed",IF(O23="Wed","Thu",IF(O23="Thu","Fri",IF(O23="Fri","Sat",IF(O23="Sat","Sun"))))))) -> Wed | P24: 2 | Q24: 4
F25: 2024-11-02 | G25: Tue | H25: 2024-11-03 | I25: Wed | J25: 3 | K25: 5 | L25: 2024-11-03 | M25: Wed | N25: 2024-11-04 | O25: Thu | P25: 3 | Q25: 5
F26: 2024-11-03 | G26: Wed | H26: 2024-11-04 | I26: Thu | J26: 4 | K26: 6 | L26: 2024-11-04 | M26: Thu | N26: 2024-11-05 | O26: Fri | P26: 4 | Q26: 6
D27: 7th Day Sabbath | F27: 2024-11-04 | G27: Thu | H27: 2024-11-05 | I27: Fri | J27: 5 | K27: 7 | L27: 2024-11-05 | M27: Fri | N27: 2024-11-06 | O27: Sat | P27: 5 | Q27: 7 | R27: 7th Day Sabbath
F28: 2024-11-05 | G28: Fri | H28: 2024-11-06 | I28: Sat | J28: 6 | K28: 1 | L28: 2024-11-06 | M28: Sat | N28: 2024-11-07 | O28: Sun | P28: 6 | Q28: 1
F29: 2024-11-06 | G29: Sat | H29: 2024-11-07 | I29: Sun | J29: 7 | K29: 2 | L29: 2024-11-07 | M29: Sun | N29: 2024-11-08 | O29: Mon | P29: 7 | Q29: 2
F30: 2024-11-07 | G30: Sun | H30: 2024-11-08 | I30: Mon | J30: 8 | K30: 3 | L30: 2024-11-08 | M30: Mon | N30: 2024-11-09 | O30: Tue | P30: 8 | Q30: 3
F31: 2024-11-08 | G31: Mon | H31: 2024-11-09 | I31: Tue | J31: 9 | K31: 4 | L31: 2024-11-09 | M31: Tue | N31: 2024-11-10 | O31: Wed | P31: 9 | Q31: 4
D32: Day of At-One-Meant | F32: 2024-11-09 | G32: Tue | H32: 2024-11-10 | I32: Wed | J32: 10 | K32: 5 | L32: 2024-11-10 | M32: Wed | N32: 2024-11-11 | O32: Thu | P32: 10 | Q32: 5 | R32: Day of At-One-Meant
F33: 2024-11-10 | G33: Wed | H33: 2024-11-11 | I33: Thu | J33: 11 | K33: 6 | L33: 2024-11-11 | M33: Thu | N33: 2024-11-12 | O33: Fri | P33: 11 | Q33: 6
D34: 7th Day Sabbath | F34: 2024-11-11 | G34: Thu | H34: 2024-11-12 | I34: Fri | J34: 12 | K34: 7 | L34: 2024-11-12 | M34: Fri | N34: 2024-11-13 | O34: Sat | P34: 12 | Q34: 7 | R34: 7th Day Sabbath
D35: And... Solomon held a feast… fourteen days 1 Kings 8:65 | F35: 2024-11-12 | G35: Fri | H35: 2024-11-13 | I35: Sat | J35: 13 | K35: 1 | L35: 2024-11-13 | M35: Sat | N35: 2024-11-14 | O35: Sun | P35: 13 | Q35: 1 | S35: And... Solomon held a feast… fourteen days 1 Kings 8:65
F36: 2024-11-13 | G36: Sat | H36: 2024-11-14 | I36: Sun | J36: 14 | K36: 2 | L36: 2024-11-14 | M36: Sun | N36: 2024-11-15 | O36: Mon | P36: 14 | Q36: 2
E37: The Feast of Tabernacles | F37: 2024-11-14 | G37: Sun | H37: 2024-11-15 | I37: Mon | J37: 15 | K37: 3 | L37: 2024-11-15 | M37: Mon | N37: 2024-11-16 | O37: Tue | P37: 15 | Q37: 3 | R37: The Feast of Tabernacles
F38: 2024-11-15 | G38: Mon | H38: 2024-11-16 | I38: Tue | J38: 16 | K38: 4 | L38: 2024-11-16 | M38: Tue | N38: 2024-11-17 | O38: Wed | P38: 16 | Q38: 4
F39: 2024-11-16 | G39: Tue | H39: 2024-11-17 | I39: Wed | J39: 17 | K39: 5 | L39: 2024-11-17 | M39: Wed | N39: 2024-11-18 | O39: Thu | P39: 17 | Q39: 5
F40: 2024-11-17 | G40: Wed | H40: 2024-11-18 | I40: Thu | J40: 18 | K40: 6 | L40: 2024-11-18 | M40: Thu | N40: 2024-11-19 | O40: Fri | P40: 18 | Q40: 6
E41: The 24th Priestly Course of Maaziah beginning | F41: 2024-11-18 | G41: Thu | H41: 2024-11-19 | I41: Fri | J41: 19 | K41: 7 | L41: 2024-11-19 | M41: Fri | N41: 2024-11-20 | O41: Sat | P41: 19 | Q41: 7 | R41: The 24th Priestly Course of Maaziah beginning
F42: 2024-11-19 | G42: Fri | H42: 2024-11-20 | I42: Sat | J42: 20 | K42: 1 | L42: 2024-11-20 | M42: Sat | N42: 2024-11-21 | O42: Sun | P42: 20 | Q42: 1
F43: 2024-11-20 | G43: Sat | H43: 2024-11-21 | I43: Sun | J43: 21 | K43: 2 | L43: 2024-11-21 | M43: Sun | N43: 2024-11-22 | O43: Mon | P43: 21 | Q43: 2
E44: 8th Day Feast | F44: 2024-11-21 | G44: Sun | H44: 2024-11-22 | I44: Mon | J44: 22 | K44: 3 | L44: 2024-11-22 | M44: Mon | N44: 2024-11-23 | O44: Tue | P44: 22 | Q44: 3 | R44: 8th Day Feast
F45: 2024-11-22 | G45: Mon | H45: 2024-11-23 | I45: Tue | J45: 23 | K45: 4 | L45: 2024-11-23 | M45: Tue | N45: 2024-11-24 | O45: Wed | P45: 23 | Q45: 4
F46: 2024-11-23 | G46: Tue | H46: 2024-11-24 | I46: Wed | J46: 24 | K46: 5 | L46: 2024-11-24 | M46: Wed | N46: 2024-11-25 | O46: Thu | P46: 24 | Q46: 5
F47: 2024-11-24 | G47: Wed | H47: 2024-11-25 | I47: Thu | J47: 25 | K47: 6 | L47: 2024-11-25 | M47: Thu | N47: 2024-11-26 | O47: Fri | P47: 25 | Q47: 6
E48: The 1st Priestly Course of Jehoiarib beginning | F48: 2024-11-25 | G48: Thu | H48: 2024-11-26 | I48: Fri | J48: 26 | K48: 7 | L48: 2024-11-26 | M48: Fri | N48: 2024-11-27 | O48: Sat | P48: 26 | Q48: 7 | R48: The 1st Priestly Course of Jehoiarib beginning
F49: 2024-11-26 | G49: Fri | H49: 2024-11-27 | I49: Sat | J49: 27 | K49: 1 | L49: 2024-11-27 | M49: Sat | N49: 2024-11-28 | O49: Sun | P49: 27 | Q49: 1
F50: 2024-11-27 | G50: Sat | H50: 2024-11-28 | I50: Sun | J50: 28 | K50: 2 | L50: 2024-11-28 | M50: Sun | N50: 2024-11-29 | O50: Mon | P50: 28 | Q50: 2
F51: 2024-11-28 | G51: Sun | H51: 2024-11-29 | I51: Mon | J51: 29 | K51: 3 | L51: 2024-11-29 | M51: Mon | N51: 2024-11-30 | O51: Tue | P51: 29 | Q51: 3
F52: 2024-11-29 | G52: Mon | H52: 2024-11-30 | I52: Tue | J52: 30 | K52: 4 | L52: 2024-11-30 | M52: Tue | N52: 2024-12-01 | O52: Wed | P52: 30 | Q52: 4

Sheet Exodus+2years
C2: Exodus related events - Two tables:
C4: 1 | D4: 1495 BCE Exodus, God Giving the 10 Commandments on Mt. Sinai, Moses on Mt. Sinai 40 days x 2, and 5 months until the Tabernacle finished.
C5: 2 | D5: 1494 BCE Dates Pertaining to the Erection of the Tabernacle & the 1st Priestly Course
C9: 1
D10: Legend: | F10: 1495 BCE Exodus, God Giving the 10 Commandments on Mt. Sinai, Moses on Mt. Sinai 40 days x 2, and 5 months until the Tabernacle finished. | R10: Legend:
E11: 7th Day Sabbath | S11: 7th Day Sabbath
E12: Annual Sabbath | S12: Annual Sabbath
E13: Annual Feast | S13: Annual Feast
A14: Correlations re the Days of Omer, & re Moses' 40 days x2 on Mt. Sinai, & the 5 months of building the Tabernacle | F14: Biblical reckoning (i.e. from the gateway sign at the beginni6ng of each Day or date): The Hebrew Day beginning at sunset on that same Roman calendar day | L14: Jewish reckoning (as referenced in the Wikipedia table of Priestlly Divisions): The Hebrew Day following the sunset of the prior Roman day | T14: Correlations re the Days of Omer, & re Moses' 40 days x2 on Mt. Sinai, & the 5 months of building the Tabernacle
D15: Seventh Day Sabbath | E15: Original Pentecost Event on Mt Sinai | R15: =D15 -> Seventh Day Sabbath | S15: =E15 -> Original Pentecost Event on Mt Sinai
D16: Red text | E16: Set manually based on Starry Night Pro 8 New Moon, and on the Julian Day and Civil Date Calculator | R16: Red text | S16: Set manually based on Starry Night Pro 8 New Moon, and on the Julian Day and Civil Date Calculator
F17: JD & SN8 date | G17: JD & SN8 Weekday MN-MN | H17: Pre-Joshuah's Long Day MN-MN & after sunset | I17: Pre-Joshuah MN-MN Weekday after sunset | J17: Date in Months #12-#3 after sunset | K17: Biblical Weekday after sunset | L17: JD & SN8 date | M17: JD & SN8 Weekday MN-MN | N17: Pre-Joshuah's Long Day MN-MN & B4 sunset | O17: Pre-Joshuah MN-MN Weekday B4 sunset | P17: Date in Months #12-#3 B4 sunset | Q17: Jewish Weekday B4 sunset
D23: New Moon #12, 1495 BCE Lag: 79 min 28 sec; Ill.: 2.24% | F23: 2023-02-12 | G23: Sat | H23: =F23+2 -> 2023-02-14 | I23: =IF(G23="Sun","Tue",IF(G23="Mon","Wed",IF(G23="Tue","Thu",IF(G23="Wed","Fri",IF(G23="Thu","Sat",IF(G23="Fri","Sun",IF(G23="Sat","Mon"))))))) -> Mon | J23: 1 | K23: =IF(I23="Sun","2",IF(I23="Mon","3",IF(I23="Tue","4",IF(I23="Wed","5",IF(I23="Thu","6",IF(I23="Fri","7",IF(I23="Sat","1"))))))) -> 3 | L23: =F23+1 -> 2023-02-13 | M23: =IF(G23="Sun","Mon",IF(G23="Mon","Tue",IF(G23="Tue","Wed",IF(G23="Wed","Thu",IF(G23="Thu","Fri",IF(G23="Fri","Sat",IF(G23="Sat","Sun"))))))) -> Sun | N23: =H23+1 -> 2023-02-15 | O23: =IF(I23="Sun","Mon",IF(I23="Mon","Tue",IF(I23="Tue","Wed",IF(I23="Wed","Thu",IF(I23="Thu","Fri",IF(I23="Fri","Sat",IF(I23="Sat","Sun"))))))) -> Tue | P23: =J23 -> 1 | Q23: =IF(O23="Sun","1",IF(O23="Mon","2",IF(O23="Tue","3",IF(O23="Wed","4",IF(O23="Thu","5",IF(O23="Fri","6",IF(O23="Sat","7"))))))) -> 3
F24: =F23+1 -> 2023-02-13 | G24: =IF(G23="Sun","Mon",IF(G23="Mon","Tue",IF(G23="Tue","Wed",IF(G23="Wed","Thu",IF(G23="Thu","Fri",IF(G23="Fri","Sat",IF(G23="Sat","Sun"))))))) -> Sun | H24: =H23+1 -> 2023-02-15 | I24: =IF(I23="Sun","Mon",IF(I23="Mon","Tue",IF(I23="Tue","Wed",IF(I23="Wed","Thu",IF(I23="Thu","Fri",IF(I23="Fri","Sat",IF(I23="Sat","Sun"))))))) -> Tue | J24: =J23+1 -> 2 | K24: =IF(I24="Sun","2",IF(I24="Mon","3",IF(I24="Tue","4",IF(I24="Wed","5",IF(I24="Thu","6",IF(I24="Fri","7",IF(I24="Sat","1"))))))) -> 4 | L24: =L23+1 -> 2023-02-14 | M24: =IF(M23="Sun","Mon",IF(M23="Mon","Tue",IF(M23="Tue","Wed",IF(M23="Wed","Thu",IF(M23="Thu","Fri",IF(M23="Fri","Sat",IF(M23="Sat","Sun"))))))) -> Mon | N24: =N23+1 -> 2023-02-16 | O24: =IF(O23="Sun","Mon",IF(O23="Mon","Tue",IF(O23="Tue","Wed",IF(O23="Wed","Thu",IF(O23="Thu","Fri",IF(O23="Fri","Sat",IF(O23="Sat","Sun"))))))) -> Wed | P24: =J24 -> 2 | Q24: =IF(O24="Sun","1",IF(O24="Mon","2",IF(O24="Tue","3",IF(O24="Wed","4",IF(O24="Thu","5",IF(O24="Fri","6",IF(O24="Sat","7"))))))) -> 4
F25: 2023-02-14 | G25: Mon | H25: 2023-02-16 | I25: Wed | J25: 3 | K25: =IF(I25="Sun","2",IF(I25="Mon","3",IF(I25="Tue","4",IF(I25="Wed","5",IF(I25="Thu","6",IF(I25="Fri","7",IF(I25="Sat","1"))))))) -> 5 | L25: 2023-02-15 | M25: Tue | N25: 2023-02-17 | O25: Thu | P25: =J25 -> 3 | Q25: =IF(O25="Sun","1",IF(O25="Mon","2",IF(O25="Tue","3",IF(O25="Wed","4",IF(O25="Thu","5",IF(O25="Fri","6",IF(O25="Sat","7"))))))) -> 5
F26: 2023-02-15 | G26: Tue | H26: 2023-02-17 | I26: Thu | J26: 4 | K26: 6 | L26: 2023-02-16 | M26: Wed | N26: 2023-02-18 | O26: Fri | P26: 4 | Q26: 6
D27: 7th Day Sabbath | F27: 2023-02-16 | G27: Wed | H27: 2023-02-18 | I27: Fri | J27: 5 | K27: 7 | L27: 2023-02-17 | M27: Thu | N27: 2023-02-19 | O27: Sat | P27: 5 | Q27: 7
F28: 2023-02-17 | G28: Thu | H28: 2023-02-19 | I28: Sat | J28: 6 | K28: 1 | L28: 2023-02-18 | M28: Fri | N28: 2023-02-20 | O28: Sun | P28: 6 | Q28: 1
F29: 2023-02-18 | G29: Fri | H29: 2023-02-20 | I29: Sun | J29: 7 | K29: 2 | L29: 2023-02-19 | M29: Sat | N29: 2023-02-21 | O29: Mon | P29: 7 | Q29: 2
B30: Omer reckoning Alternative #2 | F30: 2023-02-19 | G30: Sat | H30: 2023-02-21 | I30: Mon | J30: 8 | K30: 3 | L30: 2023-02-20 | M30: Sun | N30: 2023-02-22 | O30: Tue | P30: 8 | Q30: 3
F31: 2023-02-20 | G31: Sun | H31: 2023-02-22 | I31: Tue | J31: 9 | K31: 4 | L31: 2023-02-21 | M31: Mon | N31: 2023-02-23 | O31: Wed | P31: 9 | Q31: 4
F32: 2023-02-21 | G32: Mon | H32: 2023-02-23 | I32: Wed | J32: 10 | K32: 5 | L32: 2023-02-22 | M32: Tue | N32: 2023-02-24 | O32: Thu | P32: 10 | Q32: 5
F33: 2023-02-22 | G33: Tue | H33: 2023-02-24 | I33: Thu | J33: 11 | K33: 6 | L33: 2023-02-23 | M33: Wed | N33: 2023-02-25 | O33: Fri | P33: 11 | Q33: 6
B34: Day #1 of Omer Waving of the Sheaf Sabbath Alternative #2 | D34: 7th Day Sabbath | F34: 2023-02-23 | G34: Wed | H34: 2023-02-25 | I34: Fri | J34: 12 | K34: 7 | L34: 2023-02-24 | M34: Thu | N34: 2023-02-26 | O34: Sat | P34: 12 | Q34: 7
B35: 2 | F35: 2023-02-24 | G35: Thu | H35: 2023-02-26 | I35: Sat | J35: 13 | K35: 1 | L35: 2023-02-25 | M35: Fri | N35: 2023-02-27 | O35: Sun | P35: 13 | Q35: 1
B36: =B35+1 -> 3 | F36: 2023-02-25 | G36: Fri | H36: 2023-02-27 | I36: Sun | J36: 14 | K36: 2 | L36: 2023-02-26 | M36: Sat | N36: 2023-02-28 | O36: Mon | P36: 14 | Q36: 2
B37: 4 | F37: 2023-02-26 | G37: Sat | H37: 2023-02-28 | I37: Mon | J37: 15 | K37: 3 | L37: 2023-02-27 | M37: Sun | N37: 2023-03-01 | O37: Tue | P37: 15 | Q37: 3
B38: 5 | F38: 2023-02-27 | G38: Sun | H38: 2023-03-01 | I38: Tue | J38: 16 | K38: 4 | L38: 2023-02-28 | M38: Mon | N38: 2023-03-02 | O38: Wed | P38: 16 | Q38: 4
B39: 6 | F39: 2023-02-28 | G39: Mon | H39: 2023-03-02 | I39: Wed | J39: 17 | K39: 5 | L39: 2023-03-01 | M39: Tue | N39: 2023-03-03 | O39: Thu | P39: 17 | Q39: 5
B40: 7 | F40: 2023-03-01 | G40: Tue | H40: 2023-03-03 | I40: Thu | J40: 18 | K40: 6 | L40: 2023-03-02 | M40: Wed | N40: 2023-03-04 | O40: Fri | P40: 18 | Q40: 6
B41: 8 | D41: 7th Day Sabbath | F41: 2023-03-02 | G41: Wed | H41: 2023-03-04 | I41: Fri | J41: 19 | K41: 7 | L41: 2023-03-03 | M41: Thu | N41: 2023-03-05 | O41: Sat | P41: 19 | Q41: 7
B42: 9 | F42: 2023-03-03 | G42: Thu | H42: 2023-03-05 | I42: Sat | J42: 20 | K42: 1 | L42: 2023-03-04 | M42: Fri | N42: 2023-03-06 | O42: Sun | P42: 20 | Q42: 1
B43: 10 | F43: 2023-03-04 | G43: Fri | H43: 2023-03-06 | I43: Sun | J43: 21 | K43: 2 | L43: 2023-03-05 | M43: Sat | N43: 2023-03-07 | O43: Mon | P43: 21 | Q43: 2
B44: 11 | F44: 2023-03-05 | G44: Sat | H44: 2023-03-07 | I44: Mon | J44: 22 | K44: 3 | L44: 2023-03-06 | M44: Sun | N44: 2023-03-08 | O44: Tue | P44: 22 | Q44: 3
B45: 12 | F45: 2023-03-06 | G45: Sun | H45: 2023-03-08 | I45: Tue | J45: 23 | K45: 4 | L45: 2023-03-07 | M45: Mon | N45: 2023-03-09 | O45: Wed | P45: 23 | Q45: 4
B46: 13 | F46: 2023-03-07 | G46: Mon | H46: 2023-03-09 | I46: Wed | J46: 24 | K46: 5 | L46: 2023-03-08 | M46: Tue | N46: 2023-03-10 | O46: Thu | P46: 24 | Q46: 5
B47: 14 | F47: 2023-03-08 | G47: Tue | H47: 2023-03-10 | I47: Thu | J47: 25 | K47: 6 | L47: 2023-03-09 | M47: Wed | N47: 2023-03-11 | O47: Fri | P47: 25 | Q47: 6
B48: 15 | D48: 7th Day Sabbath | F48: 2023-03-09 | G48: Wed | H48: 2023-03-11 | I48: Fri | J48: 26 | K48: 7 | L48: 2023-03-10 | M48: Thu | N48: 2023-03-12 | O48: Sat | P48: 26 | Q48: 7
B49: 16 | F49: 2023-03-10 | G49: Thu | H49: 2023-03-12 | I49: Sat | J49: 27 | K49: 1 | L49: 2023-03-11 | M49: Fri | N49: 2023-03-13 | O49: Sun | P49: 27 | Q49: 1
B50: 17 | F50: 2023-03-11 | G50: Fri | H50: 2023-03-13 | I50: Sun | J50: 28 | K50: 2 | L50: 2023-03-12 | M50: Sat | N50: 2023-03-14 | O50: Mon | P50: 28 | Q50: 2
B51: 18 | F51: 2023-03-12 | G51: Sat | H51: 2023-03-14 | I51: Mon | J51: 29 | K51: 3 | L51: 2023-03-13 | M51: Sun | N51: 2023-03-15 | O51: Tue | P51: 29 | Q51: 3
B52: 19 | F52: 2023-03-13 | G52: Sun | H52: 2023-03-15 | I52: Tue | J52: 30 | K52: 4 | L52: 2023-03-14 | M52: Mon | N52: 2023-03-16 | O52: Wed | P52: 30 | Q52: 4
B53: 20 | D53: New Moon #1, 1495 BCE Lag: 112 min 22 sec; Ill.: 3.51% | F53: 2023-03-14 | G53: Mon | H53: 2023-03-16 | I53: Wed | J53: 1 | K53: =IF(I53="Sun","2",IF(I53="Mon","3",IF(I53="Tue","4",IF(I53="Wed","5",IF(I53="Thu","6",IF(I53="Fri","7",IF(I53="Sat","1"))))))) -> 5 | L53: 2023-03-15 | M53: Tue | N53: 2023-03-17 | O53: Thu | P53: =J53 -> 1 | Q53: =IF(O53="Sun","1",IF(O53="Mon","2",IF(O53="Tue","3",IF(O53="Wed","4",IF(O53="Thu","5",IF(O53="Fri","6",IF(O53="Sat","7"))))))) -> 5 | R53: New Moon #1, 1495 BCE Lag: 112 min 22 sec; Ill.: 3.51%
B54: 21 | F54: =F53+1 -> 2023-03-15 | G54: =IF(G53="Sun","Mon",IF(G53="Mon","Tue",IF(G53="Tue","Wed",IF(G53="Wed","Thu",IF(G53="Thu","Fri",IF(G53="Fri","Sat",IF(G53="Sat","Sun"))))))) -> Tue | H54: =H53+1 -> 2023-03-17 | I54: =IF(I53="Sun","Mon",IF(I53="Mon","Tue",IF(I53="Tue","Wed",IF(I53="Wed","Thu",IF(I53="Thu","Fri",IF(I53="Fri","Sat",IF(I53="Sat","Sun"))))))) -> Thu | J54: =J53+1 -> 2 | K54: =IF(I54="Sun","2",IF(I54="Mon","3",IF(I54="Tue","4",IF(I54="Wed","5",IF(I54="Thu","6",IF(I54="Fri","7",IF(I54="Sat","1"))))))) -> 6 | L54: =L53+1 -> 2023-03-16 | M54: =IF(M53="Sun","Mon",IF(M53="Mon","Tue",IF(M53="Tue","Wed",IF(M53="Wed","Thu",IF(M53="Thu","Fri",IF(M53="Fri","Sat",IF(M53="Sat","Sun"))))))) -> Wed | N54: =N53+1 -> 2023-03-18 | O54: =IF(O53="Sun","Mon",IF(O53="Mon","Tue",IF(O53="Tue","Wed",IF(O53="Wed","Thu",IF(O53="Thu","Fri",IF(O53="Fri","Sat",IF(O53="Sat","Sun"))))))) -> Fri | P54: =J54 -> 2 | Q54: =IF(O54="Sun","1",IF(O54="Mon","2",IF(O54="Tue","3",IF(O54="Wed","4",IF(O54="Thu","5",IF(O54="Fri","6",IF(O54="Sat","7"))))))) -> 6
B55: 22 | D55: 7th Day Sabbath | F55: 2023-03-16 | G55: Wed | H55: 2023-03-18 | I55: Fri | J55: 3 | K55: 7 | L55: 2023-03-17 | M55: Thu | N55: 2023-03-19 | O55: Sat | P55: 3 | Q55: 7 | R55: 7th Day Sabbath
B56: 23 | F56: =F55+1 -> 2023-03-17 | G56: =IF(G55="Sun","Mon",IF(G55="Mon","Tue",IF(G55="Tue","Wed",IF(G55="Wed","Thu",IF(G55="Thu","Fri",IF(G55="Fri","Sat",IF(G55="Sat","Sun"))))))) -> Thu | H56: =H55+1 -> 2023-03-19 | I56: =IF(I55="Sun","Mon",IF(I55="Mon","Tue",IF(I55="Tue","Wed",IF(I55="Wed","Thu",IF(I55="Thu","Fri",IF(I55="Fri","Sat",IF(I55="Sat","Sun"))))))) -> Sat | J56: =J55+1 -> 4 | K56: =IF(I56="Sun","2",IF(I56="Mon","3",IF(I56="Tue","4",IF(I56="Wed","5",IF(I56="Thu","6",IF(I56="Fri","7",IF(I56="Sat","1"))))))) -> 1 | L56: =L55+1 -> 2023-03-18 | M56: =IF(M55="Sun","Mon",IF(M55="Mon","Tue",IF(M55="Tue","Wed",IF(M55="Wed","Thu",IF(M55="Thu","Fri",IF(M55="Fri","Sat",IF(M55="Sat","Sun"))))))) -> Fri | N56: =N55+1 -> 2023-03-20 | O56: =IF(O55="Sun","Mon",IF(O55="Mon","Tue",IF(O55="Tue","Wed",IF(O55="Wed","Thu",IF(O55="Thu","Fri",IF(O55="Fri","Sat",IF(O55="Sat","Sun"))))))) -> Sun | P56: =J56 -> 4 | Q56: =IF(O56="Sun","1",IF(O56="Mon","2",IF(O56="Tue","3",IF(O56="Wed","4",IF(O56="Thu","5",IF(O56="Fri","6",IF(O56="Sat","7"))))))) -> 1
B57: 24 | F57: =F56+1 -> 2023-03-18 | G57: =IF(G56="Sun","Mon",IF(G56="Mon","Tue",IF(G56="Tue","Wed",IF(G56="Wed","Thu",IF(G56="Thu","Fri",IF(G56="Fri","Sat",IF(G56="Sat","Sun"))))))) -> Fri | H57: =H56+1 -> 2023-03-20 | I57: =IF(I56="Sun","Mon",IF(I56="Mon","Tue",IF(I56="Tue","Wed",IF(I56="Wed","Thu",IF(I56="Thu","Fri",IF(I56="Fri","Sat",IF(I56="Sat","Sun"))))))) -> Sun | J57: =J56+1 -> 5 | K57: =IF(I57="Sun","2",IF(I57="Mon","3",IF(I57="Tue","4",IF(I57="Wed","5",IF(I57="Thu","6",IF(I57="Fri","7",IF(I57="Sat","1"))))))) -> 2 | L57: =L56+1 -> 2023-03-19 | M57: =IF(M56="Sun","Mon",IF(M56="Mon","Tue",IF(M56="Tue","Wed",IF(M56="Wed","Thu",IF(M56="Thu","Fri",IF(M56="Fri","Sat",IF(M56="Sat","Sun"))))))) -> Sat | N57: =N56+1 -> 2023-03-21 | O57: =IF(O56="Sun","Mon",IF(O56="Mon","Tue",IF(O56="Tue","Wed",IF(O56="Wed","Thu",IF(O56="Thu","Fri",IF(O56="Fri","Sat",IF(O56="Sat","Sun"))))))) -> Mon | P57: =J57 -> 5 | Q57: =IF(O57="Sun","1",IF(O57="Mon","2",IF(O57="Tue","3",IF(O57="Wed","4",IF(O57="Thu","5",IF(O57="Fri","6",IF(O57="Sat","7"))))))) -> 2
B58: 25 | C58: Omer reckoning Alternative #3 | F58: =F57+1 -> 2023-03-19 | G58: =IF(G57="Sun","Mon",IF(G57="Mon","Tue",IF(G57="Tue","Wed",IF(G57="Wed","Thu",IF(G57="Thu","Fri",IF(G57="Fri","Sat",IF(G57="Sat","Sun"))))))) -> Sat | H58: =H57+1 -> 2023-03-21 | I58: =IF(I57="Sun","Mon",IF(I57="Mon","Tue",IF(I57="Tue","Wed",IF(I57="Wed","Thu",IF(I57="Thu","Fri",IF(I57="Fri","Sat",IF(I57="Sat","Sun"))))))) -> Mon | J58: =J57+1 -> 6 | K58: =IF(I58="Sun","2",IF(I58="Mon","3",IF(I58="Tue","4",IF(I58="Wed","5",IF(I58="Thu","6",IF(I58="Fri","7",IF(I58="Sat","1"))))))) -> 3 | L58: =L57+1 -> 2023-03-20 | M58: =IF(M57="Sun","Mon",IF(M57="Mon","Tue",IF(M57="Tue","Wed",IF(M57="Wed","Thu",IF(M57="Thu","Fri",IF(M57="Fri","Sat",IF(M57="Sat","Sun"))))))) -> Sun | N58: =N57+1 -> 2023-03-22 | O58: =IF(O57="Sun","Mon",IF(O57="Mon","Tue",IF(O57="Tue","Wed",IF(O57="Wed","Thu",IF(O57="Thu","Fri",IF(O57="Fri","Sat",IF(O57="Sat","Sun"))))))) -> Tue | P58: =J58 -> 6 | Q58: =IF(O58="Sun","1",IF(O58="Mon","2",IF(O58="Tue","3",IF(O58="Wed","4",IF(O58="Thu","5",IF(O58="Fri","6",IF(O58="Sat","7"))))))) -> 3
B59: 26 | F59: =F58+1 -> 2023-03-20 | G59: =IF(G58="Sun","Mon",IF(G58="Mon","Tue",IF(G58="Tue","Wed",IF(G58="Wed","Thu",IF(G58="Thu","Fri",IF(G58="Fri","Sat",IF(G58="Sat","Sun"))))))) -> Sun | H59: =H58+1 -> 2023-03-22 | I59: =IF(I58="Sun","Mon",IF(I58="Mon","Tue",IF(I58="Tue","Wed",IF(I58="Wed","Thu",IF(I58="Thu","Fri",IF(I58="Fri","Sat",IF(I58="Sat","Sun"))))))) -> Tue | J59: =J58+1 -> 7 | K59: =IF(I59="Sun","2",IF(I59="Mon","3",IF(I59="Tue","4",IF(I59="Wed","5",IF(I59="Thu","6",IF(I59="Fri","7",IF(I59="Sat","1"))))))) -> 4 | L59: =L58+1 -> 2023-03-21 | M59: =IF(M58="Sun","Mon",IF(M58="Mon","Tue",IF(M58="Tue","Wed",IF(M58="Wed","Thu",IF(M58="Thu","Fri",IF(M58="Fri","Sat",IF(M58="Sat","Sun"))))))) -> Mon | N59: =N58+1 -> 2023-03-23 | O59: =IF(O58="Sun","Mon",IF(O58="Mon","Tue",IF(O58="Tue","Wed",IF(O58="Wed","Thu",IF(O58="Thu","Fri",IF(O58="Fri","Sat",IF(O58="Sat","Sun"))))))) -> Wed | P59: =J59 -> 7 | Q59: =IF(O59="Sun","1",IF(O59="Mon","2",IF(O59="Tue","3",IF(O59="Wed","4",IF(O59="Thu","5",IF(O59="Fri","6",IF(O59="Sat","7"))))))) -> 4
B60: 27 | F60: 2023-03-21 | G60: Mon | H60: 2023-03-23 | I60: Wed | J60: 8 | K60: 5 | L60: 2023-03-22 | M60: Tue | N60: 2023-03-24 | O60: Thu | P60: 8 | Q60: 5
B61: 28 | F61: 2023-03-22 | G61: Tue | H61: 2023-03-24 | I61: Thu | J61: 9 | K61: 6 | L61: 2023-03-23 | M61: Wed | N61: 2023-03-25 | O61: Fri | P61: 9 | Q61: 6
B62: 29 | C62: Day #1 of Omer Waving of the Sheaf Sabbath Alternative #3 | D62: 7th Day Sabbath | F62: 2023-03-23 | G62: Wed | H62: 2023-03-25 | I62: Fri | J62: 10 | K62: 7 | L62: 2023-03-24 | M62: Thu | N62: 2023-03-26 | O62: Sat | P62: 10 | Q62: 7 | R62: 7th Day Sabbath
B63: 30 | C63: 2 | F63: 2023-03-24 | G63: Thu | H63: 2023-03-26 | I63: Sat | J63: 11 | K63: 1 | L63: 2023-03-25 | M63: Fri | N63: 2023-03-27 | O63: Sun | P63: 11 | Q63: 1
B64: 31 | C64: =C63+1 -> 3 | F64: 2023-03-25 | G64: Fri | H64: 2023-03-27 | I64: Sun | J64: 12 | K64: 2 | L64: 2023-03-26 | M64: Sat | N64: 2023-03-28 | O64: Mon | P64: 12 | Q64: 2
A65: Omer reckoning Alternative #1 | B65: 32 | C65: 4 | F65: 2023-03-26 | G65: Sat | H65: 2023-03-28 | I65: Mon | J65: 13 | K65: 3 | L65: 2023-03-27 | M65: Sun | N65: 2023-03-29 | O65: Tue | P65: 13 | Q65: 3
B66: 33 | C66: 5 | F66: 2023-03-27 | G66: Sun | H66: 2023-03-29 | I66: Tue | J66: 14 | K66: =IF(I66="Sun","2",IF(I66="Mon","3",IF(I66="Tue","4",IF(I66="Wed","5",IF(I66="Thu","6",IF(I66="Fri","7",IF(I66="Sat","1"))))))) -> 4 | L66: 2023-03-28 | M66: Mon | N66: 2023-03-30 | O66: Wed | P66: =J66 -> 14 | Q66: =IF(O66="Sun","1",IF(O66="Mon","2",IF(O66="Tue","3",IF(O66="Wed","4",IF(O66="Thu","5",IF(O66="Fri","6",IF(O66="Sat","7"))))))) -> 4
B67: 34 | C67: 6 | D67: Exodus out of Egypt | F67: 2023-03-28 | G67: Mon | H67: 2023-03-30 | I67: Wed | J67: 15 | K67: 5 | L67: 2023-03-29 | M67: Tue | N67: 2023-03-31 | O67: Thu | P67: 15 | Q67: 5 | R67: Exodus out of Egypt
B68: 35 | C68: 7 | F68: 2023-03-29 | G68: Tue | H68: 2023-03-31 | I68: Thu | J68: 16 | K68: 6 | L68: 2023-03-30 | M68: Wed | N68: 2023-04-01 | O68: Fri | P68: 16 | Q68: 6
A69: Day #1 of Omer Waving of the Sheaf Sabbath Alternative #1 | B69: 36 | C69: 8 | D69: 7th Day Sabbath The Egyptians bury their dead x 3 days Jasher 81:6" | F69: 2023-03-30 | G69: Wed | H69: 2023-04-01 | I69: Fri | J69: 17 | K69: 7 | L69: 2023-03-31 | M69: Thu | N69: 2023-04-02 | O69: Sat | P69: 17 | Q69: 7 | R69: 7th Day Sabbath The Egyptians bury their dead x 3 days Jasher 81:6" | T69: Day # | U69: =U70-1 -> 1 | V69: of Omer
A70: 2 | B70: 37 | C70: 9 | D70: The Egyptians bury their dead x 3 days Jasher 81:6 | F70: 2023-03-31 | G70: Thu | H70: 2023-04-02 | I70: Sat | J70: 18 | K70: 1 | L70: 2023-04-01 | M70: Fri | N70: 2023-04-03 | O70: Sun | P70: 18 | Q70: 1 | R70: The Egyptians bury their dead x 3 days Jasher 81:6 | T70: Day # | U70: 2 | V70: of Omer
A71: =A70+1 -> 3 | B71: 38 | C71: 10 | D71: The Egyptians bury their dead x 3 days Jasher 81:6 | F71: 2023-04-01 | G71: Fri | H71: 2023-04-03 | I71: Sun | J71: 19 | K71: 2 | L71: 2023-04-02 | M71: Sat | N71: 2023-04-04 | O71: Mon | P71: 19 | Q71: 2 | R71: The Egyptians bury their dead x 3 days Jasher 81:6 | T71: Day # | U71: 3 | V71: of Omer
A72: 4 | B72: 39 | C72: 11 | D72: The Egyptians rise up to persue Israel Jasher 81:8-11 | F72: 2023-04-02 | G72: Sat | H72: 2023-04-04 | I72: Mon | J72: 20 | K72: 3 | L72: 2023-04-03 | M72: Sun | N72: 2023-04-05 | O72: Tue | P72: 20 | Q72: 3 | R72: The Egyptians rise up to persue Israel Jasher 81:8-11 | T72: Day # | U72: 4 | V72: of Omer
A73: 5 | B73: 40 | C73: 12 | F73: 2023-04-03 | G73: Sun | H73: 2023-04-05 | I73: Tue | J73: 21 | K73: 4 | L73: 2023-04-04 | M73: Mon | N73: 2023-04-06 | O73: Wed | P73: 21 | Q73: 4 | T73: Day # | U73: 5 | V73: of Omer
A74: 6 | B74: 41 | C74: 13 | F74: 2023-04-04 | G74: Mon | H74: 2023-04-06 | I74: Wed | J74: 22 | K74: 5 | L74: 2023-04-05 | M74: Tue | N74: 2023-04-07 | O74: Thu | P74: 22 | Q74: 5 | T74: Day # | U74: 6 | V74: of Omer
A75: 7 | B75: 42 | C75: 14 | F75: 2023-04-05 | G75: Tue | H75: 2023-04-07 | I75: Thu | J75: 23 | K75: 6 | L75: 2023-04-06 | M75: Wed | N75: 2023-04-08 | O75: Fri | P75: 23 | Q75: 6 | T75: Day # | U75: 7 | V75: of Omer
A76: 8 | B76: 43 | C76: 15 | D76: 7th Day Sabbath | F76: 2023-04-06 | G76: Wed | H76: 2023-04-08 | I76: Fri | J76: 24 | K76: 7 | L76: 2023-04-07 | M76: Thu | N76: 2023-04-09 | O76: Sat | P76: 24 | Q76: 7 | R76: 7th Day Sabbath | T76: Day # | U76: 8 | V76: of Omer
A77: 9 | B77: 44 | C77: 16 | F77: 2023-04-07 | G77: Thu | H77: 2023-04-09 | I77: Sat | J77: 25 | K77: 1 | L77: 2023-04-08 | M77: Fri | N77: 2023-04-10 | O77: Sun | P77: 25 | Q77: 1 | T77: Day # | U77: 9 | V77: of Omer
A78: 10 | B78: 45 | C78: 17 | F78: 2023-04-08 | G78: Fri | H78: 2023-04-10 | I78: Sun | J78: 26 | K78: 2 | L78: 2023-04-09 | M78: Sat | N78: 2023-04-11 | O78: Mon | P78: 26 | Q78: 2 | T78: Day # | U78: 10 | V78: of Omer
A79: 11 | B79: 46 | C79: 18 | F79: 2023-04-09 | G79: Sat | H79: 2023-04-11 | I79: Mon | J79: 27 | K79: 3 | L79: 2023-04-10 | M79: Sun | N79: 2023-04-12 | O79: Tue | P79: 27 | Q79: 3 | T79: Day # | U79: 11 | V79: of Omer
A80: 12 | B80: 47 | C80: 19 | F80: 2023-04-10 | G80: Sun | H80: 2023-04-12 | I80: Tue | J80: 28 | K80: 4 | L80: 2023-04-11 | M80: Mon | N80: 2023-04-13 | O80: Wed | P80: 28 | Q80: 4 | T80: Day # | U80: 12 | V80: of Omer
A81: 13 | B81: 48 | C81: 20 | F81: 2023-04-11 | G81: Mon | H81: 2023-04-13 | I81: Wed | J81: 29 | K81: 5 | L81: 2023-04-12 | M81: Tue | N81: 2023-04-14 | O81: Thu | P81: 29 | Q81: 5 | T81: Day # | U81: 13 | V81: of Omer
A82: 14 | B82: 49 | C82: 21 | D82: Not observed - Inclement weather New Moon #2, 1495 BCE Lag: 87 min 52 sec; Ill.: 1.96% - Required for 6th day of 3rd months falling out on Sabbath as indicated by 10 Commandments being then given, and as likely considering the events subsequent to the Exodus Book of Jasher 82:6 | F82: 2023-04-12 | G82: Tue | H82: 2023-04-14 | I82: Thu | J82: 30 | K82: 6 | L82: 2023-04-13 | M82: Wed | N82: 2023-04-15 | O82: Fri | P82: 30 | Q82: 6 | R82: Not observed - Inclement weather New Moon #2, 1495 BCE Lag: 87 min 52 sec; Ill.: 1.96% - Required for 6th day of 3rd months falling out on Sabbath as indicated by 10 Commandments being then given, and as likely considering the events subsequent to the Exodus Book of Jasher 82:6 | T82: Day # | U82: 14 | V82: of Omer
A83: 15 | B83: 50 | C83: 22 | D83: 7th Day Sabbath & New Moon by default | F83: 2023-04-13 | G83: Wed | H83: 2023-04-15 | I83: Fri | J83: 1 | K83: 7 | L83: 2023-04-14 | M83: Thu | N83: 2023-04-16 | O83: Sat | P83: 1 | Q83: 7 | R83: 7th Day Sabbath & New Moon by default | T83: Day # | U83: 15 | V83: of Omer
A84: 16 | C84: 23 | F84: 2023-04-14 | G84: Thu | H84: 2023-04-16 | I84: Sat | J84: 2 | K84: 1 | L84: 2023-04-15 | M84: Fri | N84: 2023-04-17 | O84: Sun | P84: 2 | Q84: 1 | T84: Day # | U84: 16 | V84: of Omer
A85: 17 | C85: 24 | F85: 2023-04-15 | G85: Fri | H85: 2023-04-17 | I85: Sun | J85: 3 | K85: 2 | L85: 2023-04-16 | M85: Sat | N85: 2023-04-18 | O85: Mon | P85: 3 | Q85: 2 | T85: Day # | U85: 17 | V85: of Omer
A86: 18 | C86: 25 | F86: 2023-04-16 | G86: Sat | H86: 2023-04-18 | I86: Mon | J86: 4 | K86: 3 | L86: 2023-04-17 | M86: Sun | N86: 2023-04-19 | O86: Tue | P86: 4 | Q86: 3 | T86: Day # | U86: 18 | V86: of Omer
A87: 19 | C87: 26 | F87: 2023-04-17 | G87: Sun | H87: 2023-04-19 | I87: Tue | J87: 5 | K87: 4 | L87: 2023-04-18 | M87: Mon | N87: 2023-04-20 | O87: Wed | P87: 5 | Q87: 4 | T87: Day # | U87: 19 | V87: of Omer
A88: 20 | C88: 27 | F88: 2023-04-18 | G88: Mon | H88: 2023-04-20 | I88: Wed | J88: 6 | K88: 5 | L88: 2023-04-19 | M88: Tue | N88: 2023-04-21 | O88: Thu | P88: 6 | Q88: 5 | T88: Day # | U88: 20 | V88: of Omer
A89: 21 | C89: 28 | F89: 2023-04-19 | G89: Tue | H89: 2023-04-21 | I89: Thu | J89: 7 | K89: 6 | L89: 2023-04-20 | M89: Wed | N89: 2023-04-22 | O89: Fri | P89: 7 | Q89: 6 | T89: Day # | U89: 21 | V89: of Omer
A90: 22 | C90: 29 | D90: 7th Day Sabbath | F90: 2023-04-20 | G90: Wed | H90: 2023-04-22 | I90: Fri | J90: 8 | K90: 7 | L90: 2023-04-21 | M90: Thu | N90: 2023-04-23 | O90: Sat | P90: 8 | Q90: 7 | R90: 7th Day Sabbath | T90: Day # | U90: 22 | V90: of Omer
A91: 23 | C91: 30 | F91: 2023-04-21 | G91: Thu | H91: 2023-04-23 | I91: Sat | J91: 9 | K91: 1 | L91: 2023-04-22 | M91: Fri | N91: 2023-04-24 | O91: Sun | P91: 9 | Q91: 1 | T91: Day # | U91: 23 | V91: of Omer
A92: 24 | C92: 31 | F92: 2023-04-22 | G92: Fri | H92: 2023-04-24 | I92: Sun | J92: 10 | K92: 2 | L92: 2023-04-23 | M92: Sat | N92: 2023-04-25 | O92: Mon | P92: 10 | Q92: 2 | T92: Day # | U92: 24 | V92: of Omer
A93: 25 | C93: 32 | F93: 2023-04-23 | G93: Sat | H93: 2023-04-25 | I93: Mon | J93: 11 | K93: 3 | L93: 2023-04-24 | M93: Sun | N93: 2023-04-26 | O93: Tue | P93: 11 | Q93: 3 | T93: Day # | U93: 25 | V93: of Omer
A94: 26 | C94: 33 | F94: 2023-04-24 | G94: Sun | H94: 2023-04-26 | I94: Tue | J94: 12 | K94: 4 | L94: 2023-04-25 | M94: Mon | N94: 2023-04-27 | O94: Wed | P94: 12 | Q94: 4 | T94: Day # | U94: 26 | V94: of Omer
A95: 27 | C95: 34 | F95: 2023-04-25 | G95: Mon | H95: 2023-04-27 | I95: Wed | J95: 13 | K95: 5 | L95: 2023-04-26 | M95: Tue | N95: 2023-04-28 | O95: Thu | P95: 13 | Q95: 5 | T95: Day # | U95: 27 | V95: of Omer
A96: 28 | C96: 35 | F96: 2023-04-26 | G96: Tue | H96: 2023-04-28 | I96: Thu | J96: 14 | K96: 6 | L96: 2023-04-27 | M96: Wed | N96: 2023-04-29 | O96: Fri | P96: 14 | Q96: 6 | T96: Day # | U96: 28 | V96: of Omer
A97: 29 | C97: 36 | D97: 7th Day Sabbath... Journey from Elim to Sin Quails in the evening, then Manna the following morning. Exodus 16:1-12; Jasher 81:47 | F97: 2023-04-27 | G97: Wed | H97: 2023-04-29 | I97: Fri | J97: 15 | K97: 7 | L97: 2023-04-28 | M97: Thu | N97: 2023-04-30 | O97: Sat | P97: 15 | Q97: 7 | R97: 7th Day Sabbath... Journey from Elim to Sin Quails in the evening, then Manna the following morning. Exodus 16:1-12; Jasher 81:47 | T97: Day # | U97: 29 | V97: of Omer
A98: 30 | C98: 37 | D98: Quails on the evening, then Manna in the morning Exodus 16:13-19; Jasher 81:47-48 | F98: 2023-04-28 | G98: Thu | H98: 2023-04-30 | I98: Sat | J98: 16 | K98: 1 | L98: 2023-04-29 | M98: Fri | N98: 2023-05-01 | O98: Sun | P98: 16 | Q98: 1 | R98: Quails on the evening, then Manna in the morning Exodus 16:13-19; Jasher 81:47-48 | T98: Day # | U98: 30 | V98: of Omer
A99: 31 | C99: 38 | F99: 2023-04-29 | G99: Fri | H99: 2023-05-01 | I99: Sun | J99: 17 | K99: 2 | L99: 2023-04-30 | M99: Sat | N99: 2023-05-02 | O99: Mon | P99: 17 | Q99: 2 | T99: Day # | U99: 31 | V99: of Omer
A100: 32 | C100: 39 | F100: 2023-04-30 | G100: Sat | H100: 2023-05-02 | I100: Mon | J100: 18 | K100: 3 | L100: 2023-05-01 | M100: Sun | N100: 2023-05-03 | O100: Tue | P100: 18 | Q100: 3 | T100: Day # | U100: 32 | V100: of Omer
A101: 33 | C101: 40 | F101: 2023-05-01 | G101: Sun | H101: 2023-05-03 | I101: Tue | J101: 19 | K101: 4 | L101: 2023-05-02 | M101: Mon | N101: 2023-05-04 | O101: Wed | P101: 19 | Q101: 4 | T101: Day # | U101: 33 | V101: of Omer
A102: 34 | C102: 41 | F102: 2023-05-02 | G102: Mon | H102: 2023-05-04 | I102: Wed | J102: 20 | K102: 5 | L102: 2023-05-03 | M102: Tue | N102: 2023-05-05 | O102: Thu | P102: 20 | Q102: 5 | T102: Day # | U102: 34 | V102: of Omer
A103: 35 | C103: 42 | F103: 2023-05-03 | G103: Tue | H103: 2023-05-05 | I103: Thu | J103: 21 | K103: 6 | L103: 2023-05-04 | M103: Wed | N103: 2023-05-06 | O103: Fri | P103: 21 | Q103: 6 | T103: Day # | U103: 35 | V103: of Omer
A104: 36 | C104: 43 | D104: 7th Day Sabbath | F104: 2023-05-04 | G104: Wed | H104: 2023-05-06 | I104: Fri | J104: 22 | K104: 7 | L104: 2023-05-05 | M104: Thu | N104: 2023-05-07 | O104: Sat | P104: 22 | Q104: 7 | R104: 7th Day Sabbath | T104: Day # | U104: 36 | V104: of Omer
A105: 37 | C105: 44 | F105: 2023-05-05 | G105: Thu | H105: 2023-05-07 | I105: Sat | J105: 23 | K105: 1 | L105: 2023-05-06 | M105: Fri | N105: 2023-05-08 | O105: Sun | P105: 23 | Q105: 1 | T105: Day # | U105: 37 | V105: of Omer
A106: 38 | C106: 45 | F106: 2023-05-06 | G106: Fri | H106: 2023-05-08 | I106: Sun | J106: 24 | K106: 2 | L106: 2023-05-07 | M106: Sat | N106: 2023-05-09 | O106: Mon | P106: 24 | Q106: 2 | T106: Day # | U106: 38 | V106: of Omer
A107: 39 | C107: 46 | F107: 2023-05-07 | G107: Sat | H107: 2023-05-09 | I107: Mon | J107: 25 | K107: 3 | L107: 2023-05-08 | M107: Sun | N107: 2023-05-10 | O107: Tue | P107: 25 | Q107: 3 | T107: Day # | U107: 39 | V107: of Omer
A108: 40 | C108: 47 | F108: 2023-05-08 | G108: Sun | H108: 2023-05-10 | I108: Tue | J108: 26 | K108: 4 | L108: 2023-05-09 | M108: Mon | N108: 2023-05-11 | O108: Wed | P108: 26 | Q108: 4 | T108: Day # | U108: 40 | V108: of Omer
A109: 41 | C109: 48 | F109: 2023-05-09 | G109: Mon | H109: 2023-05-11 | I109: Wed | J109: 27 | K109: 5 | L109: 2023-05-10 | M109: Tue | N109: 2023-05-12 | O109: Thu | P109: 27 | Q109: 5 | T109: Day # | U109: 41 | V109: of Omer
A110: 42 | C110: 49 | F110: 2023-05-10 | G110: Tue | H110: 2023-05-12 | I110: Thu | J110: 28 | K110: 6 | L110: 2023-05-11 | M110: Wed | N110: 2023-05-13 | O110: Fri | P110: 28 | Q110: 6 | T110: Day # | U110: 42 | V110: of Omer
A111: 43 | C111: 50 | D111: 7th Day Sabbath | F111: 2023-05-11 | G111: Wed | H111: 2023-05-13 | I111: Fri | J111: 29 | K111: 7 | L111: 2023-05-12 | M111: Thu | N111: 2023-05-14 | O111: Sat | P111: 29 | Q111: 7 | R111: 7th Day Sabbath | T111: Day # | U111: 43 | V111: of Omer
A112: 44 | D112: Not observed - Inclement weather New Moon #3, 1495 BCE Lag: 148 min 13 sec; Ill.: 4.64% - Required for 6th day of 3rd months falling out on Sabbath as indicated by 10 Commandments being then given, and as likely considering the events subsequent to the Exodus Book of Jasher 82:6 | F112: 2023-05-12 | G112: Thu | H112: 2023-05-14 | I112: Sat | J112: 30 | K112: 1 | L112: 2023-05-13 | M112: Fri | N112: 2023-05-15 | O112: Sun | P112: 30 | Q112: 1 | R112: Not observed - Inclement weather New Moon #3, 1495 BCE Lag: 148 min 13 sec; Ill.: 4.64% - Required for 6th day of 3rd months falling out on Sabbath as indicated by 10 Commandments being then given, and as likely considering the events subsequent to the Exodus Book of Jasher 82:6 | T112: Day # | U112: 44 | V112: of Omer
A113: 45 | D113: New Moon #3 by default… Israel encamps at Sinai Jasher 82:1 | F113: 2023-05-13 | G113: Fri | H113: 2023-05-15 | I113: Sun | J113: 1 | K113: 2 | L113: 2023-05-14 | M113: Sat | N113: 2023-05-16 | O113: Mon | P113: 1 | Q113: 2 | R113: New Moon #3 by default… Israel encamps at Sinai Jasher 82:1 | T113: Day # | U113: 45 | V113: of Omer
A114: 46 | F114: 2023-05-14 | G114: Sat | H114: 2023-05-16 | I114: Mon | J114: 2 | K114: 3 | L114: 2023-05-15 | M114: Sun | N114: 2023-05-17 | O114: Tue | P114: 2 | Q114: 3 | T114: Day # | U114: 46 | V114: of Omer
A115: 47 | F115: 2023-05-15 | G115: Sun | H115: 2023-05-17 | I115: Tue | J115: 3 | K115: 4 | L115: 2023-05-16 | M115: Mon | N115: 2023-05-18 | O115: Wed | P115: 3 | Q115: 4 | T115: Day # | U115: 47 | V115: of Omer
A116: 48 | F116: 2023-05-16 | G116: Mon | H116: 2023-05-18 | I116: Wed | J116: 4 | K116: 5 | L116: 2023-05-17 | M116: Tue | N116: 2023-05-19 | O116: Thu | P116: 4 | Q116: 5 | T116: Day # | U116: 48 | V116: of Omer
A117: 49 | F117: 2023-05-17 | G117: Tue | H117: 2023-05-19 | I117: Thu | J117: 5 | K117: 6 | L117: 2023-05-18 | M117: Wed | N117: 2023-05-20 | O117: Fri | P117: 5 | Q117: 6 | T117: Day # | U117: =U118-1 -> 49 | V117: of Omer
A118: 50 | D118: Pentecost(?) 7th Day Sabbath 10 Commandments given Jasher 82:6-9 | F118: 2023-05-18 | G118: Wed | H118: 2023-05-20 | I118: Fri | J118: 6 | K118: 7 | L118: 2023-05-19 | M118: Thu | N118: 2023-05-21 | O118: Sat | P118: 6 | Q118: 7 | R118: Pentecost 7th Day Sabbath 10 Commandments given Jasher 82:6-9 | T118: Day # | U118: 50 | V118: of Omer
A119: Moses' day # | B119: 1 | C119: on Mt. Sinai | D119: Jasher 82:6-9 | F119: 2023-05-19 | G119: Thu | H119: 2023-05-21 | I119: Sat | J119: 7 | K119: 1 | L119: 2023-05-20 | M119: Fri | N119: 2023-05-22 | O119: Sun | P119: 7 | Q119: 1 | R119: Jasher 82:6-9 | T119: Moses' day # | U119: 1 | V119: on Mt. Sinai
A120: Moses' day # | B120: =B119+1 -> 2 | C120: on Mt. Sinai | F120: 2023-05-20 | G120: Fri | H120: 2023-05-22 | I120: Sun | J120: 8 | K120: 2 | L120: 2023-05-21 | M120: Sat | N120: 2023-05-23 | O120: Mon | P120: 8 | Q120: 2 | T120: Moses' day # | U120: =U119+1 -> 2 | V120: on Mt. Sinai
A121: Moses' day # | B121: 3 | C121: on Mt. Sinai | F121: 2023-05-21 | G121: Sat | H121: 2023-05-23 | I121: Mon | J121: 9 | K121: 3 | L121: 2023-05-22 | M121: Sun | N121: 2023-05-24 | O121: Tue | P121: 9 | Q121: 3 | T121: Moses' day # | U121: 3 | V121: on Mt. Sinai
A122: Moses' day # | B122: 4 | C122: on Mt. Sinai | F122: 2023-05-22 | G122: Sun | H122: 2023-05-24 | I122: Tue | J122: 10 | K122: 4 | L122: 2023-05-23 | M122: Mon | N122: 2023-05-25 | O122: Wed | P122: 10 | Q122: 4 | T122: Moses' day # | U122: 4 | V122: on Mt. Sinai
A123: Moses' day # | B123: 5 | C123: on Mt. Sinai | F123: =F122+1 -> 2023-05-23 | G123: =IF(G122="Sun","Mon",IF(G122="Mon","Tue",IF(G122="Tue","Wed",IF(G122="Wed","Thu",IF(G122="Thu","Fri",IF(G122="Fri","Sat",IF(G122="Sat","Sun"))))))) -> Mon | H123: =H122+1 -> 2023-05-25 | I123: =IF(I122="Sun","Mon",IF(I122="Mon","Tue",IF(I122="Tue","Wed",IF(I122="Wed","Thu",IF(I122="Thu","Fri",IF(I122="Fri","Sat",IF(I122="Sat","Sun"))))))) -> Wed | J123: =J122+1 -> 11 | K123: 5 | L123: =L122+1 -> 2023-05-24 | M123: =IF(M122="Sun","Mon",IF(M122="Mon","Tue",IF(M122="Tue","Wed",IF(M122="Wed","Thu",IF(M122="Thu","Fri",IF(M122="Fri","Sat",IF(M122="Sat","Sun"))))))) -> Tue | N123: =N122+1 -> 2023-05-26 | O123: =IF(O122="Sun","Mon",IF(O122="Mon","Tue",IF(O122="Tue","Wed",IF(O122="Wed","Thu",IF(O122="Thu","Fri",IF(O122="Fri","Sat",IF(O122="Sat","Sun"))))))) -> Thu | P123: 11 | Q123: 5 | T123: Moses' day # | U123: 5 | V123: on Mt. Sinai
A124: Moses' day # | B124: 6 | C124: on Mt. Sinai | F124: 2023-05-24 | G124: Tue | H124: 2023-05-26 | I124: Thu | J124: 12 | K124: 6 | L124: 2023-05-25 | M124: Wed | N124: 2023-05-27 | O124: Fri | P124: 12 | Q124: 6 | T124: Moses' day # | U124: 6 | V124: on Mt. Sinai
A125: Moses' day # | B125: 7 | C125: on Mt. Sinai | D125: 7th Day Sabbath | F125: 2023-05-25 | G125: Wed | H125: 2023-05-27 | I125: Fri | J125: 13 | K125: 7 | L125: 2023-05-26 | M125: Thu | N125: 2023-05-28 | O125: Sat | P125: 13 | Q125: 7 | R125: 7th Day Sabbath | T125: Moses' day # | U125: 7 | V125: on Mt. Sinai
A126: Moses' day # | B126: 8 | C126: on Mt. Sinai | F126: 2023-05-26 | G126: Thu | H126: 2023-05-28 | I126: Sat | J126: 14 | K126: 1 | L126: 2023-05-27 | M126: Fri | N126: 2023-05-29 | O126: Sun | P126: 14 | Q126: 1 | T126: Moses' day # | U126: 8 | V126: on Mt. Sinai
A127: Moses' day # | B127: 9 | C127: on Mt. Sinai | F127: 2023-05-27 | G127: Fri | H127: 2023-05-29 | I127: Sun | J127: 15 | K127: 2 | L127: 2023-05-28 | M127: Sat | N127: 2023-05-30 | O127: Mon | P127: 15 | Q127: 2 | T127: Moses' day # | U127: 9 | V127: on Mt. Sinai
A128: Moses' day # | B128: 10 | C128: on Mt. Sinai | F128: 2023-05-28 | G128: Sat | H128: 2023-05-30 | I128: Mon | J128: 16 | K128: 3 | L128: 2023-05-29 | M128: Sun | N128: 2023-05-31 | O128: Tue | P128: 16 | Q128: 3 | T128: Moses' day # | U128: 10 | V128: on Mt. Sinai
A129: Moses' day # | B129: 11 | C129: on Mt. Sinai | F129: 2023-05-29 | G129: Sun | H129: 2023-05-31 | I129: Tue | J129: 17 | K129: 4 | L129: 2023-05-30 | M129: Mon | N129: 2023-06-01 | O129: Wed | P129: 17 | Q129: 4 | T129: Moses' day # | U129: 11 | V129: on Mt. Sinai
A130: Moses' day # | B130: 12 | C130: on Mt. Sinai | F130: 2023-05-30 | G130: Mon | H130: 2023-06-01 | I130: Wed | J130: 18 | K130: =IF(I130="Sun","2",IF(I130="Mon","3",IF(I130="Tue","4",IF(I130="Wed","5",IF(I130="Thu","6",IF(I130="Fri","7",IF(I130="Sat","1"))))))) -> 5 | L130: 2023-05-31 | M130: Tue | N130: 2023-06-02 | O130: Thu | P130: =J130 -> 18 | Q130: =IF(O130="Sun","1",IF(O130="Mon","2",IF(O130="Tue","3",IF(O130="Wed","4",IF(O130="Thu","5",IF(O130="Fri","6",IF(O130="Sat","7"))))))) -> 5 | T130: Moses' day # | U130: 12 | V130: on Mt. Sinai
A131: Moses' day # | B131: 13 | C131: on Mt. Sinai | F131: 2023-05-31 | G131: Tue | H131: 2023-06-02 | I131: Thu | J131: 19 | K131: 6 | L131: 2023-06-01 | M131: Wed | N131: 2023-06-03 | O131: Fri | P131: 19 | Q131: 6 | T131: Moses' day # | U131: 13 | V131: on Mt. Sinai
A132: Moses' day # | B132: 14 | C132: on Mt. Sinai | D132: 7th Day Sabbath | F132: 2023-06-01 | G132: Wed | H132: 2023-06-03 | I132: Fri | J132: 20 | K132: 7 | L132: 2023-06-02 | M132: Thu | N132: 2023-06-04 | O132: Sat | P132: 20 | Q132: 7 | R132: 7th Day Sabbath | T132: Moses' day # | U132: 14 | V132: on Mt. Sinai
A133: Moses' day # | B133: 15 | C133: on Mt. Sinai | F133: 2023-06-02 | G133: Thu | H133: 2023-06-04 | I133: Sat | J133: 21 | K133: 1 | L133: 2023-06-03 | M133: Fri | N133: 2023-06-05 | O133: Sun | P133: 21 | Q133: 1 | T133: Moses' day # | U133: 15 | V133: on Mt. Sinai
A134: Moses' day # | B134: 16 | C134: on Mt. Sinai | F134: 2023-06-03 | G134: Fri | H134: 2023-06-05 | I134: Sun | J134: 22 | K134: 2 | L134: 2023-06-04 | M134: Sat | N134: 2023-06-06 | O134: Mon | P134: 22 | Q134: 2 | T134: Moses' day # | U134: 16 | V134: on Mt. Sinai
A135: Moses' day # | B135: 17 | C135: on Mt. Sinai | F135: 2023-06-04 | G135: Sat | H135: 2023-06-06 | I135: Mon | J135: 23 | K135: 3 | L135: 2023-06-05 | M135: Sun | N135: 2023-06-07 | O135: Tue | P135: 23 | Q135: 3 | T135: Moses' day # | U135: 17 | V135: on Mt. Sinai
A136: Moses' day # | B136: 18 | C136: on Mt. Sinai | F136: 2023-06-05 | G136: Sun | H136: 2023-06-07 | I136: Tue | J136: 24 | K136: 4 | L136: 2023-06-06 | M136: Mon | N136: 2023-06-08 | O136: Wed | P136: 24 | Q136: 4 | T136: Moses' day # | U136: 18 | V136: on Mt. Sinai
A137: Moses' day # | B137: 19 | C137: on Mt. Sinai | F137: 2023-06-06 | G137: Mon | H137: 2023-06-08 | I137: Wed | J137: 25 | K137: 5 | L137: 2023-06-07 | M137: Tue | N137: 2023-06-09 | O137: Thu | P137: 25 | Q137: 5 | T137: Moses' day # | U137: 19 | V137: on Mt. Sinai
A138: Moses' day # | B138: 20 | C138: on Mt. Sinai | F138: 2023-06-07 | G138: Tue | H138: 2023-06-09 | I138: Thu | J138: 26 | K138: 6 | L138: 2023-06-08 | M138: Wed | N138: 2023-06-10 | O138: Fri | P138: 26 | Q138: 6 | T138: Moses' day # | U138: 20 | V138: on Mt. Sinai
A139: Moses' day # | B139: 21 | C139: on Mt. Sinai | D139: 7th Day Sabbath | F139: 2023-06-08 | G139: Wed | H139: 2023-06-10 | I139: Fri | J139: 27 | K139: 7 | L139: 2023-06-09 | M139: Thu | N139: 2023-06-11 | O139: Sat | P139: 27 | Q139: 7 | R139: 7th Day Sabbath | T139: Moses' day # | U139: 21 | V139: on Mt. Sinai
A140: Moses' day # | B140: 22 | C140: on Mt. Sinai | F140: 2023-06-09 | G140: Thu | H140: 2023-06-11 | I140: Sat | J140: 28 | K140: 1 | L140: 2023-06-10 | M140: Fri | N140: 2023-06-12 | O140: Sun | P140: 28 | Q140: 1 | T140: Moses' day # | U140: 22 | V140: on Mt. Sinai
A141: Moses' day # | B141: 23 | C141: on Mt. Sinai | D141: New Moon #4, 1495 BCE Lag: 130 min 16 sec; Ill.: 3.54% | F141: 2023-06-10 | G141: Fri | H141: 2023-06-12 | I141: Sun | J141: 1 | K141: 2 | L141: 2023-06-11 | M141: Sat | N141: 2023-06-13 | O141: Mon | P141: 1 | Q141: 2 | R141: New Moon #4, 1495 BCE Lag: 130 min 16 sec; Ill.: 3.54% | T141: Moses' day # | U141: 23 | V141: on Mt. Sinai
A142: Moses' day # | B142: 24 | C142: on Mt. Sinai | F142: 2023-06-11 | G142: Sat | H142: 2023-06-13 | I142: Mon | J142: 2 | K142: 3 | L142: 2023-06-12 | M142: Sun | N142: 2023-06-14 | O142: Tue | P142: 2 | Q142: 3 | T142: Moses' day # | U142: 24 | V142: on Mt. Sinai
A143: Moses' day # | B143: 25 | C143: on Mt. Sinai | F143: 2023-06-12 | G143: Sun | H143: 2023-06-14 | I143: Tue | J143: 3 | K143: 4 | L143: 2023-06-13 | M143: Mon | N143: 2023-06-15 | O143: Wed | P143: 3 | Q143: 4 | T143: Moses' day # | U143: 25 | V143: on Mt. Sinai
A144: Moses' day # | B144: 26 | C144: on Mt. Sinai | F144: 2023-06-13 | G144: Mon | H144: 2023-06-15 | I144: Wed | J144: 4 | K144: 5 | L144: 2023-06-14 | M144: Tue | N144: 2023-06-16 | O144: Thu | P144: 4 | Q144: 5 | T144: Moses' day # | U144: 26 | V144: on Mt. Sinai
A145: Moses' day # | B145: 27 | C145: on Mt. Sinai | F145: 2023-06-14 | G145: Tue | H145: 2023-06-16 | I145: Thu | J145: 5 | K145: 6 | L145: 2023-06-15 | M145: Wed | N145: 2023-06-17 | O145: Fri | P145: 5 | Q145: 6 | T145: Moses' day # | U145: 27 | V145: on Mt. Sinai
A146: Moses' day # | B146: 28 | C146: on Mt. Sinai | D146: 7th Day Sabbath | F146: 2023-06-15 | G146: Wed | H146: 2023-06-17 | I146: Fri | J146: 6 | K146: 7 | L146: 2023-06-16 | M146: Thu | N146: 2023-06-18 | O146: Sat | P146: 6 | Q146: 7 | R146: 7th Day Sabbath | T146: Moses' day # | U146: 28 | V146: on Mt. Sinai
A147: Moses' day # | B147: 29 | C147: on Mt. Sinai | F147: 2023-06-16 | G147: Thu | H147: 2023-06-18 | I147: Sat | J147: 7 | K147: 1 | L147: 2023-06-17 | M147: Fri | N147: 2023-06-19 | O147: Sun | P147: 7 | Q147: 1 | T147: Moses' day # | U147: 29 | V147: on Mt. Sinai
A148: Moses' day # | B148: 30 | C148: on Mt. Sinai | F148: 2023-06-17 | G148: Fri | H148: 2023-06-19 | I148: Sun | J148: 8 | K148: 2 | L148: 2023-06-18 | M148: Sat | N148: 2023-06-20 | O148: Mon | P148: 8 | Q148: 2 | T148: Moses' day # | U148: 30 | V148: on Mt. Sinai
A149: Moses' day # | B149: 31 | C149: on Mt. Sinai | F149: 2023-06-18 | G149: Sat | H149: 2023-06-20 | I149: Mon | J149: 9 | K149: 3 | L149: 2023-06-19 | M149: Sun | N149: 2023-06-21 | O149: Tue | P149: 9 | Q149: 3 | T149: Moses' day # | U149: 31 | V149: on Mt. Sinai
A150: Moses' day # | B150: 32 | C150: on Mt. Sinai | F150: 2023-06-19 | G150: Sun | H150: 2023-06-21 | I150: Tue | J150: 10 | K150: 4 | L150: 2023-06-20 | M150: Mon | N150: 2023-06-22 | O150: Wed | P150: 10 | Q150: 4 | T150: Moses' day # | U150: 32 | V150: on Mt. Sinai
A151: Moses' day # | B151: 33 | C151: on Mt. Sinai | F151: 2023-06-20 | G151: Mon | H151: 2023-06-22 | I151: Wed | J151: 11 | K151: 5 | L151: 2023-06-21 | M151: Tue | N151: 2023-06-23 | O151: Thu | P151: 11 | Q151: 5 | T151: Moses' day # | U151: 33 | V151: on Mt. Sinai
A152: Moses' day # | B152: 34 | C152: on Mt. Sinai | F152: 2023-06-21 | G152: Tue | H152: 2023-06-23 | I152: Thu | J152: 12 | K152: 6 | L152: 2023-06-22 | M152: Wed | N152: 2023-06-24 | O152: Fri | P152: 12 | Q152: 6 | T152: Moses' day # | U152: 34 | V152: on Mt. Sinai
A153: Moses' day # | B153: 35 | C153: on Mt. Sinai | D153: 7th Day Sabbath | F153: 2023-06-22 | G153: Wed | H153: 2023-06-24 | I153: Fri | J153: 13 | K153: 7 | L153: 2023-06-23 | M153: Thu | N153: 2023-06-25 | O153: Sat | P153: 13 | Q153: 7 | R153: 7th Day Sabbath | T153: Moses' day # | U153: 35 | V153: on Mt. Sinai
A154: Moses' day # | B154: 36 | C154: on Mt. Sinai | F154: 2023-06-23 | G154: Thu | H154: 2023-06-25 | I154: Sat | J154: 14 | K154: 1 | L154: 2023-06-24 | M154: Fri | N154: 2023-06-26 | O154: Sun | P154: 14 | Q154: 1 | T154: Moses' day # | U154: 36 | V154: on Mt. Sinai
A155: Moses' day # | B155: 37 | C155: on Mt. Sinai | F155: 2023-06-24 | G155: Fri | H155: 2023-06-26 | I155: Sun | J155: 15 | K155: 2 | L155: 2023-06-25 | M155: Sat | N155: 2023-06-27 | O155: Mon | P155: 15 | Q155: 2 | T155: Moses' day # | U155: 37 | V155: on Mt. Sinai
A156: Moses' day # | B156: 38 | C156: on Mt. Sinai | F156: 2023-06-25 | G156: Sat | H156: 2023-06-27 | I156: Mon | J156: 16 | K156: 3 | L156: 2023-06-26 | M156: Sun | N156: 2023-06-28 | O156: Tue | P156: 16 | Q156: 3 | T156: Moses' day # | U156: 38 | V156: on Mt. Sinai
A157: Moses' day # | B157: 39 | C157: on Mt. Sinai | F157: 2023-06-26 | G157: Sun | H157: 2023-06-28 | I157: Tue | J157: 17 | K157: 4 | L157: 2023-06-27 | M157: Mon | N157: 2023-06-29 | O157: Wed | P157: 17 | Q157: 4 | T157: Moses' day # | U157: 39 | V157: on Mt. Sinai
A158: Moses' day # | B158: 40 | C158: on Mt. Sinai | D158: Jasher 82:9, 11 | F158: 2023-06-27 | G158: Mon | H158: 2023-06-29 | I158: Wed | J158: 18 | K158: 5 | L158: 2023-06-28 | M158: Tue | N158: 2023-06-30 | O158: Thu | P158: 18 | Q158: 5 | R158: Jasher 82:9, 11 | T158: Moses' day # | U158: 40 | V158: on Mt. Sinai
D159: Jasher 82:15-20 | F159: 2023-06-28 | G159: Tue | H159: 2023-06-30 | I159: Thu | J159: 19 | K159: 6 | L159: 2023-06-29 | M159: Wed | N159: 2023-07-01 | O159: Fri | P159: 19 | Q159: 6 | R159: Jasher 82:15-20
A160: Moses' day # | B160: 0 | C160: on Mt. Sinai | D160: 7th Day Sabbath Jasher 82:21-22 | F160: 2023-06-29 | G160: Wed | H160: 2023-07-01 | I160: Fri | J160: 20 | K160: 7 | L160: 2023-06-30 | M160: Thu | N160: 2023-07-02 | O160: Sat | P160: 20 | Q160: 7 | R160: 7th Day Sabbath Jasher 82:21-22 | T160: Moses' day # | U160: 0 | V160: on Mt. Sinai
A161: Moses' day # | B161: =B160+1 -> 1 | C161: on Mt. Sinai | F161: 2023-06-30 | G161: Thu | H161: 2023-07-02 | I161: Sat | J161: 21 | K161: 1 | L161: 2023-07-01 | M161: Fri | N161: 2023-07-03 | O161: Sun | P161: 21 | Q161: 1 | T161: Moses' day # | U161: =U160+1 -> 1 | V161: on Mt. Sinai
A162: Moses' day # | B162: =B161+1 -> 2 | C162: on Mt. Sinai | F162: 2023-07-01 | G162: Fri | H162: 2023-07-03 | I162: Sun | J162: 22 | K162: 2 | L162: 2023-07-02 | M162: Sat | N162: 2023-07-04 | O162: Mon | P162: 22 | Q162: 2 | T162: Moses' day # | U162: =U161+1 -> 2 | V162: on Mt. Sinai
A163: Moses' day # | B163: 3 | C163: on Mt. Sinai | F163: 2023-07-02 | G163: Sat | H163: 2023-07-04 | I163: Mon | J163: 23 | K163: 3 | L163: 2023-07-03 | M163: Sun | N163: 2023-07-05 | O163: Tue | P163: 23 | Q163: 3 | T163: Moses' day # | U163: 3 | V163: on Mt. Sinai
A164: Moses' day # | B164: 4 | C164: on Mt. Sinai | F164: 2023-07-03 | G164: Sun | H164: 2023-07-05 | I164: Tue | J164: 24 | K164: 4 | L164: 2023-07-04 | M164: Mon | N164: 2023-07-06 | O164: Wed | P164: 24 | Q164: 4 | T164: Moses' day # | U164: 4 | V164: on Mt. Sinai
A165: Moses' day # | B165: 5 | C165: on Mt. Sinai | F165: 2023-07-04 | G165: Mon | H165: 2023-07-06 | I165: Wed | J165: 25 | K165: 5 | L165: 2023-07-05 | M165: Tue | N165: 2023-07-07 | O165: Thu | P165: 25 | Q165: 5 | T165: Moses' day # | U165: 5 | V165: on Mt. Sinai
A166: Moses' day # | B166: 6 | C166: on Mt. Sinai | F166: 2023-07-05 | G166: Tue | H166: 2023-07-07 | I166: Thu | J166: 26 | K166: 6 | L166: 2023-07-06 | M166: Wed | N166: 2023-07-08 | O166: Fri | P166: 26 | Q166: 6 | T166: Moses' day # | U166: 6 | V166: on Mt. Sinai
A167: Moses' day # | B167: 7 | C167: on Mt. Sinai | D167: 7th Day Sabbath | F167: 2023-07-06 | G167: Wed | H167: 2023-07-08 | I167: Fri | J167: 27 | K167: 7 | L167: 2023-07-07 | M167: Thu | N167: 2023-07-09 | O167: Sat | P167: 27 | Q167: 7 | R167: 7th Day Sabbath | T167: Moses' day # | U167: 7 | V167: on Mt. Sinai
A168: Moses' day # | B168: 8 | C168: on Mt. Sinai | F168: 2023-07-07 | G168: Thu | H168: 2023-07-09 | I168: Sat | J168: 28 | K168: 1 | L168: 2023-07-08 | M168: Fri | N168: 2023-07-10 | O168: Sun | P168: 28 | Q168: 1 | T168: Moses' day # | U168: 8 | V168: on Mt. Sinai
A169: Moses' day # | B169: 9 | C169: on Mt. Sinai | F169: 2023-07-08 | G169: Fri | H169: 2023-07-10 | I169: Sun | J169: 29 | K169: 2 | L169: 2023-07-09 | M169: Sat | N169: 2023-07-11 | O169: Mon | P169: 29 | Q169: 2 | T169: Moses' day # | U169: 9 | V169: on Mt. Sinai
A170: Moses' day # | B170: 10 | C170: on Mt. Sinai | D170: New Moon #5, 1495 BCE Lag: 99 min 57 sec; Ill.: 2.53% | F170: 2023-07-09 | G170: Sat | H170: 2023-07-11 | I170: Mon | J170: 1 | K170: 3 | L170: 2023-07-10 | M170: Sun | N170: 2023-07-12 | O170: Tue | P170: 1 | Q170: 3 | R170: New Moon #5, 1495 BCE Lag: 99 min 57 sec; Ill.: 2.53% | T170: Moses' day # | U170: 10 | V170: on Mt. Sinai
A171: Moses' day # | B171: 11 | C171: on Mt. Sinai | F171: 2023-07-10 | G171: Sun | H171: 2023-07-12 | I171: Tue | J171: 2 | K171: 4 | L171: 2023-07-11 | M171: Mon | N171: 2023-07-13 | O171: Wed | P171: 2 | Q171: 4 | T171: Moses' day # | U171: 11 | V171: on Mt. Sinai
A172: Moses' day # | B172: 12 | C172: on Mt. Sinai | F172: 2023-07-11 | G172: Mon | H172: 2023-07-13 | I172: Wed | J172: 3 | K172: 5 | L172: 2023-07-12 | M172: Tue | N172: 2023-07-14 | O172: Thu | P172: 3 | Q172: 5 | T172: Moses' day # | U172: 12 | V172: on Mt. Sinai
A173: Moses' day # | B173: 13 | C173: on Mt. Sinai | F173: 2023-07-12 | G173: Tue | H173: 2023-07-14 | I173: Thu | J173: 4 | K173: 6 | L173: 2023-07-13 | M173: Wed | N173: 2023-07-15 | O173: Fri | P173: 4 | Q173: 6 | T173: Moses' day # | U173: 13 | V173: on Mt. Sinai
A174: Moses' day # | B174: 14 | C174: on Mt. Sinai | D174: 7th Day Sabbath | F174: 2023-07-13 | G174: Wed | H174: 2023-07-15 | I174: Fri | J174: 5 | K174: 7 | L174: 2023-07-14 | M174: Thu | N174: 2023-07-16 | O174: Sat | P174: 5 | Q174: 7 | R174: 7th Day Sabbath | T174: Moses' day # | U174: 14 | V174: on Mt. Sinai
A175: Moses' day # | B175: 15 | C175: on Mt. Sinai | F175: 2023-07-14 | G175: Thu | H175: 2023-07-16 | I175: Sat | J175: 6 | K175: 1 | L175: 2023-07-15 | M175: Fri | N175: 2023-07-17 | O175: Sun | P175: 6 | Q175: 1 | T175: Moses' day # | U175: 15 | V175: on Mt. Sinai
A176: Moses' day # | B176: 16 | C176: on Mt. Sinai | F176: 2023-07-15 | G176: Fri | H176: 2023-07-17 | I176: Sun | J176: 7 | K176: 2 | L176: 2023-07-16 | M176: Sat | N176: 2023-07-18 | O176: Mon | P176: 7 | Q176: 2 | T176: Moses' day # | U176: 16 | V176: on Mt. Sinai
A177: Moses' day # | B177: 17 | C177: on Mt. Sinai | F177: 2023-07-16 | G177: Sat | H177: 2023-07-18 | I177: Mon | J177: 8 | K177: 3 | L177: 2023-07-17 | M177: Sun | N177: 2023-07-19 | O177: Tue | P177: 8 | Q177: 3 | T177: Moses' day # | U177: 17 | V177: on Mt. Sinai
A178: Moses' day # | B178: 18 | C178: on Mt. Sinai | F178: 2023-07-17 | G178: Sun | H178: 2023-07-19 | I178: Tue | J178: 9 | K178: 4 | L178: 2023-07-18 | M178: Mon | N178: 2023-07-20 | O178: Wed | P178: 9 | Q178: 4 | T178: Moses' day # | U178: 18 | V178: on Mt. Sinai
A179: Moses' day # | B179: 19 | C179: on Mt. Sinai | F179: 2023-07-18 | G179: Mon | H179: 2023-07-20 | I179: Wed | J179: 10 | K179: 5 | L179: 2023-07-19 | M179: Tue | N179: 2023-07-21 | O179: Thu | P179: 10 | Q179: 5 | T179: Moses' day # | U179: 19 | V179: on Mt. Sinai
A180: Moses' day # | B180: 20 | C180: on Mt. Sinai | F180: 2023-07-19 | G180: Tue | H180: 2023-07-21 | I180: Thu | J180: 11 | K180: 6 | L180: 2023-07-20 | M180: Wed | N180: 2023-07-22 | O180: Fri | P180: 11 | Q180: 6 | T180: Moses' day # | U180: 20 | V180: on Mt. Sinai
A181: Moses' day # | B181: 21 | C181: on Mt. Sinai | D181: 7th Day Sabbath | F181: 2023-07-20 | G181: Wed | H181: 2023-07-22 | I181: Fri | J181: 12 | K181: 7 | L181: 2023-07-21 | M181: Thu | N181: 2023-07-23 | O181: Sat | P181: 12 | Q181: 7 | R181: 7th Day Sabbath | T181: Moses' day # | U181: 21 | V181: on Mt. Sinai
A182: Moses' day # | B182: 22 | C182: on Mt. Sinai | F182: 2023-07-21 | G182: Thu | H182: 2023-07-23 | I182: Sat | J182: 13 | K182: 1 | L182: 2023-07-22 | M182: Fri | N182: 2023-07-24 | O182: Sun | P182: 13 | Q182: 1 | T182: Moses' day # | U182: 22 | V182: on Mt. Sinai
A183: Moses' day # | B183: 23 | C183: on Mt. Sinai | F183: 2023-07-22 | G183: Fri | H183: 2023-07-24 | I183: Sun | J183: 14 | K183: 2 | L183: 2023-07-23 | M183: Sat | N183: 2023-07-25 | O183: Mon | P183: 14 | Q183: 2 | T183: Moses' day # | U183: 23 | V183: on Mt. Sinai
A184: Moses' day # | B184: 24 | C184: on Mt. Sinai | F184: 2023-07-23 | G184: Sat | H184: 2023-07-25 | I184: Mon | J184: 15 | K184: 3 | L184: 2023-07-24 | M184: Sun | N184: 2023-07-26 | O184: Tue | P184: 15 | Q184: 3 | T184: Moses' day # | U184: 24 | V184: on Mt. Sinai
A185: Moses' day # | B185: 25 | C185: on Mt. Sinai | F185: 2023-07-24 | G185: Sun | H185: 2023-07-26 | I185: Tue | J185: 16 | K185: 4 | L185: 2023-07-25 | M185: Mon | N185: 2023-07-27 | O185: Wed | P185: 16 | Q185: 4 | T185: Moses' day # | U185: 25 | V185: on Mt. Sinai
A186: Moses' day # | B186: 26 | C186: on Mt. Sinai | F186: 2023-07-25 | G186: Mon | H186: 2023-07-27 | I186: Wed | J186: 17 | K186: 5 | L186: 2023-07-26 | M186: Tue | N186: 2023-07-28 | O186: Thu | P186: 17 | Q186: 5 | T186: Moses' day # | U186: 26 | V186: on Mt. Sinai
A187: Moses' day # | B187: 27 | C187: on Mt. Sinai | F187: =F186+1 -> 2023-07-26 | G187: =IF(G186="Sun","Mon",IF(G186="Mon","Tue",IF(G186="Tue","Wed",IF(G186="Wed","Thu",IF(G186="Thu","Fri",IF(G186="Fri","Sat",IF(G186="Sat","Sun"))))))) -> Tue | H187: =H186+1 -> 2023-07-28 | I187: =IF(I186="Sun","Mon",IF(I186="Mon","Tue",IF(I186="Tue","Wed",IF(I186="Wed","Thu",IF(I186="Thu","Fri",IF(I186="Fri","Sat",IF(I186="Sat","Sun"))))))) -> Thu | J187: =J186+1 -> 18 | K187: 6 | L187: =L186+1 -> 2023-07-27 | M187: =IF(M186="Sun","Mon",IF(M186="Mon","Tue",IF(M186="Tue","Wed",IF(M186="Wed","Thu",IF(M186="Thu","Fri",IF(M186="Fri","Sat",IF(M186="Sat","Sun"))))))) -> Wed | N187: =N186+1 -> 2023-07-29 | O187: =IF(O186="Sun","Mon",IF(O186="Mon","Tue",IF(O186="Tue","Wed",IF(O186="Wed","Thu",IF(O186="Thu","Fri",IF(O186="Fri","Sat",IF(O186="Sat","Sun"))))))) -> Fri | P187: 18 | Q187: 6 | T187: Moses' day # | U187: 27 | V187: on Mt. Sinai
A188: Moses' day # | B188: 28 | C188: on Mt. Sinai | D188: 7th Day Sabbath | F188: 2023-07-27 | G188: Wed | H188: 2023-07-29 | I188: Fri | J188: 19 | K188: 7 | L188: 2023-07-28 | M188: Thu | N188: 2023-07-30 | O188: Sat | P188: 19 | Q188: 7 | R188: 7th Day Sabbath | T188: Moses' day # | U188: 28 | V188: on Mt. Sinai
A189: Moses' day # | B189: 29 | C189: on Mt. Sinai | F189: 2023-07-28 | G189: Thu | H189: 2023-07-30 | I189: Sat | J189: 20 | K189: 1 | L189: 2023-07-29 | M189: Fri | N189: 2023-07-31 | O189: Sun | P189: 20 | Q189: 1 | T189: Moses' day # | U189: 29 | V189: on Mt. Sinai
A190: Moses' day # | B190: 30 | C190: on Mt. Sinai | F190: 2023-07-29 | G190: Fri | H190: 2023-07-31 | I190: Sun | J190: 21 | K190: 2 | L190: 2023-07-30 | M190: Sat | N190: 2023-08-01 | O190: Mon | P190: 21 | Q190: 2 | T190: Moses' day # | U190: 30 | V190: on Mt. Sinai
A191: Moses' day # | B191: 31 | C191: on Mt. Sinai | F191: 2023-07-30 | G191: Sat | H191: 2023-08-01 | I191: Mon | J191: 22 | K191: 3 | L191: 2023-07-31 | M191: Sun | N191: 2023-08-02 | O191: Tue | P191: 22 | Q191: 3 | T191: Moses' day # | U191: 31 | V191: on Mt. Sinai
A192: Moses' day # | B192: 32 | C192: on Mt. Sinai | F192: 2023-07-31 | G192: Sun | H192: 2023-08-02 | I192: Tue | J192: 23 | K192: 4 | L192: 2023-08-01 | M192: Mon | N192: 2023-08-03 | O192: Wed | P192: 23 | Q192: 4 | T192: Moses' day # | U192: 32 | V192: on Mt. Sinai
A193: Moses' day # | B193: 33 | C193: on Mt. Sinai | F193: 2023-08-01 | G193: Mon | H193: 2023-08-03 | I193: Wed | J193: 24 | K193: 5 | L193: 2023-08-02 | M193: Tue | N193: 2023-08-04 | O193: Thu | P193: 24 | Q193: 5 | T193: Moses' day # | U193: 33 | V193: on Mt. Sinai
A194: Moses' day # | B194: 34 | C194: on Mt. Sinai | F194: 2023-08-02 | G194: Tue | H194: 2023-08-04 | I194: Thu | J194: 25 | K194: =IF(I194="Sun","2",IF(I194="Mon","3",IF(I194="Tue","4",IF(I194="Wed","5",IF(I194="Thu","6",IF(I194="Fri","7",IF(I194="Sat","1"))))))) -> 6 | L194: 2023-08-03 | M194: Wed | N194: 2023-08-05 | O194: Fri | P194: =J194 -> 25 | Q194: =IF(O194="Sun","1",IF(O194="Mon","2",IF(O194="Tue","3",IF(O194="Wed","4",IF(O194="Thu","5",IF(O194="Fri","6",IF(O194="Sat","7"))))))) -> 6 | T194: Moses' day # | U194: 34 | V194: on Mt. Sinai
A195: Moses' day # | B195: 35 | C195: on Mt. Sinai | D195: 7th Day Sabbath | F195: 2023-08-03 | G195: Wed | H195: 2023-08-05 | I195: Fri | J195: 26 | K195: 7 | L195: 2023-08-04 | M195: Thu | N195: 2023-08-06 | O195: Sat | P195: 26 | Q195: 7 | R195: 7th Day Sabbath | T195: Moses' day # | U195: 35 | V195: on Mt. Sinai
A196: Moses' day # | B196: 36 | C196: on Mt. Sinai | F196: 2023-08-04 | G196: Thu | H196: 2023-08-06 | I196: Sat | J196: 27 | K196: 1 | L196: 2023-08-05 | M196: Fri | N196: 2023-08-07 | O196: Sun | P196: 27 | Q196: 1 | T196: Moses' day # | U196: 36 | V196: on Mt. Sinai
A197: Moses' day # | B197: 37 | C197: on Mt. Sinai | F197: 2023-08-05 | G197: Fri | H197: 2023-08-07 | I197: Sun | J197: 28 | K197: 2 | L197: 2023-08-06 | M197: Sat | N197: 2023-08-08 | O197: Mon | P197: 28 | Q197: 2 | T197: Moses' day # | U197: 37 | V197: on Mt. Sinai
A198: Moses' day # | B198: 38 | C198: on Mt. Sinai | F198: 2023-08-06 | G198: Sat | H198: 2023-08-08 | I198: Mon | J198: 29 | K198: 3 | L198: 2023-08-07 | M198: Sun | N198: 2023-08-09 | O198: Tue | P198: 29 | Q198: 3 | T198: Moses' day # | U198: 38 | V198: on Mt. Sinai
A199: Moses' day # | B199: 39 | C199: on Mt. Sinai | D199: New Moon #6, 1495 BCE Lag: 59 min 43 sec; Ill.: 1.47% | F199: 2023-08-07 | G199: Sun | H199: 2023-08-09 | I199: Tue | J199: 1 | K199: 4 | L199: 2023-08-08 | M199: Mon | N199: 2023-08-10 | O199: Wed | P199: 1 | Q199: 4 | R199: New Moon #6, 1495 BCE Lag: 59 min 43 sec; Ill.: 1.47% | T199: Moses' day # | U199: 39 | V199: on Mt. Sinai
A200: Moses' day # | B200: 40 | C200: on Mt. Sinai | F200: 2023-08-08 | G200: Mon | H200: 2023-08-10 | I200: Wed | J200: 2 | K200: 5 | L200: 2023-08-09 | M200: Tue | N200: 2023-08-11 | O200: Thu | P200: 2 | Q200: 5 | T200: Moses' day # | U200: 40 | V200: on Mt. Sinai
F201: 2023-08-09 | G201: Tue | H201: 2023-08-11 | I201: Thu | J201: 3 | K201: 6 | L201: 2023-08-10 | M201: Wed | N201: 2023-08-12 | O201: Fri | P201: 3 | Q201: 6
D202: 7th Day Sabbath | F202: 2023-08-10 | G202: Wed | H202: 2023-08-12 | I202: Fri | J202: 4 | K202: 7 | L202: 2023-08-11 | M202: Thu | N202: 2023-08-13 | O202: Sat | P202: 4 | Q202: 7 | R202: 7th Day Sabbath
F203: 2023-08-11 | G203: Thu | H203: 2023-08-13 | I203: Sat | J203: 5 | K203: 1 | L203: 2023-08-12 | M203: Fri | N203: 2023-08-14 | O203: Sun | P203: 5 | Q203: 1
F204: 2023-08-12 | G204: Fri | H204: 2023-08-14 | I204: Sun | J204: 6 | K204: 2 | L204: 2023-08-13 | M204: Sat | N204: 2023-08-15 | O204: Mon | P204: 6 | Q204: 2
F205: 2023-08-13 | G205: Sat | H205: 2023-08-15 | I205: Mon | J205: 7 | K205: 3 | L205: 2023-08-14 | M205: Sun | N205: 2023-08-16 | O205: Tue | P205: 7 | Q205: 3
F206: 2023-08-14 | G206: Sun | H206: 2023-08-16 | I206: Tue | J206: 8 | K206: 4 | L206: 2023-08-15 | M206: Mon | N206: 2023-08-17 | O206: Wed | P206: 8 | Q206: 4
F207: 2023-08-15 | G207: Mon | H207: 2023-08-17 | I207: Wed | J207: 9 | K207: 5 | L207: 2023-08-16 | M207: Tue | N207: 2023-08-18 | O207: Thu | P207: 9 | Q207: 5
F208: 2023-08-16 | G208: Tue | H208: 2023-08-18 | I208: Thu | J208: 10 | K208: 6 | L208: 2023-08-17 | M208: Wed | N208: 2023-08-19 | O208: Fri | P208: 10 | Q208: 6
D209: 7th Day Sabbath | F209: 2023-08-17 | G209: Wed | H209: 2023-08-19 | I209: Fri | J209: 11 | K209: 7 | L209: 2023-08-18 | M209: Thu | N209: 2023-08-20 | O209: Sat | P209: 11 | Q209: 7 | R209: 7th Day Sabbath
F210: 2023-08-18 | G210: Thu | H210: 2023-08-20 | I210: Sat | J210: 12 | K210: 1 | L210: 2023-08-19 | M210: Fri | N210: 2023-08-21 | O210: Sun | P210: 12 | Q210: 1
... 283 more rows
